Service Delivery Area,Service Delivery Team,CC,Expenditure Group,Nominal Description,Supplier Name,Transaction date,System Reference,Value,
Care & Support (Adults & Children),Commissioning for Children & Young People & Families,CDC,SUPPLIES & SERVICES           ,Other Grants (Expenses)       ,TELFORD & WREKIN C V S                  ,04-Nov-10,3171810,22708.00,
Care & Support (Adults & Children),Commissioning for Children & Young People & Families,CDC,SUPPLIES & SERVICES           ,Other Grants (Expenses)       ,TELFORD & WREKIN C V S                  ,05-Jan-11,3176336,22708.00,
Care & Support (Adults & Children),Integrated Disabilities,CBV,SUPPLIES & SERVICES           ,Adaptations                   ,OSPREY HEALTHCARE LTD                   ,22-Dec-10,3171095,1117.00,
Care & Support (Adults & Children),Integrated Disabilities,CCD,THIRD PARTY PAYMENTS          ,Agency Services               ,D H HOMECARE LTD                        ,06-Jan-11,3175312,518.40,
Care & Support (Adults & Children),"Joint Commissioning - Older People, Disability and Carers",CDQ,SUPPLIES & SERVICES           ,Other Grants (Expenses)       ,TELFORD MIND                            ,24-Dec-10,3171633,10439.36,
Care & Support (Adults & Children),"Joint Commissioning - Older People, Disability and Carers",CDQ,SUPPLIES & SERVICES           ,Other Grants (Expenses)       ,TELFORD MIND                            ,24-Dec-10,3171634,10439.36,
Care & Support (Adults & Children),"Joint Commissioning - Older People, Disability and Carers",CDQ,SUPPLIES & SERVICES           ,Other Grants (Expenses)       ,TELFORD MIND                            ,24-Dec-10,3171635,10439.36,
Care & Support (Adults & Children),"Joint Commissioning - Older People, Disability and Carers",CFB,SUPPLIES & SERVICES           ,Conference Expenses           ,TELFORD & WREKIN PCT                    ,07-Jan-11,3179111,1429.39,
Care & Support (Adults & Children),"Joint Commissioning - Older People, Disability and Carers",CFB,PREMISES                      ,Electricity                   ,NPOWER                                  ,03-Jan-11,3174554,1664.30,
Care & Support (Adults & Children),"Joint Commissioning - Older People, Disability and Carers",CFB,TRANSPORT                     ,Mileage                       ,TELFORD & WREKIN PCT                    ,07-Jan-11,3179111,1718.54,
Care & Support (Adults & Children),Learning Disabilities,CFX,PREMISES                      ,General Rents                 ,BOURNVILLE VILLAGE TRUST                ,03-Jan-11,3180733,5998.00,
Care & Support (Adults & Children),Learning Disabilities,CGB,SUPPLIES & SERVICES           ,Photocopying                  ,WEST MERCIA SUPPLIES                    ,14-Dec-10,3170044,518.56,
Care & Support (Adults & Children),Learning Disabilities,CGH,PREMISES                      ,Electricity                   ,WEST MERCIA SUPPLIES                    ,17-Jan-11,3179956,781.30,
Care & Support (Adults & Children),Learning Disabilities,CGH,PREMISES                      ,Electricity                   ,WEST MERCIA SUPPLIES                    ,17-Jan-11,3179964,798.56,
Care & Support (Adults & Children),Learning Disabilities,CGH,PREMISES                      ,Gas                           ,WEST MERCIA SUPPLIES                    ,22-Dec-10,3171637,1159.72,
Care & Support (Adults & Children),Learning Disabilities,CGI,PREMISES                      ,Clean Mats & Toilet Requisites,CARE SHOP LTD                               ,05-Jan-11,3174707,584.12,
Care & Support (Adults & Children),Learning Disabilities,CGQ,SUPPLIES & SERVICES           ,Other Grants (Expenses)       ,CREATIVE SUPPORT LTD                    ,15-Dec-10,3174542,5192.16,
Care & Support (Adults & Children),Learning Disabilities,CGQ,THIRD PARTY PAYMENTS          ,Private Contractors           ,CREATIVE SUPPORT LTD                    ,15-Dec-10,3167174,525.08,
Care & Support (Adults & Children),Learning Disabilities,CGQ,THIRD PARTY PAYMENTS          ,Private Contractors           ,CREATIVE SUPPORT LTD                    ,15-Dec-10,3167175,906.96,
Care & Support (Adults & Children),Learning Disabilities,CGQ,THIRD PARTY PAYMENTS          ,Private Contractors           ,CREATIVE SUPPORT LTD                    ,15-Dec-10,3167176,1002.12,
Care & Support (Adults & Children),Learning Disabilities,CGQ,THIRD PARTY PAYMENTS          ,Private Contractors           ,CREATIVE SUPPORT LTD                    ,15-Dec-10,3174541,1749.88,
Care & Support (Adults & Children),Learning Disabilities,CGQ,THIRD PARTY PAYMENTS          ,Private Contractors           ,CREATIVE SUPPORT LTD                    ,15-Dec-10,3174542,16336.60,
Care & Support (Adults & Children),Learning Disabilities,CGQ,THIRD PARTY PAYMENTS          ,Private Contractors           ,CREATIVE SUPPORT LTD                    ,26-Jan-11,3180958,525.08,
Care & Support (Adults & Children),Learning Disabilities,CGQ,THIRD PARTY PAYMENTS          ,Private Contractors           ,CREATIVE SUPPORT LTD                    ,26-Jan-11,3180959,906.96,
Care & Support (Adults & Children),Learning Disabilities,CGQ,THIRD PARTY PAYMENTS          ,Private Contractors           ,CREATIVE SUPPORT LTD                    ,26-Jan-11,3180960,1002.12,
Care & Support (Adults & Children),Learning Disabilities,CGR,PREMISES                      ,Water Rates                   ,SEVERN TRENT WATER LTD                  ,22-Dec-10,3172217,592.43,
Care & Support (Adults & Children),Learning Disabilities,CGS,PREMISES                      ,Clean Mats & Toilet Requisites,PHS ALL CLEAR                           ,31-Dec-10,3176703,826.66,
Care & Support (Adults & Children),Learning Disabilities,CGS,SUPPLIES & SERVICES           ,Disability Living Allowance   ,BARCLAYS BANK PLC (CARWOOD ACC)         ,05-Jan-11,3174672,1242.54,
Care & Support (Adults & Children),Learning Disabilities,CGS,PREMISES                      ,Electricity                   ,WEST MERCIA SUPPLIES                    ,15-Dec-10,3168512,1863.58,
Care & Support (Adults & Children),Learning Disabilities,CGS,SUPPLIES & SERVICES           ,Equipment - Purchase          ,ADT FIRE AND SECURITY                   ,02-Jan-11,3177271,578.66,
Care & Support (Adults & Children),Learning Disabilities,CGS,CAPITAL FINANCING             ,Leased Equipment              ,LEX AUTOLEASE LTD                       ,13-Dec-10,3168499,500.14,
Care & Support (Adults & Children),Learning Disabilities,CGS,PREMISES                      ,Water Rates                   ,SEVERN TRENT WATER LTD                  ,22-Dec-10,3168503,536.53,
Care & Support (Adults & Children),Learning Disabilities,CGT,PREMISES                      ,General Rents                 ,BOURNVILLE VILLAGE TRUST                ,01-Jan-11,3174420,1785.00,
Care & Support (Adults & Children),Learning Disabilities,CGT,PREMISES                      ,General Rents                 ,BOURNVILLE VILLAGE TRUST                ,01-Jan-11,3175401,2400.00,
Care & Support (Adults & Children),Learning Disabilities,CGT,PREMISES                      ,General Rents                 ,THE WREKIN HOUSING TRUST                ,08-Dec-10,3176353,3574.00,
Care & Support (Adults & Children),Learning Disabilities,CGY,PREMISES                      ,General Rents                 ,TELFORD COLLEGE OF ARTS AND TECHNOLOGY  ,14-Jan-11,3182324,595.95,
Care & Support (Adults & Children),Learning Disabilities,CHA,PREMISES                      ,General Rents                 ,BAKER PROPERTY SERVICES                 ,10-Jan-11,3174538,675.00,
Care & Support (Adults & Children),Learning Disabilities,CHA,PREMISES                      ,General Rents                 ,OLD VICARAGE COUNTRY HOUSE          ,03-Jan-11,3172055,990.00,
Care & Support (Adults & Children),Learning Disabilities,CHT,PREMISES                      ,General Rents                 ,BOURNVILLE VILLAGE TRUST                ,01-Jan-11,3171962,1650.00,
Care & Support (Adults & Children),Learning Disabilities,CHT,THIRD PARTY PAYMENTS          ,Health Funded Services        ,BETHPHAGE GREAT BRITAIN                 ,26-Dec-10,3177896,1757.39,
Care & Support (Adults & Children),Learning Disabilities,CHT,THIRD PARTY PAYMENTS          ,Health Funded Services        ,COMPLETE CARE HOLDINGS LTD              ,31-Dec-10,3174406,17663.02,
Care & Support (Adults & Children),Learning Disabilities,CHT,THIRD PARTY PAYMENTS          ,Homecare Expenditure          ,ALLIED HEALTHCARE GROUP LTD             ,05-Jan-11,3171948,542.85,
Care & Support (Adults & Children),Learning Disabilities,CHT,THIRD PARTY PAYMENTS          ,Homecare Expenditure          ,ALLIED HEALTHCARE GROUP LTD             ,05-Jan-11,3171951,612.23,
Care & Support (Adults & Children),Learning Disabilities,CHT,THIRD PARTY PAYMENTS          ,Homecare Expenditure          ,BETHPHAGE GREAT BRITAIN                 ,26-Dec-10,3177895,763.05,
Care & Support (Adults & Children),Learning Disabilities,CHT,THIRD PARTY PAYMENTS          ,Homecare Expenditure          ,BETHPHAGE GREAT BRITAIN                 ,26-Dec-10,3177896,1757.39,
Care & Support (Adults & Children),Learning Disabilities,CHT,THIRD PARTY PAYMENTS          ,Homecare Expenditure          ,CHOICES HOUSING ASSOCIATION LTD         ,22-Dec-10,3166563,6205.50,
Care & Support (Adults & Children),Learning Disabilities,CHT,THIRD PARTY PAYMENTS          ,Homecare Expenditure          ,CHOICES HOUSING ASSOCIATION LTD         ,22-Dec-10,3166564,1836.45,
Care & Support (Adults & Children),Learning Disabilities,CHT,THIRD PARTY PAYMENTS          ,Homecare Expenditure          ,CREATIVE SUPPORT LTD                    ,15-Dec-10,3167173,1924.28,
Care & Support (Adults & Children),Learning Disabilities,CHT,THIRD PARTY PAYMENTS          ,Homecare Expenditure          ,CREATIVE SUPPORT LTD                    ,15-Dec-10,3167209,6693.84,
Care & Support (Adults & Children),Learning Disabilities,CHT,THIRD PARTY PAYMENTS          ,Homecare Expenditure          ,CREATIVE SUPPORT LTD                    ,04-Jan-11,3167923,6693.84,
Care & Support (Adults & Children),Learning Disabilities,CHT,THIRD PARTY PAYMENTS          ,Homecare Expenditure          ,CREATIVE SUPPORT LTD                    ,26-Jan-11,3180957,1924.28,
Care & Support (Adults & Children),Learning Disabilities,CHT,THIRD PARTY PAYMENTS          ,Homecare Expenditure          ,D H HOMECARE LTD                        ,06-Jan-11,3171153,1225.87,
Care & Support (Adults & Children),Learning Disabilities,CHT,THIRD PARTY PAYMENTS          ,Homecare Expenditure          ,D H HOMECARE LTD                        ,06-Jan-11,3171156,628.15,
Care & Support (Adults & Children),Learning Disabilities,CHT,THIRD PARTY PAYMENTS          ,Homecare Expenditure          ,BARCHESTER HEALTHCARE                   ,13-Jan-11,3175332,5092.60,
Care & Support (Adults & Children),Learning Disabilities,CHT,THIRD PARTY PAYMENTS          ,Homecare Expenditure          ,HELPING HANDS HOMECARE                  ,10-Jan-11,3175736,2473.10,
Care & Support (Adults & Children),Learning Disabilities,CHT,THIRD PARTY PAYMENTS          ,Homecare Expenditure          ,PHOENIX CARE PARTNERS                   ,06-Jan-11,3172008,718.48,
Care & Support (Adults & Children),Learning Disabilities,CHT,THIRD PARTY PAYMENTS          ,Homecare Expenditure          ,PHOENIX CARE PARTNERS                   ,06-Jan-11,3172009,810.43,
Care & Support (Adults & Children),Learning Disabilities,CHT,THIRD PARTY PAYMENTS          ,Homecare Expenditure          ,PHOENIX CARE PARTNERS                   ,06-Jan-11,3172010,804.56,
Care & Support (Adults & Children),Learning Disabilities,CHT,THIRD PARTY PAYMENTS          ,Homecare Expenditure          ,PHOENIX CARE PARTNERS                   ,06-Jan-11,3172012,575.63,
Care & Support (Adults & Children),Learning Disabilities,CHT,THIRD PARTY PAYMENTS          ,Homecare Expenditure          ,PROSPECTS FPWLD                         ,28-Jan-11,3177912,3873.16,
Care & Support (Adults & Children),Learning Disabilities,CHT,THIRD PARTY PAYMENTS          ,Homecare Expenditure          ,PROSPECTS FPWLD                         ,28-Jan-11,3177913,3643.52,
Care & Support (Adults & Children),Learning Disabilities,CHT,THIRD PARTY PAYMENTS          ,Homecare Expenditure          ,PROSPECTS FPWLD                         ,28-Jan-11,3177914,3643.22,
Care & Support (Adults & Children),Learning Disabilities,CHT,THIRD PARTY PAYMENTS          ,Homecare Expenditure          ,PROSPECTS FPWLD                         ,28-Jan-11,3177915,6721.30,
Care & Support (Adults & Children),Learning Disabilities,CHT,THIRD PARTY PAYMENTS          ,Homecare Expenditure          ,PROSPECTS FPWLD                         ,16-Jan-11,3177916,1043.20,
Care & Support (Adults & Children),Learning Disabilities,CHT,THIRD PARTY PAYMENTS          ,Homecare Expenditure          ,PROSPECTS FPWLD                         ,13-Jan-11,3177917,625.92,
Care & Support (Adults & Children),Learning Disabilities,CHT,THIRD PARTY PAYMENTS          ,Homecare Expenditure          ,CAREWATCH (MID SHROPSHIRE)              ,12-Jan-11,3174779,621.21,
Care & Support (Adults & Children),Learning Disabilities,CHT,THIRD PARTY PAYMENTS          ,Homecare Expenditure          ,CAREWATCH (MID SHROPSHIRE)              ,26-Jan-11,3181004,526.63,
Care & Support (Adults & Children),Learning Disabilities,CHT,THIRD PARTY PAYMENTS          ,Homecare Expenditure          ,SEVA CARE (UK) LIMITED                  ,25-Jan-11,3180983,510.92,
Care & Support (Adults & Children),Learning Disabilities,CHT,THIRD PARTY PAYMENTS          ,Homecare Expenditure          ,TRIMAR CARE LIMITED                     ,01-Feb-11,3180780,6127.33,
Care & Support (Adults & Children),Learning Disabilities,CHT,THIRD PARTY PAYMENTS          ,Homecare Expenditure          ,WE ARE THE CARE COMPANY LTD             ,26-Dec-10,3172018,977.88,
Care & Support (Adults & Children),Learning Disabilities,CHV,SUPPLIES & SERVICES           ,Other Grants (Expenses)       ,NORTH STAFFS COMBINED HEALTHCARE        ,11-Jan-11,3179105,9277.00,
Care & Support (Adults & Children),Learning Disabilities,CHW,THIRD PARTY PAYMENTS          ,Daycare Expenditure           ,SELF UNLIMITED                          ,31-Dec-10,3172086,2064.83,
Care & Support (Adults & Children),Learning Disabilities,CHX,THIRD PARTY PAYMENTS          ,Residential Expenditure       ,NATIONAL FOSTERING AGENCY               ,31-Dec-10,3167951,5933.71,
Care & Support (Adults & Children),Learning Disabilities,CHX,SUPPLIES & SERVICES           ,Respite Care                  ,LEONARD CHESHIRE DISABILITY             ,13-Jan-11,3174815,24108.66,
Care & Support (Adults & Children),Learning Disabilities,CHX,INCOME                        ,Respite Care Income           ,LEONARD CHESHIRE DISABILITY             ,13-Jan-11,3174815,-1635.00,
Care & Support (Adults & Children),Learning Disabilities,CHY,PREMISES                      ,General Rents                 ,BOURNVILLE VILLAGE TRUST                ,01-Jan-11,3178092,9983.79,
Care & Support (Adults & Children),Learning Disabilities,CHY,PREMISES                      ,General Rents                 ,BOURNVILLE VILLAGE TRUST                ,01-Jan-11,3178093,9848.34,
Care & Support (Adults & Children),Learning Disabilities,CHY,THIRD PARTY PAYMENTS          ,Health Funded Services        ,ACCORD HOUSING ASSOCIATION LIMITED      ,31-Dec-10,3173309,36741.90,
Care & Support (Adults & Children),Learning Disabilities,CHY,THIRD PARTY PAYMENTS          ,Health Funded Services        ,BARCHESTER HEALTHCARE                   ,31-Dec-10,3167925,1216.00,
Care & Support (Adults & Children),Learning Disabilities,CHY,THIRD PARTY PAYMENTS          ,Health Funded Services        ,BARCHESTER HEALTHCARE                   ,31-Dec-10,3167926,768.00,
Care & Support (Adults & Children),Learning Disabilities,CHY,THIRD PARTY PAYMENTS          ,Health Funded Services        ,BARCHESTER HEALTHCARE                   ,13-Jan-11,3175329,6720.00,
Care & Support (Adults & Children),Learning Disabilities,CHY,THIRD PARTY PAYMENTS          ,Health Funded Services        ,BARCHESTER HEALTHCARE                   ,13-Jan-11,3175330,3094.00,
Care & Support (Adults & Children),Learning Disabilities,CHY,THIRD PARTY PAYMENTS          ,Health Funded Services        ,BARCHESTER HEALTHCARE                   ,13-Jan-11,3175331,576.00,
Care & Support (Adults & Children),Learning Disabilities,CHY,THIRD PARTY PAYMENTS          ,Health Funded Services        ,DIMENSIONS (UK) LTD                     ,13-Dec-10,3167531,38998.00,
Care & Support (Adults & Children),Learning Disabilities,CHY,THIRD PARTY PAYMENTS          ,Health Funded Services        ,DIMENSIONS (UK) LTD                     ,13-Dec-10,3167532,32931.30,
Care & Support (Adults & Children),Learning Disabilities,CHY,THIRD PARTY PAYMENTS          ,Health Funded Services        ,DIMENSIONS (UK) LTD                     ,13-Dec-10,3167533,46797.60,
Care & Support (Adults & Children),Learning Disabilities,CHY,THIRD PARTY PAYMENTS          ,Health Funded Services        ,DIMENSIONS (UK) LTD                     ,13-Dec-10,3167534,29051.65,
Care & Support (Adults & Children),Learning Disabilities,CHY,THIRD PARTY PAYMENTS          ,Homecare Expenditure          ,BARCHESTER HEALTHCARE                   ,13-Jan-11,3175330,3094.00,
Care & Support (Adults & Children),Mental Health & Substance Misuse,CIL,PREMISES                      ,Electricity                   ,WEST MERCIA SUPPLIES                    ,17-Jan-11,3180786,1232.55,
Care & Support (Adults & Children),Mental Health & Substance Misuse,CIL,SUPPLIES & SERVICES           ,Other Grants (Expenses)       ,TELFORD & WREKIN PCT                    ,10-Dec-10,3170703,7751.00,
Care & Support (Adults & Children),Mental Health & Substance Misuse,CIT,SUPPLIES & SERVICES           ,Disposal of Clinical Waste,SRCL LTD                                ,01-Jan-11,3175832,794.14,
Care & Support (Adults & Children),Mental Health & Substance Misuse,CIV,PREMISES                      ,Gas                           ,WEST MERCIA SUPPLIES                    ,22-Dec-10,3175837,606.72,
Care & Support (Adults & Children),Mental Health & Substance Misuse,CJD,THIRD PARTY PAYMENTS          ,Daycare Expenditure           ,LISTEN & CARE SELF HELP GROUP           ,14-Sep-10,3169358,15733.77,
Care & Support (Adults & Children),Mental Health & Substance Misuse,CJK,THIRD PARTY PAYMENTS          ,Health Funded Services        ,ACCORD HOUSING ASSOCIATION LIMITED      ,31-Dec-10,3175664,-5684.14,
Care & Support (Adults & Children),Mental Health & Substance Misuse,CJK,THIRD PARTY PAYMENTS          ,Residential Expenditure       ,ACCORD HOUSING ASSOCIATION LIMITED      ,31-Dec-10,3175664,60858.64,
Care & Support (Adults & Children),Mental Health & Substance Misuse,CJM,SUPPLIES & SERVICES           ,Grants To Voluntary Organis   ,TELFORD & WREKIN PCT                    ,07-Jan-11,3175415,7300.00,
Care & Support (Adults & Children),Mental Health & Substance Misuse,CJP,THIRD PARTY PAYMENTS          ,Residential Expenditure       ,BARCHESTER HEALTHCARE                   ,13-Jan-11,3175328,1624.00,
Care & Support (Adults & Children),Mental Health & Substance Misuse,CJP,THIRD PARTY PAYMENTS          ,Residential Expenditure       ,FIRST INITIATIVES                       ,12-Jan-11,3174417,3961.68,
Care & Support (Adults & Children),Mental Health & Substance Misuse,CJP,THIRD PARTY PAYMENTS          ,Residential Expenditure       ,GRAY HEALTHCARE                         ,20-Dec-10,3166684,1568.18,
Care & Support (Adults & Children),Mental Health & Substance Misuse,CJP,THIRD PARTY PAYMENTS          ,Residential Expenditure       ,GRAY HEALTHCARE                         ,27-Dec-10,3166685,1568.18,
Care & Support (Adults & Children),Mental Health & Substance Misuse,CJP,THIRD PARTY PAYMENTS          ,Residential Expenditure       ,GRAY HEALTHCARE                         ,03-Jan-11,3166686,1568.18,
Care & Support (Adults & Children),Mental Health & Substance Misuse,CJP,THIRD PARTY PAYMENTS          ,Residential Expenditure       ,GRAY HEALTHCARE                         ,10-Jan-11,3169778,1568.18,
Care & Support (Adults & Children),Mental Health & Substance Misuse,CJP,THIRD PARTY PAYMENTS          ,Residential Expenditure       ,GRAY HEALTHCARE                         ,17-Jan-11,3174407,1568.18,
Care & Support (Adults & Children),Mental Health & Substance Misuse,CJP,THIRD PARTY PAYMENTS          ,Residential Expenditure       ,GRAY HEALTHCARE                         ,24-Jan-11,3177905,1568.18,
Care & Support (Adults & Children),Mental Health & Substance Misuse,CJP,THIRD PARTY PAYMENTS          ,Residential Expenditure       ,SOUTHCOTT SUPPORT SERVICES LTD          ,19-Dec-10,3167987,1460.00,
Care & Support (Adults & Children),Mental Health & Substance Misuse,CJP,THIRD PARTY PAYMENTS          ,Residential Expenditure       ,SOUTHCOTT SUPPORT SERVICES LTD          ,11-Jan-11,3171990,1460.00,
Care & Support (Adults & Children),Mental Health & Substance Misuse,CJP,THIRD PARTY PAYMENTS          ,Residential Expenditure       ,THE FIRS GUEST HOUSE                ,20-Dec-10,3166566,525.00,
Care & Support (Adults & Children),Mental Health & Substance Misuse,CJP,THIRD PARTY PAYMENTS          ,Residential Expenditure       ,THE FIRS GUEST HOUSE                ,27-Dec-10,3167210,525.00,
Care & Support (Adults & Children),Mental Health & Substance Misuse,CJP,THIRD PARTY PAYMENTS          ,Residential Expenditure       ,THE FIRS GUEST HOUSE                ,03-Jan-10,3168222,600.00,
Care & Support (Adults & Children),Mental Health & Substance Misuse,CJP,THIRD PARTY PAYMENTS          ,Residential Expenditure       ,THE FIRS GUEST HOUSE                ,17-Jan-11,3175231,525.00,
Care & Support (Adults & Children),Mental Health & Substance Misuse,CJP,THIRD PARTY PAYMENTS          ,Residential Expenditure       ,THE FIRS GUEST HOUSE                ,24-Jan-11,3178279,525.00,
Care & Support (Adults & Children),Mental Health & Substance Misuse,CKB,PREMISES                      ,Electricity                   ,WEST MERCIA SUPPLIES                    ,17-Jan-11,3181657,983.61,
Care & Support (Adults & Children),Mental Health & Substance Misuse,CKB,PREMISES                      ,General Rents                 ,WREKIN FARMERS LTD                      ,31-Dec-10,3179114,4875.00,
Care & Support (Adults & Children),Mental Health & Substance Misuse,CKB,PREMISES                      ,Water Rates                   ,JUST FOR PETS                           ,31-Dec-10,3175499,2040.79,
Care & Support (Adults & Children),Mental Health & Substance Misuse,CLC,THIRD PARTY PAYMENTS          ,Homecare Expenditure          ,CARRADICE CARE LTD                      ,31-Dec-10,3173149,1352.76,
Care & Support (Adults & Children),Mental Health & Substance Misuse,CLC,THIRD PARTY PAYMENTS          ,Homecare Expenditure          ,PEACE OF MIND HOMECARE LIMITED          ,24-Jan-11,3179556,646.66,
Care & Support (Adults & Children),Mental Health & Substance Misuse,CLC,THIRD PARTY PAYMENTS          ,Homecare Expenditure          ,PHOENIX CARE PARTNERS                   ,06-Jan-11,3172013,852.82,
Care & Support (Adults & Children),Mental Health & Substance Misuse,CLC,THIRD PARTY PAYMENTS          ,Homecare Expenditure          ,CAREWATCH (MID SHROPSHIRE)              ,12-Jan-11,3174786,530.88,
Care & Support (Adults & Children),Mental Health & Substance Misuse,CLC,THIRD PARTY PAYMENTS          ,Homecare Expenditure          ,SUPREME HOME CARE                       ,03-Jan-11,3169792,766.87,
Care & Support (Adults & Children),Mental Health & Substance Misuse,CLF,PREMISES                      ,Electricity                   ,WEST MERCIA SUPPLIES                    ,17-Dec-10,3174592,-512.58,
Care & Support (Adults & Children),Mental Health & Substance Misuse,CLF,PREMISES                      ,Electricity                   ,WEST MERCIA SUPPLIES                    ,17-Dec-10,3174625,518.84,
Care & Support (Adults & Children),Mental Health & Substance Misuse,CLF,PREMISES                      ,Gas                           ,WEST MERCIA SUPPLIES                    ,22-Dec-10,3173828,500.03,
Care & Support (Adults & Children),Older People & Physical Disability,CDO,THIRD PARTY PAYMENTS          ,Health Funded Services        ,COVERAGE CARE SERVICES LTD              ,01-Dec-10,3177477,31086.36,
Care & Support (Adults & Children),Older People & Physical Disability,CDO,THIRD PARTY PAYMENTS          ,Health Funded Services        ,COVERAGE CARE SERVICES LTD              ,01-Jan-11,3177479,31086.36,
Care & Support (Adults & Children),Older People & Physical Disability,CDO,THIRD PARTY PAYMENTS          ,Nursing Expenditure           ,COVERAGE CARE SERVICES LTD              ,01-Dec-10,3177477,57601.64,
Care & Support (Adults & Children),Older People & Physical Disability,CDO,THIRD PARTY PAYMENTS          ,Nursing Expenditure           ,COVERAGE CARE SERVICES LTD              ,01-Jan-11,3177479,57601.64,
Care & Support (Adults & Children),Older People & Physical Disability,CDO,SUPPLIES & SERVICES           ,Respite Care                  ,COVERAGE CARE SERVICES LTD              ,01-Dec-10,3177477,5090.11,
Care & Support (Adults & Children),Older People & Physical Disability,CDO,SUPPLIES & SERVICES           ,Respite Care                  ,COVERAGE CARE SERVICES LTD              ,01-Jan-11,3177479,5090.11,
Care & Support (Adults & Children),Older People & Physical Disability,CDT,TRANSPORT                     ,Travelling Expenses ,CENTRAL TAXIS LIMITED                   ,31-Dec-10,3170689,1766.60,
Care & Support (Adults & Children),Older People & Physical Disability,CDU,THIRD PARTY PAYMENTS          ,Residential Expenditure       ,ACCORD HOUSING ASSOCIATION LIMITED      ,23-Dec-10,3177474,141784.09,
Care & Support (Adults & Children),Older People & Physical Disability,CDU,THIRD PARTY PAYMENTS          ,Residential Expenditure       ,COVERAGE CARE SERVICES LTD              ,01-Dec-10,3177475,60435.39,
Care & Support (Adults & Children),Older People & Physical Disability,CDU,THIRD PARTY PAYMENTS          ,Residential Expenditure       ,COVERAGE CARE SERVICES LTD              ,01-Jan-11,3177478,60435.39,
Care & Support (Adults & Children),Older People & Physical Disability,CDU,SUPPLIES & SERVICES           ,Respite Care                  ,ACCORD HOUSING ASSOCIATION LIMITED      ,23-Dec-10,3177474,22753.08,
Care & Support (Adults & Children),Older People & Physical Disability,CDX,THIRD PARTY PAYMENTS          ,Health Funded Services        ,ALLIED HEALTHCARE GROUP LTD             ,29-Dec-10,3171783,5335.27,
Care & Support (Adults & Children),Older People & Physical Disability,CDX,THIRD PARTY PAYMENTS          ,Health Funded Services        ,ALLIED HEALTHCARE GROUP LTD             ,29-Dec-10,3171785,1741.80,
Care & Support (Adults & Children),Older People & Physical Disability,CDX,THIRD PARTY PAYMENTS          ,Health Funded Services        ,ALLIED HEALTHCARE GROUP LTD             ,29-Dec-10,3172156,1180.91,
Care & Support (Adults & Children),Older People & Physical Disability,CDX,THIRD PARTY PAYMENTS          ,Health Funded Services        ,CAVENDISH HOMECARE SERVICES LTD         ,30-Dec-10,3167225,675.09,
Care & Support (Adults & Children),Older People & Physical Disability,CDX,THIRD PARTY PAYMENTS          ,Health Funded Services        ,CAVENDISH HOMECARE SERVICES LTD         ,04-Jan-11,3169769,863.65,
Care & Support (Adults & Children),Older People & Physical Disability,CDX,THIRD PARTY PAYMENTS          ,Health Funded Services        ,CAVENDISH HOMECARE SERVICES LTD         ,10-Jan-11,3173946,763.55,
Care & Support (Adults & Children),Older People & Physical Disability,CDX,THIRD PARTY PAYMENTS          ,Health Funded Services        ,CAVENDISH HOMECARE SERVICES LTD         ,18-Jan-11,3177488,675.09,
Care & Support (Adults & Children),Older People & Physical Disability,CDX,THIRD PARTY PAYMENTS          ,Health Funded Services        ,EXPRESS TRAVEL                          ,01-Jan-11,3167948,720.00,
Care & Support (Adults & Children),Older People & Physical Disability,CDX,THIRD PARTY PAYMENTS          ,Health Funded Services        ,PEACE OF MIND HOMECARE LIMITED          ,30-Dec-10,3168378,1158.98,
Care & Support (Adults & Children),Older People & Physical Disability,CDX,THIRD PARTY PAYMENTS          ,Health Funded Services        ,PHOENIX CARE PARTNERS                   ,06-Jan-11,3174078,2818.92,
Care & Support (Adults & Children),Older People & Physical Disability,CDX,THIRD PARTY PAYMENTS          ,Health Funded Services        ,PRIORITY CARE                           ,10-Jan-11,3181100,1904.84,
Care & Support (Adults & Children),Older People & Physical Disability,CDX,THIRD PARTY PAYMENTS          ,Health Funded Services        ,SEVA CARE (UK) LIMITED                  ,29-Dec-10,3167283,1110.33,
Care & Support (Adults & Children),Older People & Physical Disability,CDX,THIRD PARTY PAYMENTS          ,Health Funded Services        ,WREKIN CARE CO-OPERATIVE LIMITED        ,11-Jan-11,3170570,2066.42,
Care & Support (Adults & Children),Older People & Physical Disability,CDX,THIRD PARTY PAYMENTS          ,Homecare Expenditure          ,ALLIED HEALTHCARE GROUP LTD             ,29-Dec-10,3171782,1165.77,
Care & Support (Adults & Children),Older People & Physical Disability,CDX,THIRD PARTY PAYMENTS          ,Homecare Expenditure          ,ALLIED HEALTHCARE GROUP LTD             ,29-Dec-10,3172101,736.32,
Care & Support (Adults & Children),Older People & Physical Disability,CDX,THIRD PARTY PAYMENTS          ,Homecare Expenditure          ,ALLIED HEALTHCARE GROUP LTD             ,29-Dec-10,3172104,706.48,
Care & Support (Adults & Children),Older People & Physical Disability,CDX,THIRD PARTY PAYMENTS          ,Homecare Expenditure          ,ALLIED HEALTHCARE GROUP LTD             ,29-Dec-10,3172105,558.88,
Care & Support (Adults & Children),Older People & Physical Disability,CDX,THIRD PARTY PAYMENTS          ,Homecare Expenditure          ,ALLIED HEALTHCARE GROUP LTD             ,29-Dec-10,3172107,1285.22,
Care & Support (Adults & Children),Older People & Physical Disability,CDX,THIRD PARTY PAYMENTS          ,Homecare Expenditure          ,ALLIED HEALTHCARE GROUP LTD             ,29-Dec-10,3172157,1472.64,
Care & Support (Adults & Children),Older People & Physical Disability,CDX,THIRD PARTY PAYMENTS          ,Homecare Expenditure          ,ALLIED HEALTHCARE GROUP LTD             ,29-Dec-10,3172158,1152.95,
Care & Support (Adults & Children),Older People & Physical Disability,CDX,THIRD PARTY PAYMENTS          ,Homecare Expenditure          ,ALLIED HEALTHCARE GROUP LTD             ,29-Dec-10,3172160,721.47,
Care & Support (Adults & Children),Older People & Physical Disability,CDX,THIRD PARTY PAYMENTS          ,Homecare Expenditure          ,ALLIED HEALTHCARE GROUP LTD             ,29-Dec-10,3172161,520.73,
Care & Support (Adults & Children),Older People & Physical Disability,CDX,THIRD PARTY PAYMENTS          ,Homecare Expenditure          ,ALLIED HEALTHCARE GROUP LTD             ,29-Dec-10,3172164,546.30,
Care & Support (Adults & Children),Older People & Physical Disability,CDX,THIRD PARTY PAYMENTS          ,Homecare Expenditure          ,ALLIED HEALTHCARE GROUP LTD             ,29-Dec-10,3172165,1640.49,
Care & Support (Adults & Children),Older People & Physical Disability,CDX,THIRD PARTY PAYMENTS          ,Homecare Expenditure          ,ALLIED HEALTHCARE GROUP LTD             ,29-Dec-10,3172181,688.27,
Care & Support (Adults & Children),Older People & Physical Disability,CDX,THIRD PARTY PAYMENTS          ,Homecare Expenditure          ,ALLIED HEALTHCARE GROUP LTD             ,29-Dec-10,3172182,563.18,
Care & Support (Adults & Children),Older People & Physical Disability,CDX,THIRD PARTY PAYMENTS          ,Homecare Expenditure          ,ALLIED HEALTHCARE GROUP LTD             ,29-Dec-10,3172183,1550.15,
Care & Support (Adults & Children),Older People & Physical Disability,CDX,THIRD PARTY PAYMENTS          ,Homecare Expenditure          ,ALLIED HEALTHCARE GROUP LTD             ,29-Dec-10,3172184,736.32,
Care & Support (Adults & Children),Older People & Physical Disability,CDX,THIRD PARTY PAYMENTS          ,Homecare Expenditure          ,ALLIED HEALTHCARE GROUP LTD             ,29-Dec-10,3172185,1583.36,
Care & Support (Adults & Children),Older People & Physical Disability,CDX,THIRD PARTY PAYMENTS          ,Homecare Expenditure          ,ALLIED HEALTHCARE GROUP LTD             ,29-Dec-10,3172186,683.92,
Care & Support (Adults & Children),Older People & Physical Disability,CDX,THIRD PARTY PAYMENTS          ,Homecare Expenditure          ,ALLIED HEALTHCARE GROUP LTD             ,29-Dec-10,3172187,832.06,
Care & Support (Adults & Children),Older People & Physical Disability,CDX,THIRD PARTY PAYMENTS          ,Homecare Expenditure          ,ALLIED HEALTHCARE GROUP LTD             ,29-Dec-10,3172193,2408.13,
Care & Support (Adults & Children),Older People & Physical Disability,CDX,THIRD PARTY PAYMENTS          ,Homecare Expenditure          ,ALLIED HEALTHCARE GROUP LTD             ,29-Dec-10,3172195,1253.76,
Care & Support (Adults & Children),Older People & Physical Disability,CDX,THIRD PARTY PAYMENTS          ,Homecare Expenditure          ,ALLIED HEALTHCARE GROUP LTD             ,29-Dec-10,3172197,1509.36,
Care & Support (Adults & Children),Older People & Physical Disability,CDX,THIRD PARTY PAYMENTS          ,Homecare Expenditure          ,ALLIED HEALTHCARE GROUP LTD             ,29-Dec-10,3172198,635.48,
Care & Support (Adults & Children),Older People & Physical Disability,CDX,THIRD PARTY PAYMENTS          ,Homecare Expenditure          ,ALLIED HEALTHCARE GROUP LTD             ,05-Jan-11,3174354,951.49,
Care & Support (Adults & Children),Older People & Physical Disability,CDX,THIRD PARTY PAYMENTS          ,Homecare Expenditure          ,ALLIED HEALTHCARE GROUP LTD             ,05-Jan-11,3174355,547.15,
Care & Support (Adults & Children),Older People & Physical Disability,CDX,THIRD PARTY PAYMENTS          ,Homecare Expenditure          ,ALLIED HEALTHCARE GROUP LTD             ,05-Jan-11,3174356,873.03,
Care & Support (Adults & Children),Older People & Physical Disability,CDX,THIRD PARTY PAYMENTS          ,Homecare Expenditure          ,ALLIED HEALTHCARE GROUP LTD             ,05-Jan-11,3174357,577.82,
Care & Support (Adults & Children),Older People & Physical Disability,CDX,THIRD PARTY PAYMENTS          ,Homecare Expenditure          ,ALLIED HEALTHCARE GROUP LTD             ,15-Dec-10,3175364,962.00,
Care & Support (Adults & Children),Older People & Physical Disability,CDX,THIRD PARTY PAYMENTS          ,Homecare Expenditure          ,CAVENDISH HOMECARE SERVICES LTD         ,30-Dec-10,3166875,710.59,
Care & Support (Adults & Children),Older People & Physical Disability,CDX,THIRD PARTY PAYMENTS          ,Homecare Expenditure          ,CAVENDISH HOMECARE SERVICES LTD         ,30-Dec-10,3167199,563.58,
Care & Support (Adults & Children),Older People & Physical Disability,CDX,THIRD PARTY PAYMENTS          ,Homecare Expenditure          ,CAVENDISH HOMECARE SERVICES LTD         ,30-Dec-10,3167226,730.09,
Care & Support (Adults & Children),Older People & Physical Disability,CDX,THIRD PARTY PAYMENTS          ,Homecare Expenditure          ,CAVENDISH HOMECARE SERVICES LTD         ,30-Dec-10,3167228,778.72,
Care & Support (Adults & Children),Older People & Physical Disability,CDX,THIRD PARTY PAYMENTS          ,Homecare Expenditure          ,CAVENDISH HOMECARE SERVICES LTD         ,04-Jan-11,3169745,726.86,
Care & Support (Adults & Children),Older People & Physical Disability,CDX,THIRD PARTY PAYMENTS          ,Homecare Expenditure          ,CAVENDISH HOMECARE SERVICES LTD         ,04-Jan-11,3169770,935.99,
Care & Support (Adults & Children),Older People & Physical Disability,CDX,THIRD PARTY PAYMENTS          ,Homecare Expenditure          ,CAVENDISH HOMECARE SERVICES LTD         ,04-Jan-11,3169772,998.24,
Care & Support (Adults & Children),Older People & Physical Disability,CDX,THIRD PARTY PAYMENTS          ,Homecare Expenditure          ,CAVENDISH HOMECARE SERVICES LTD         ,04-Jan-11,3169992,902.67,
Care & Support (Adults & Children),Older People & Physical Disability,CDX,THIRD PARTY PAYMENTS          ,Homecare Expenditure          ,CAVENDISH HOMECARE SERVICES LTD         ,04-Jan-11,3169993,572.14,
Care & Support (Adults & Children),Older People & Physical Disability,CDX,THIRD PARTY PAYMENTS          ,Homecare Expenditure          ,CAVENDISH HOMECARE SERVICES LTD         ,10-Jan-11,3173947,829.56,
Care & Support (Adults & Children),Older People & Physical Disability,CDX,THIRD PARTY PAYMENTS          ,Homecare Expenditure          ,CAVENDISH HOMECARE SERVICES LTD         ,10-Jan-11,3173949,888.48,
Care & Support (Adults & Children),Older People & Physical Disability,CDX,THIRD PARTY PAYMENTS          ,Homecare Expenditure          ,CAVENDISH HOMECARE SERVICES LTD         ,10-Jan-11,3173951,555.32,
Care & Support (Adults & Children),Older People & Physical Disability,CDX,THIRD PARTY PAYMENTS          ,Homecare Expenditure          ,CAVENDISH HOMECARE SERVICES LTD         ,10-Jan-11,3173995,646.94,
Care & Support (Adults & Children),Older People & Physical Disability,CDX,THIRD PARTY PAYMENTS          ,Homecare Expenditure          ,CAVENDISH HOMECARE SERVICES LTD         ,10-Jan-11,3174021,801.35,
Care & Support (Adults & Children),Older People & Physical Disability,CDX,THIRD PARTY PAYMENTS          ,Homecare Expenditure          ,CAVENDISH HOMECARE SERVICES LTD         ,10-Jan-11,3174022,508.41,
Care & Support (Adults & Children),Older People & Physical Disability,CDX,THIRD PARTY PAYMENTS          ,Homecare Expenditure          ,CAVENDISH HOMECARE SERVICES LTD         ,18-Jan-11,3177489,730.18,
Care & Support (Adults & Children),Older People & Physical Disability,CDX,THIRD PARTY PAYMENTS          ,Homecare Expenditure          ,CAVENDISH HOMECARE SERVICES LTD         ,18-Jan-11,3177491,778.72,
Care & Support (Adults & Children),Older People & Physical Disability,CDX,THIRD PARTY PAYMENTS          ,Homecare Expenditure          ,CAVENDISH HOMECARE SERVICES LTD         ,18-Jan-11,3177873,575.72,
Care & Support (Adults & Children),Older People & Physical Disability,CDX,THIRD PARTY PAYMENTS          ,Homecare Expenditure          ,CAVENDISH HOMECARE SERVICES LTD         ,18-Jan-11,3177877,710.59,
Care & Support (Adults & Children),Older People & Physical Disability,CDX,THIRD PARTY PAYMENTS          ,Homecare Expenditure          ,CAVENDISH HOMECARE SERVICES LTD         ,24-Jan-11,3179529,675.09,
Care & Support (Adults & Children),Older People & Physical Disability,CDX,THIRD PARTY PAYMENTS          ,Homecare Expenditure          ,CAVENDISH HOMECARE SERVICES LTD         ,24-Jan-11,3179530,726.50,
Care & Support (Adults & Children),Older People & Physical Disability,CDX,THIRD PARTY PAYMENTS          ,Homecare Expenditure          ,CAVENDISH HOMECARE SERVICES LTD         ,24-Jan-11,3179532,778.07,
Care & Support (Adults & Children),Older People & Physical Disability,CDX,THIRD PARTY PAYMENTS          ,Homecare Expenditure          ,CAVENDISH HOMECARE SERVICES LTD         ,24-Jan-11,3179536,588.37,
Care & Support (Adults & Children),Older People & Physical Disability,CDX,THIRD PARTY PAYMENTS          ,Homecare Expenditure          ,CAVENDISH HOMECARE SERVICES LTD         ,24-Jan-11,3180070,710.59,
Care & Support (Adults & Children),Older People & Physical Disability,CDX,THIRD PARTY PAYMENTS          ,Homecare Expenditure          ,CAVENDISH HOMECARE SERVICES LTD         ,24-Jan-11,3180074,631.62,
Care & Support (Adults & Children),Older People & Physical Disability,CDX,THIRD PARTY PAYMENTS          ,Homecare Expenditure          ,CAVENDISH HOMECARE SERVICES LTD         ,24-Jan-11,3180075,509.27,
Care & Support (Adults & Children),Older People & Physical Disability,CDX,THIRD PARTY PAYMENTS          ,Homecare Expenditure          ,COMPLETE CARE HOLDINGS LTD              ,31-Dec-10,3175796,2471.01,
Care & Support (Adults & Children),Older People & Physical Disability,CDX,THIRD PARTY PAYMENTS          ,Homecare Expenditure          ,HEALTH CARE EVENTS & CONFERENCES        ,06-Jan-11,3174009,1187.25,
Care & Support (Adults & Children),Older People & Physical Disability,CDX,THIRD PARTY PAYMENTS          ,Homecare Expenditure          ,HEALTH CARE EVENTS & CONFERENCES        ,06-Jan-11,3174010,1077.64,
Care & Support (Adults & Children),Older People & Physical Disability,CDX,THIRD PARTY PAYMENTS          ,Homecare Expenditure          ,HEALTH CARE EVENTS & CONFERENCES        ,06-Jan-11,3174011,3343.17,
Care & Support (Adults & Children),Older People & Physical Disability,CDX,THIRD PARTY PAYMENTS          ,Homecare Expenditure          ,HEALTH CARE EVENTS & CONFERENCES        ,06-Jan-11,3174012,2276.34,
Care & Support (Adults & Children),Older People & Physical Disability,CDX,THIRD PARTY PAYMENTS          ,Homecare Expenditure          ,HEALTH CARE EVENTS & CONFERENCES        ,06-Jan-11,3174013,1886.07,
Care & Support (Adults & Children),Older People & Physical Disability,CDX,THIRD PARTY PAYMENTS          ,Homecare Expenditure          ,PARADIGM HEALTH & SOCIAL CARE LTD   ,29-Dec-10,3175785,899.45,
Care & Support (Adults & Children),Older People & Physical Disability,CDX,THIRD PARTY PAYMENTS          ,Homecare Expenditure          ,PARADIGM HEALTH & SOCIAL CARE LTD   ,17-Jan-11,3178644,928.50,
Care & Support (Adults & Children),Older People & Physical Disability,CDX,THIRD PARTY PAYMENTS          ,Homecare Expenditure          ,PEACE OF MIND HOMECARE LIMITED          ,30-Dec-10,3168264,2577.92,
Care & Support (Adults & Children),Older People & Physical Disability,CDX,THIRD PARTY PAYMENTS          ,Homecare Expenditure          ,PEACE OF MIND HOMECARE LIMITED          ,30-Dec-10,3168265,2394.36,
Care & Support (Adults & Children),Older People & Physical Disability,CDX,THIRD PARTY PAYMENTS          ,Homecare Expenditure          ,PEACE OF MIND HOMECARE LIMITED          ,30-Dec-10,3168266,793.82,
Care & Support (Adults & Children),Older People & Physical Disability,CDX,THIRD PARTY PAYMENTS          ,Homecare Expenditure          ,PEACE OF MIND HOMECARE LIMITED          ,30-Dec-10,3168267,701.04,
Care & Support (Adults & Children),Older People & Physical Disability,CDX,THIRD PARTY PAYMENTS          ,Homecare Expenditure          ,PEACE OF MIND HOMECARE LIMITED          ,30-Dec-10,3168304,1226.60,
Care & Support (Adults & Children),Older People & Physical Disability,CDX,THIRD PARTY PAYMENTS          ,Homecare Expenditure          ,PEACE OF MIND HOMECARE LIMITED          ,30-Dec-10,3168311,781.00,
Care & Support (Adults & Children),Older People & Physical Disability,CDX,THIRD PARTY PAYMENTS          ,Homecare Expenditure          ,PEACE OF MIND HOMECARE LIMITED          ,30-Dec-10,3168366,550.70,
Care & Support (Adults & Children),Older People & Physical Disability,CDX,THIRD PARTY PAYMENTS          ,Homecare Expenditure          ,PEACE OF MIND HOMECARE LIMITED          ,30-Dec-10,3168367,1765.58,
Care & Support (Adults & Children),Older People & Physical Disability,CDX,THIRD PARTY PAYMENTS          ,Homecare Expenditure          ,PEACE OF MIND HOMECARE LIMITED          ,30-Dec-10,3168370,1145.76,
Care & Support (Adults & Children),Older People & Physical Disability,CDX,THIRD PARTY PAYMENTS          ,Homecare Expenditure          ,PEACE OF MIND HOMECARE LIMITED          ,30-Dec-10,3168379,806.56,
Care & Support (Adults & Children),Older People & Physical Disability,CDX,THIRD PARTY PAYMENTS          ,Homecare Expenditure          ,PEACE OF MIND HOMECARE LIMITED          ,30-Dec-10,3168380,702.40,
Care & Support (Adults & Children),Older People & Physical Disability,CDX,THIRD PARTY PAYMENTS          ,Homecare Expenditure          ,PEACE OF MIND HOMECARE LIMITED          ,30-Dec-10,3168381,681.04,
Care & Support (Adults & Children),Older People & Physical Disability,CDX,THIRD PARTY PAYMENTS          ,Homecare Expenditure          ,PEACE OF MIND HOMECARE LIMITED          ,30-Dec-10,3168382,1147.28,
Care & Support (Adults & Children),Older People & Physical Disability,CDX,THIRD PARTY PAYMENTS          ,Homecare Expenditure          ,PEACE OF MIND HOMECARE LIMITED          ,30-Dec-10,3168383,682.72,
Care & Support (Adults & Children),Older People & Physical Disability,CDX,THIRD PARTY PAYMENTS          ,Homecare Expenditure          ,PEACE OF MIND HOMECARE LIMITED          ,30-Dec-10,3168481,766.82,
Care & Support (Adults & Children),Older People & Physical Disability,CDX,THIRD PARTY PAYMENTS          ,Homecare Expenditure          ,PEACE OF MIND HOMECARE LIMITED          ,30-Dec-10,3168484,540.64,
Care & Support (Adults & Children),Older People & Physical Disability,CDX,THIRD PARTY PAYMENTS          ,Homecare Expenditure          ,PEACE OF MIND HOMECARE LIMITED          ,30-Dec-10,3168485,701.04,
Care & Support (Adults & Children),Older People & Physical Disability,CDX,THIRD PARTY PAYMENTS          ,Homecare Expenditure          ,PEACE OF MIND HOMECARE LIMITED          ,30-Dec-10,3168488,960.32,
Care & Support (Adults & Children),Older People & Physical Disability,CDX,THIRD PARTY PAYMENTS          ,Homecare Expenditure          ,PEACE OF MIND HOMECARE LIMITED          ,30-Dec-10,3168562,1613.12,
Care & Support (Adults & Children),Older People & Physical Disability,CDX,THIRD PARTY PAYMENTS          ,Homecare Expenditure          ,PEACE OF MIND HOMECARE LIMITED          ,30-Dec-10,3168569,518.40,
Care & Support (Adults & Children),Older People & Physical Disability,CDX,THIRD PARTY PAYMENTS          ,Homecare Expenditure          ,PEACE OF MIND HOMECARE LIMITED          ,30-Dec-10,3168570,506.54,
Care & Support (Adults & Children),Older People & Physical Disability,CDX,THIRD PARTY PAYMENTS          ,Homecare Expenditure          ,PHOENIX CARE PARTNERS                   ,06-Jan-11,3174079,1722.41,
Care & Support (Adults & Children),Older People & Physical Disability,CDX,THIRD PARTY PAYMENTS          ,Homecare Expenditure          ,PHOENIX CARE PARTNERS                   ,06-Jan-11,3174080,685.12,
Care & Support (Adults & Children),Older People & Physical Disability,CDX,THIRD PARTY PAYMENTS          ,Homecare Expenditure          ,PHOENIX CARE PARTNERS                   ,06-Jan-11,3174082,577.83,
Care & Support (Adults & Children),Older People & Physical Disability,CDX,THIRD PARTY PAYMENTS          ,Homecare Expenditure          ,PHOENIX CARE PARTNERS                   ,06-Jan-11,3174083,691.47,
Care & Support (Adults & Children),Older People & Physical Disability,CDX,THIRD PARTY PAYMENTS          ,Homecare Expenditure          ,PHOENIX CARE PARTNERS                   ,06-Jan-11,3174105,1243.23,
Care & Support (Adults & Children),Older People & Physical Disability,CDX,THIRD PARTY PAYMENTS          ,Homecare Expenditure          ,PHOENIX CARE PARTNERS                   ,06-Jan-11,3174106,1372.01,
Care & Support (Adults & Children),Older People & Physical Disability,CDX,THIRD PARTY PAYMENTS          ,Homecare Expenditure          ,PHOENIX CARE PARTNERS                   ,06-Jan-11,3174107,695.14,
Care & Support (Adults & Children),Older People & Physical Disability,CDX,THIRD PARTY PAYMENTS          ,Homecare Expenditure          ,PHOENIX CARE PARTNERS                   ,06-Jan-11,3174111,1259.83,
Care & Support (Adults & Children),Older People & Physical Disability,CDX,THIRD PARTY PAYMENTS          ,Homecare Expenditure          ,PHOENIX CARE PARTNERS                   ,06-Jan-11,3174113,894.54,
Care & Support (Adults & Children),Older People & Physical Disability,CDX,THIRD PARTY PAYMENTS          ,Homecare Expenditure          ,PHOENIX CARE PARTNERS                   ,06-Jan-11,3174115,867.39,
Care & Support (Adults & Children),Older People & Physical Disability,CDX,THIRD PARTY PAYMENTS          ,Homecare Expenditure          ,PHOENIX CARE PARTNERS                   ,06-Jan-11,3174116,554.64,
Care & Support (Adults & Children),Older People & Physical Disability,CDX,THIRD PARTY PAYMENTS          ,Homecare Expenditure          ,PHOENIX CARE PARTNERS                   ,06-Jan-11,3174117,872.22,
Care & Support (Adults & Children),Older People & Physical Disability,CDX,THIRD PARTY PAYMENTS          ,Homecare Expenditure          ,PHOENIX CARE PARTNERS                   ,06-Jan-11,3174374,2752.48,
Care & Support (Adults & Children),Older People & Physical Disability,CDX,THIRD PARTY PAYMENTS          ,Homecare Expenditure          ,PHOENIX CARE PARTNERS                   ,06-Jan-11,3174376,1110.07,
Care & Support (Adults & Children),Older People & Physical Disability,CDX,THIRD PARTY PAYMENTS          ,Homecare Expenditure          ,PHOENIX CARE PARTNERS                   ,06-Jan-11,3174377,803.18,
Care & Support (Adults & Children),Older People & Physical Disability,CDX,THIRD PARTY PAYMENTS          ,Homecare Expenditure          ,PRIORITY CARE                           ,13-Dec-10,3180042,984.29,
Care & Support (Adults & Children),Older People & Physical Disability,CDX,THIRD PARTY PAYMENTS          ,Homecare Expenditure          ,PRIORITY CARE                           ,13-Dec-10,3180043,2963.04,
Care & Support (Adults & Children),Older People & Physical Disability,CDX,THIRD PARTY PAYMENTS          ,Homecare Expenditure          ,PRIORITY CARE                           ,13-Dec-10,3180052,583.00,
Care & Support (Adults & Children),Older People & Physical Disability,CDX,THIRD PARTY PAYMENTS          ,Homecare Expenditure          ,PRIORITY CARE                           ,13-Dec-10,3180117,506.62,
Care & Support (Adults & Children),Older People & Physical Disability,CDX,THIRD PARTY PAYMENTS          ,Homecare Expenditure          ,PRIORITY CARE                           ,10-Jan-11,3180118,556.14,
Care & Support (Adults & Children),Older People & Physical Disability,CDX,THIRD PARTY PAYMENTS          ,Homecare Expenditure          ,PRIORITY CARE                           ,10-Jan-11,3181055,2769.56,
Care & Support (Adults & Children),Older People & Physical Disability,CDX,THIRD PARTY PAYMENTS          ,Homecare Expenditure          ,PRIORITY CARE                           ,10-Jan-11,3181059,3033.84,
Care & Support (Adults & Children),Older People & Physical Disability,CDX,THIRD PARTY PAYMENTS          ,Homecare Expenditure          ,PRIORITY CARE                           ,10-Jan-11,3181061,1002.15,
Care & Support (Adults & Children),Older People & Physical Disability,CDX,THIRD PARTY PAYMENTS          ,Homecare Expenditure          ,PRIORITY CARE                           ,10-Jan-11,3181090,579.70,
Care & Support (Adults & Children),Older People & Physical Disability,CDX,THIRD PARTY PAYMENTS          ,Homecare Expenditure          ,PRIORITY CARE                           ,10-Jan-11,3181094,506.74,
Care & Support (Adults & Children),Older People & Physical Disability,CDX,THIRD PARTY PAYMENTS          ,Homecare Expenditure          ,PRIORITY CARE                           ,10-Jan-11,3181095,523.86,
Care & Support (Adults & Children),Older People & Physical Disability,CDX,THIRD PARTY PAYMENTS          ,Homecare Expenditure          ,PRIORITY CARE                           ,10-Jan-11,3181096,828.25,
Care & Support (Adults & Children),Older People & Physical Disability,CDX,THIRD PARTY PAYMENTS          ,Homecare Expenditure          ,PRIORITY CARE                           ,10-Jan-11,3181097,833.77,
Care & Support (Adults & Children),Older People & Physical Disability,CDX,THIRD PARTY PAYMENTS          ,Homecare Expenditure          ,PRIORITY CARE                           ,10-Jan-11,3181099,952.42,
Care & Support (Adults & Children),Older People & Physical Disability,CDX,THIRD PARTY PAYMENTS          ,Homecare Expenditure          ,PRIORITY CARE                           ,10-Jan-11,3181101,817.86,
Care & Support (Adults & Children),Older People & Physical Disability,CDX,THIRD PARTY PAYMENTS          ,Homecare Expenditure          ,PRIORITY CARE                           ,10-Jan-11,3181638,2171.50,
Care & Support (Adults & Children),Older People & Physical Disability,CDX,THIRD PARTY PAYMENTS          ,Homecare Expenditure          ,PRIORITY CARE                           ,10-Jan-11,3181641,1870.84,
Care & Support (Adults & Children),Older People & Physical Disability,CDX,THIRD PARTY PAYMENTS          ,Homecare Expenditure          ,PRIORITY CARE                           ,10-Jan-11,3181644,693.45,
Care & Support (Adults & Children),Older People & Physical Disability,CDX,THIRD PARTY PAYMENTS          ,Homecare Expenditure          ,PRIORITY CARE                           ,10-Jan-11,3181646,815.72,
Care & Support (Adults & Children),Older People & Physical Disability,CDX,THIRD PARTY PAYMENTS          ,Homecare Expenditure          ,PRIORITY CARE                           ,10-Jan-11,3181667,605.12,
Care & Support (Adults & Children),Older People & Physical Disability,CDX,THIRD PARTY PAYMENTS          ,Homecare Expenditure          ,PRIORITY CARE                           ,10-Jan-11,3181669,704.67,
Care & Support (Adults & Children),Older People & Physical Disability,CDX,THIRD PARTY PAYMENTS          ,Homecare Expenditure          ,PRIORITY CARE                           ,10-Jan-11,3181670,1042.30,
Care & Support (Adults & Children),Older People & Physical Disability,CDX,THIRD PARTY PAYMENTS          ,Homecare Expenditure          ,PRIORITY CARE                           ,10-Jan-11,3181671,2416.40,
Care & Support (Adults & Children),Older People & Physical Disability,CDX,THIRD PARTY PAYMENTS          ,Homecare Expenditure          ,PRIORITY CARE                           ,10-Jan-11,3181673,738.66,
Care & Support (Adults & Children),Older People & Physical Disability,CDX,THIRD PARTY PAYMENTS          ,Homecare Expenditure          ,PRIORITY CARE                           ,10-Jan-11,3181675,594.31,
Care & Support (Adults & Children),Older People & Physical Disability,CDX,THIRD PARTY PAYMENTS          ,Homecare Expenditure          ,PRIORITY CARE                           ,10-Jan-11,3181681,2416.40,
Care & Support (Adults & Children),Older People & Physical Disability,CDX,THIRD PARTY PAYMENTS          ,Homecare Expenditure          ,PRIORITY CARE                           ,10-Jan-11,3181684,1807.08,
Care & Support (Adults & Children),Older People & Physical Disability,CDX,THIRD PARTY PAYMENTS          ,Homecare Expenditure          ,PRIORITY CARE                           ,10-Jan-11,3181686,604.10,
Care & Support (Adults & Children),Older People & Physical Disability,CDX,THIRD PARTY PAYMENTS          ,Homecare Expenditure          ,PRIORITY CARE                           ,10-Jan-11,3181689,918.32,
Care & Support (Adults & Children),Older People & Physical Disability,CDX,THIRD PARTY PAYMENTS          ,Homecare Expenditure          ,PRIORITY CARE                           ,10-Jan-11,3181770,555.72,
Care & Support (Adults & Children),Older People & Physical Disability,CDX,THIRD PARTY PAYMENTS          ,Homecare Expenditure          ,PRIORITY CARE                           ,10-Jan-11,3181772,2923.64,
Care & Support (Adults & Children),Older People & Physical Disability,CDX,THIRD PARTY PAYMENTS          ,Homecare Expenditure          ,PRIORITY CARE                           ,10-Jan-11,3181773,522.30,
Care & Support (Adults & Children),Older People & Physical Disability,CDX,THIRD PARTY PAYMENTS          ,Homecare Expenditure          ,PRIORITY CARE                           ,10-Jan-11,3181774,1796.25,
Care & Support (Adults & Children),Older People & Physical Disability,CDX,THIRD PARTY PAYMENTS          ,Homecare Expenditure          ,PRIORITY CARE                           ,10-Jan-11,3181778,1028.16,
Care & Support (Adults & Children),Older People & Physical Disability,CDX,THIRD PARTY PAYMENTS          ,Homecare Expenditure          ,PRIORITY CARE                           ,10-Jan-11,3182117,-915.06,
Care & Support (Adults & Children),Older People & Physical Disability,CDX,THIRD PARTY PAYMENTS          ,Homecare Expenditure          ,SEVA CARE (UK) LIMITED                  ,29-Dec-10,3167261,1155.04,
Care & Support (Adults & Children),Older People & Physical Disability,CDX,THIRD PARTY PAYMENTS          ,Homecare Expenditure          ,SEVA CARE (UK) LIMITED                  ,29-Dec-10,3167264,1143.20,
Care & Support (Adults & Children),Older People & Physical Disability,CDX,THIRD PARTY PAYMENTS          ,Homecare Expenditure          ,SEVA CARE (UK) LIMITED                  ,29-Dec-10,3167266,923.50,
Care & Support (Adults & Children),Older People & Physical Disability,CDX,THIRD PARTY PAYMENTS          ,Homecare Expenditure          ,SEVA CARE (UK) LIMITED                  ,29-Dec-10,3167267,520.17,
Care & Support (Adults & Children),Older People & Physical Disability,CDX,THIRD PARTY PAYMENTS          ,Homecare Expenditure          ,SEVA CARE (UK) LIMITED                  ,29-Dec-10,3167268,585.74,
Care & Support (Adults & Children),Older People & Physical Disability,CDX,THIRD PARTY PAYMENTS          ,Homecare Expenditure          ,SEVA CARE (UK) LIMITED                  ,29-Dec-10,3167269,560.43,
Care & Support (Adults & Children),Older People & Physical Disability,CDX,THIRD PARTY PAYMENTS          ,Homecare Expenditure          ,SEVA CARE (UK) LIMITED                  ,29-Dec-10,3167271,741.80,
Care & Support (Adults & Children),Older People & Physical Disability,CDX,THIRD PARTY PAYMENTS          ,Homecare Expenditure          ,SEVA CARE (UK) LIMITED                  ,29-Dec-10,3167277,693.60,
Care & Support (Adults & Children),Older People & Physical Disability,CDX,THIRD PARTY PAYMENTS          ,Homecare Expenditure          ,SEVA CARE (UK) LIMITED                  ,29-Dec-10,3167278,2001.46,
Care & Support (Adults & Children),Older People & Physical Disability,CDX,THIRD PARTY PAYMENTS          ,Homecare Expenditure          ,SEVA CARE (UK) LIMITED                  ,29-Dec-10,3167280,1251.42,
Care & Support (Adults & Children),Older People & Physical Disability,CDX,THIRD PARTY PAYMENTS          ,Homecare Expenditure          ,SEVA CARE (UK) LIMITED                  ,29-Dec-10,3167281,968.12,
Care & Support (Adults & Children),Older People & Physical Disability,CDX,THIRD PARTY PAYMENTS          ,Homecare Expenditure          ,SEVA CARE (UK) LIMITED                  ,29-Dec-10,3167282,575.92,
Care & Support (Adults & Children),Older People & Physical Disability,CDX,THIRD PARTY PAYMENTS          ,Homecare Expenditure          ,SEVA CARE (UK) LIMITED                  ,29-Dec-10,3167309,670.09,
Care & Support (Adults & Children),Older People & Physical Disability,CDX,THIRD PARTY PAYMENTS          ,Homecare Expenditure          ,SEVA CARE (UK) LIMITED                  ,29-Dec-10,3167310,848.34,
Care & Support (Adults & Children),Older People & Physical Disability,CDX,THIRD PARTY PAYMENTS          ,Homecare Expenditure          ,SEVA CARE (UK) LIMITED                  ,29-Dec-10,3167314,881.32,
Care & Support (Adults & Children),Older People & Physical Disability,CDX,THIRD PARTY PAYMENTS          ,Homecare Expenditure          ,SEVA CARE (UK) LIMITED                  ,29-Dec-10,3167315,1004.66,
Care & Support (Adults & Children),Older People & Physical Disability,CDX,THIRD PARTY PAYMENTS          ,Homecare Expenditure          ,SEVA CARE (UK) LIMITED                  ,29-Dec-10,3167858,1048.14,
Care & Support (Adults & Children),Older People & Physical Disability,CDX,THIRD PARTY PAYMENTS          ,Homecare Expenditure          ,SEVA CARE (UK) LIMITED                  ,29-Dec-10,3167860,2036.55,
Care & Support (Adults & Children),Older People & Physical Disability,CDX,THIRD PARTY PAYMENTS          ,Homecare Expenditure          ,SEVA CARE (UK) LIMITED                  ,29-Dec-10,3167862,2045.03,
Care & Support (Adults & Children),Older People & Physical Disability,CDX,THIRD PARTY PAYMENTS          ,Homecare Expenditure          ,SEVA CARE (UK) LIMITED                  ,29-Dec-10,3167863,2267.47,
Care & Support (Adults & Children),Older People & Physical Disability,CDX,THIRD PARTY PAYMENTS          ,Homecare Expenditure          ,SEVA CARE (UK) LIMITED                  ,29-Dec-10,3167864,913.34,
Care & Support (Adults & Children),Older People & Physical Disability,CDX,THIRD PARTY PAYMENTS          ,Homecare Expenditure          ,SUPREME HOME CARE                       ,03-Jan-11,3168718,656.98,
Care & Support (Adults & Children),Older People & Physical Disability,CDX,THIRD PARTY PAYMENTS          ,Homecare Expenditure          ,SUPREME HOME CARE                       ,03-Jan-11,3168719,532.76,
Care & Support (Adults & Children),Older People & Physical Disability,CDX,THIRD PARTY PAYMENTS          ,Homecare Expenditure          ,SUPREME HOME CARE                       ,03-Jan-11,3168721,1495.16,
Care & Support (Adults & Children),Older People & Physical Disability,CDX,THIRD PARTY PAYMENTS          ,Homecare Expenditure          ,SUPREME HOME CARE                       ,03-Jan-11,3168724,630.00,
Care & Support (Adults & Children),Older People & Physical Disability,CDX,THIRD PARTY PAYMENTS          ,Homecare Expenditure          ,SUPREME HOME CARE                       ,03-Jan-11,3168725,905.89,
Care & Support (Adults & Children),Older People & Physical Disability,CDX,THIRD PARTY PAYMENTS          ,Homecare Expenditure          ,SUPREME HOME CARE                       ,03-Jan-11,3168727,746.15,
Care & Support (Adults & Children),Older People & Physical Disability,CDX,THIRD PARTY PAYMENTS          ,Homecare Expenditure          ,SUPREME HOME CARE                       ,03-Jan-11,3169195,564.01,
Care & Support (Adults & Children),Older People & Physical Disability,CDX,THIRD PARTY PAYMENTS          ,Homecare Expenditure          ,SUPREME HOME CARE                       ,03-Jan-11,3169196,582.80,
Care & Support (Adults & Children),Older People & Physical Disability,CDX,THIRD PARTY PAYMENTS          ,Homecare Expenditure          ,SUPREME HOME CARE                       ,03-Jan-11,3169197,1835.45,
Care & Support (Adults & Children),Older People & Physical Disability,CDX,THIRD PARTY PAYMENTS          ,Homecare Expenditure          ,SUPREME HOME CARE                       ,03-Jan-11,3169199,1846.35,
Care & Support (Adults & Children),Older People & Physical Disability,CDX,THIRD PARTY PAYMENTS          ,Homecare Expenditure          ,SUPREME HOME CARE                       ,03-Jan-11,3169201,961.52,
Care & Support (Adults & Children),Older People & Physical Disability,CDX,THIRD PARTY PAYMENTS          ,Homecare Expenditure          ,SUPREME HOME CARE                       ,03-Jan-11,3169202,743.48,
Care & Support (Adults & Children),Older People & Physical Disability,CDX,THIRD PARTY PAYMENTS          ,Homecare Expenditure          ,SUPREME HOME CARE                       ,03-Jan-11,3169203,1804.32,
Care & Support (Adults & Children),Older People & Physical Disability,CDX,THIRD PARTY PAYMENTS          ,Homecare Expenditure          ,SUPREME HOME CARE                       ,03-Jan-11,3169204,1041.43,
Care & Support (Adults & Children),Older People & Physical Disability,CDX,THIRD PARTY PAYMENTS          ,Homecare Expenditure          ,SUPREME HOME CARE                       ,03-Jan-11,3169205,1222.30,
Care & Support (Adults & Children),Older People & Physical Disability,CDX,THIRD PARTY PAYMENTS          ,Homecare Expenditure          ,SUPREME HOME CARE                       ,03-Jan-11,3169206,814.04,
Care & Support (Adults & Children),Older People & Physical Disability,CDX,THIRD PARTY PAYMENTS          ,Homecare Expenditure          ,SUPREME HOME CARE                       ,03-Jan-11,3169207,1156.00,
Care & Support (Adults & Children),Older People & Physical Disability,CDX,THIRD PARTY PAYMENTS          ,Homecare Expenditure          ,SUPREME HOME CARE                       ,03-Jan-11,3169209,848.38,
Care & Support (Adults & Children),Older People & Physical Disability,CDX,THIRD PARTY PAYMENTS          ,Homecare Expenditure          ,SUPREME HOME CARE                       ,03-Jan-11,3169210,1235.74,
Care & Support (Adults & Children),Older People & Physical Disability,CDX,THIRD PARTY PAYMENTS          ,Homecare Expenditure          ,SUPREME HOME CARE                       ,03-Jan-11,3169211,3090.14,
Care & Support (Adults & Children),Older People & Physical Disability,CDX,THIRD PARTY PAYMENTS          ,Homecare Expenditure          ,SUPREME HOME CARE                       ,03-Jan-11,3169212,1167.71,
Care & Support (Adults & Children),Older People & Physical Disability,CDX,THIRD PARTY PAYMENTS          ,Homecare Expenditure          ,SUPREME HOME CARE                       ,03-Jan-11,3169213,1519.75,
Care & Support (Adults & Children),Older People & Physical Disability,CDX,THIRD PARTY PAYMENTS          ,Homecare Expenditure          ,SUPREME HOME CARE                       ,03-Jan-11,3169214,1199.30,
Care & Support (Adults & Children),Older People & Physical Disability,CDX,THIRD PARTY PAYMENTS          ,Homecare Expenditure          ,SUPREME HOME CARE                       ,03-Jan-11,3169215,1741.52,
Care & Support (Adults & Children),Older People & Physical Disability,CDX,THIRD PARTY PAYMENTS          ,Homecare Expenditure          ,SUPREME HOME CARE                       ,03-Jan-11,3169216,3551.50,
Care & Support (Adults & Children),Older People & Physical Disability,CDX,THIRD PARTY PAYMENTS          ,Homecare Expenditure          ,SUPREME HOME CARE                       ,03-Jan-11,3169217,1643.62,
Care & Support (Adults & Children),Older People & Physical Disability,CDX,THIRD PARTY PAYMENTS          ,Homecare Expenditure          ,SUPREME HOME CARE                       ,03-Jan-11,3169218,637.87,
Care & Support (Adults & Children),Older People & Physical Disability,CDX,THIRD PARTY PAYMENTS          ,Homecare Expenditure          ,SUPREME HOME CARE                       ,03-Jan-11,3169219,634.19,
Care & Support (Adults & Children),Older People & Physical Disability,CDX,THIRD PARTY PAYMENTS          ,Homecare Expenditure          ,SUPREME HOME CARE                       ,03-Jan-11,3169220,544.76,
Care & Support (Adults & Children),Older People & Physical Disability,CDX,THIRD PARTY PAYMENTS          ,Homecare Expenditure          ,SUPREME HOME CARE                       ,03-Jan-11,3169221,824.63,
Care & Support (Adults & Children),Older People & Physical Disability,CDX,THIRD PARTY PAYMENTS          ,Homecare Expenditure          ,SUPREME HOME CARE                       ,03-Jan-11,3169223,603.41,
Care & Support (Adults & Children),Older People & Physical Disability,CDX,THIRD PARTY PAYMENTS          ,Homecare Expenditure          ,SUPREME HOME CARE                       ,03-Jan-11,3169227,785.17,
Care & Support (Adults & Children),Older People & Physical Disability,CDX,THIRD PARTY PAYMENTS          ,Homecare Expenditure          ,SUPREME HOME CARE                       ,03-Jan-11,3169228,876.64,
Care & Support (Adults & Children),Older People & Physical Disability,CDX,THIRD PARTY PAYMENTS          ,Homecare Expenditure          ,SUPREME HOME CARE                       ,03-Jan-11,3169230,1127.56,
Care & Support (Adults & Children),Older People & Physical Disability,CDX,THIRD PARTY PAYMENTS          ,Homecare Expenditure          ,SUPREME HOME CARE                       ,03-Jan-11,3169231,1243.03,
Care & Support (Adults & Children),Older People & Physical Disability,CDX,THIRD PARTY PAYMENTS          ,Homecare Expenditure          ,SUPREME HOME CARE                       ,03-Jan-11,3169232,992.92,
Care & Support (Adults & Children),Older People & Physical Disability,CDX,THIRD PARTY PAYMENTS          ,Homecare Expenditure          ,SUPREME HOME CARE                       ,03-Jan-11,3169233,1433.18,
Care & Support (Adults & Children),Older People & Physical Disability,CDX,THIRD PARTY PAYMENTS          ,Homecare Expenditure          ,SUPREME HOME CARE                       ,03-Jan-11,3169234,1520.44,
Care & Support (Adults & Children),Older People & Physical Disability,CDX,THIRD PARTY PAYMENTS          ,Homecare Expenditure          ,TENDER CARE                             ,10-Jan-11,3177170,535.84,
Care & Support (Adults & Children),Older People & Physical Disability,CDX,THIRD PARTY PAYMENTS          ,Homecare Expenditure          ,TENDER CARE                             ,10-Jan-11,3177173,793.96,
Care & Support (Adults & Children),Older People & Physical Disability,CDX,THIRD PARTY PAYMENTS          ,Homecare Expenditure          ,TENDER CARE                             ,10-Jan-11,3177208,1084.08,
Care & Support (Adults & Children),Older People & Physical Disability,CDX,THIRD PARTY PAYMENTS          ,Homecare Expenditure          ,TENDER CARE                             ,10-Jan-11,3177209,507.32,
Care & Support (Adults & Children),Older People & Physical Disability,CDX,THIRD PARTY PAYMENTS          ,Homecare Expenditure          ,TENDER CARE                             ,10-Jan-11,3177212,635.38,
Care & Support (Adults & Children),Older People & Physical Disability,CDX,THIRD PARTY PAYMENTS          ,Homecare Expenditure          ,TENDER CARE                             ,10-Jan-11,3177256,602.98,
Care & Support (Adults & Children),Older People & Physical Disability,CDX,THIRD PARTY PAYMENTS          ,Homecare Expenditure          ,TENDER CARE                             ,10-Jan-11,3177259,875.98,
Care & Support (Adults & Children),Older People & Physical Disability,CDX,THIRD PARTY PAYMENTS          ,Homecare Expenditure          ,TENDER CARE                             ,10-Jan-11,3177260,771.34,
Care & Support (Adults & Children),Older People & Physical Disability,CDX,THIRD PARTY PAYMENTS          ,Homecare Expenditure          ,TENDER CARE                             ,10-Jan-11,3177300,550.45,
Care & Support (Adults & Children),Older People & Physical Disability,CDX,THIRD PARTY PAYMENTS          ,Homecare Expenditure          ,TENDER CARE                             ,10-Jan-11,3177302,715.93,
Care & Support (Adults & Children),Older People & Physical Disability,CDX,THIRD PARTY PAYMENTS          ,Homecare Expenditure          ,TENDER CARE                             ,10-Jan-11,3177304,821.78,
Care & Support (Adults & Children),Older People & Physical Disability,CDX,THIRD PARTY PAYMENTS          ,Homecare Expenditure          ,TENDER CARE                             ,10-Jan-11,3177306,911.90,
Care & Support (Adults & Children),Older People & Physical Disability,CDX,THIRD PARTY PAYMENTS          ,Homecare Expenditure          ,WREKIN CARE CO-OPERATIVE LIMITED        ,11-Jan-11,3170558,1028.86,
Care & Support (Adults & Children),Older People & Physical Disability,CDX,THIRD PARTY PAYMENTS          ,Homecare Expenditure          ,WREKIN CARE CO-OPERATIVE LIMITED        ,11-Jan-11,3170559,528.80,
Care & Support (Adults & Children),Older People & Physical Disability,CDX,THIRD PARTY PAYMENTS          ,Homecare Expenditure          ,WREKIN CARE CO-OPERATIVE LIMITED        ,11-Jan-11,3170560,1043.74,
Care & Support (Adults & Children),Older People & Physical Disability,CDX,THIRD PARTY PAYMENTS          ,Homecare Expenditure          ,WREKIN CARE CO-OPERATIVE LIMITED        ,11-Jan-11,3170561,513.83,
Care & Support (Adults & Children),Older People & Physical Disability,CDX,THIRD PARTY PAYMENTS          ,Homecare Expenditure          ,WREKIN CARE CO-OPERATIVE LIMITED        ,11-Jan-11,3170562,1143.62,
Care & Support (Adults & Children),Older People & Physical Disability,CDX,THIRD PARTY PAYMENTS          ,Homecare Expenditure          ,WREKIN CARE CO-OPERATIVE LIMITED        ,11-Jan-11,3170565,690.63,
Care & Support (Adults & Children),Older People & Physical Disability,CDX,THIRD PARTY PAYMENTS          ,Homecare Expenditure          ,WREKIN CARE CO-OPERATIVE LIMITED        ,11-Jan-11,3170566,794.94,
Care & Support (Adults & Children),Older People & Physical Disability,CDX,THIRD PARTY PAYMENTS          ,Homecare Expenditure          ,WREKIN CARE CO-OPERATIVE LIMITED        ,11-Jan-11,3170567,652.11,
Care & Support (Adults & Children),Older People & Physical Disability,CDX,THIRD PARTY PAYMENTS          ,Homecare Expenditure          ,WREKIN CARE CO-OPERATIVE LIMITED        ,11-Jan-11,3170568,1043.54,
Care & Support (Adults & Children),Older People & Physical Disability,CDX,THIRD PARTY PAYMENTS          ,Homecare Expenditure          ,WREKIN CARE CO-OPERATIVE LIMITED        ,11-Jan-11,3170571,1372.96,
Care & Support (Adults & Children),Older People & Physical Disability,CDX,THIRD PARTY PAYMENTS          ,Homecare Expenditure          ,WREKIN CARE CO-OPERATIVE LIMITED        ,11-Jan-11,3170574,1440.37,
Care & Support (Adults & Children),Older People & Physical Disability,CDY,THIRD PARTY PAYMENTS          ,Daycare Expenditure           ,ACCORD HOUSING ASSOCIATION LIMITED      ,23-Dec-10,3177474,19483.20,
Care & Support (Adults & Children),Older People & Physical Disability,CDY,THIRD PARTY PAYMENTS          ,Daycare Expenditure           ,COVERAGE CARE SERVICES LTD              ,01-Dec-10,3177475,13331.10,
Care & Support (Adults & Children),Older People & Physical Disability,CDY,THIRD PARTY PAYMENTS          ,Daycare Expenditure           ,COVERAGE CARE SERVICES LTD              ,01-Jan-11,3177478,13331.10,
Care & Support (Adults & Children),Older People & Physical Disability,CDZ,THIRD PARTY PAYMENTS          ,Homecare Expenditure          ,ACCORD HOUSING ASSOCIATION LIMITED      ,31-Dec-10,3177472,28252.61,
Care & Support (Adults & Children),Older People & Physical Disability,CDZ,THIRD PARTY PAYMENTS          ,Homecare Expenditure          ,ACCORD HOUSING ASSOCIATION LIMITED      ,30-Nov-10,3177473,28252.61,
Care & Support (Adults & Children),Older People & Physical Disability,CDZ,THIRD PARTY PAYMENTS          ,Homecare Expenditure          ,COVERAGE CARE SERVICES LTD              ,30-Nov-10,3177476,42201.46,
Care & Support (Adults & Children),Older People & Physical Disability,CDZ,THIRD PARTY PAYMENTS          ,Homecare Expenditure          ,COVERAGE CARE SERVICES LTD              ,30-Nov-10,3178095,4390.16,
Care & Support (Adults & Children),Older People & Physical Disability,CDZ,THIRD PARTY PAYMENTS          ,Homecare Expenditure          ,COVERAGE CARE SERVICES LTD              ,31-Dec-10,3178097,5487.70,
Care & Support (Adults & Children),Older People & Physical Disability,CDZ,THIRD PARTY PAYMENTS          ,Homecare Expenditure          ,THE EXTRA CARE CHARITABLE TRUST         ,12-Nov-10,3177480,52841.70,
Care & Support (Adults & Children),Older People & Physical Disability,CDZ,THIRD PARTY PAYMENTS          ,Homecare Expenditure          ,THE EXTRA CARE CHARITABLE TRUST         ,10-Dec-10,3177481,43023.47,
Care & Support (Adults & Children),Older People & Physical Disability,CDZ,THIRD PARTY PAYMENTS          ,Homecare Expenditure          ,THE EXTRA CARE CHARITABLE TRUST         ,12-Nov-10,3180171,-1675.54,
Care & Support (Adults & Children),Older People & Physical Disability,CEG,THIRD PARTY PAYMENTS          ,Daycare Expenditure           ,BRIDGE HOUSE CARE LTD                   ,30-Dec-10,3178190,587.78,
Care & Support (Adults & Children),Older People & Physical Disability,CEG,THIRD PARTY PAYMENTS          ,Daycare Expenditure           ,BRIDGE HOUSE CARE LTD                   ,30-Dec-10,3178191,559.80,
Care & Support (Adults & Children),Older People & Physical Disability,CEG,THIRD PARTY PAYMENTS          ,Daycare Expenditure           ,BRIDGE HOUSE CARE LTD                   ,30-Nov-10,3178222,1127.02,
Care & Support (Adults & Children),Older People & Physical Disability,CEG,THIRD PARTY PAYMENTS          ,Daycare Expenditure           ,BRIDGE HOUSE CARE LTD                   ,30-Nov-10,3178224,606.45,
Care & Support (Adults & Children),Older People & Physical Disability,CEG,THIRD PARTY PAYMENTS          ,Daycare Expenditure           ,BRIDGE HOUSE CARE LTD                   ,30-Nov-10,3178225,606.45,
Care & Support (Adults & Children),Older People & Physical Disability,CEG,THIRD PARTY PAYMENTS          ,Daycare Expenditure           ,NEWPORT COTTAGE CARE CENTRE             ,04-Jan-11,3170557,1414.85,
Care & Support (Adults & Children),Older People & Physical Disability,CEG,THIRD PARTY PAYMENTS          ,Daycare Expenditure           ,WELLINGTON & DISTRICT COTTAGE HOSPITAL  ,13-Jan-11,3174023,6279.27,
Care & Support (Adults & Children),Older People & Physical Disability,CEG,THIRD PARTY PAYMENTS          ,Health Funded Services        ,BRIDGE HOUSE CARE LTD                   ,30-Dec-10,3178189,1400.00,
Care & Support (Adults & Children),Older People & Physical Disability,CEG,THIRD PARTY PAYMENTS          ,Health Funded Services        ,BRIDGE HOUSE CARE LTD                   ,30-Nov-10,3178223,1540.00,
Care & Support (Adults & Children),Older People & Physical Disability,CEG,THIRD PARTY PAYMENTS          ,Health Funded Services        ,WELLINGTON & DISTRICT COTTAGE HOSPITAL  ,13-Jan-11,3174023,614.70,
Care & Support (Adults & Children),Older People & Physical Disability,CEP,SUPPLIES & SERVICES           ,Purchased Meals               ,COVERAGE CARE SERVICES LTD              ,31-Dec-10,3177264,2856.32,
Care & Support (Adults & Children),Older People & Physical Disability,CEP,SUPPLIES & SERVICES           ,Purchased Meals               ,COVERAGE CARE SERVICES LTD              ,30-Nov-10,3178094,3195.49,
Care & Support (Adults & Children),Older People & Physical Disability,CER,CURRENT LIABILITIES           ,Care Payments                      ,COVERAGE CARE SERVICES LTD              ,01-Dec-10,3177477,13659.93,
Care & Support (Adults & Children),Older People & Physical Disability,CER,CURRENT LIABILITIES           ,Care Payments                      ,COVERAGE CARE SERVICES LTD              ,01-Jan-11,3177479,13659.93,
Care & Support (Adults & Children),Older People & Physical Disability,CFD,THIRD PARTY PAYMENTS          ,Daycare Expenditure           ,HEADWAY SHROPSHIRE                      ,10-Jan-11,3176258,674.12,
Care & Support (Adults & Children),Older People & Physical Disability,CFD,THIRD PARTY PAYMENTS          ,Daycare Expenditure           ,WELLINGTON & DISTRICT COTTAGE HOSPITAL  ,13-Jan-11,3174023,1786.69,
Care & Support (Adults & Children),Older People & Physical Disability,CFJ,SUPPLIES & SERVICES           ,Aids & Appliances             ,MANGAR INTERNATIONAL LTD                ,11-Jan-11,3179103,4000.00,
Care & Support (Adults & Children),Older People & Physical Disability,CFJ,SUPPLIES & SERVICES           ,Aids & Appliances             ,MIDEQUIP LTD                            ,17-Dec-10,3171094,1613.00,
Care & Support (Adults & Children),Older People & Physical Disability,CFJ,SUPPLIES & SERVICES           ,Aids & Appliances             ,TRAVIS PERKINS TRADING CO LIMITED       ,15-Dec-10,3171630,580.00,
Care & Support (Adults & Children),Older People & Physical Disability,CFJ,SUPPLIES & SERVICES           ,Equipment - Repair            ,HANDICARE ACCESSIBILITY LIMITED         ,23-Dec-10,3169869,4870.16,
Care & Support (Adults & Children),Older People & Physical Disability,CFJ,SUPPLIES & SERVICES           ,Equipment - Repair            ,HANDICARE ACCESSIBILITY LIMITED         ,26-Nov-10,3175538,800.00,
Care & Support (Adults & Children),Older People & Physical Disability,CFJ,SUPPLIES & SERVICES           ,Equipment - Repair            ,HANDICARE ACCESSIBILITY LIMITED         ,26-Nov-10,3177538,4808.63,
Care & Support (Adults & Children),Older People & Physical Disability,CFJ,SUPPLIES & SERVICES           ,Equipment - Repair            ,HANDICARE ACCESSIBILITY LIMITED         ,07-Jul-10,3181811,694.00,
Care & Support (Adults & Children),Older People & Physical Disability,CFK,THIRD PARTY PAYMENTS          ,Private Contractors           ,ROYAL NATIONAL INSTITUTE FOR THE BLIND  ,03-Jan-11,3169818,1343.00,
Care & Support (Adults & Children),Older People & Physical Disability,CFL,SUPPLIES & SERVICES           ,Aids & Appliances             ,CONNEVANS LIMITED                       ,04-Jan-11,3170202,638.80,
Care & Support (Adults & Children),Older People & Physical Disability,CFL,SUPPLIES & SERVICES           ,Legal Expenses                ,REDACTED - PERSONAL INFORMATION,08-Sep-10,3180662,996.52,
Care & Support (Adults & Children),Older People & Physical Disability,CFU,THIRD PARTY PAYMENTS          ,Health Funded Services        ,ALLIED HEALTHCARE GROUP LTD             ,29-Dec-10,3171744,1083.69,
Care & Support (Adults & Children),Older People & Physical Disability,CFU,THIRD PARTY PAYMENTS          ,Health Funded Services        ,COMPLETE CARE HOLDINGS LTD              ,31-Dec-10,3175792,3931.20,
Care & Support (Adults & Children),Older People & Physical Disability,CFU,THIRD PARTY PAYMENTS          ,Health Funded Services        ,PEACE OF MIND HOMECARE LIMITED          ,30-Dec-10,3168261,1735.73,
Care & Support (Adults & Children),Older People & Physical Disability,CFU,THIRD PARTY PAYMENTS          ,Health Funded Services        ,PHOENIX CARE PARTNERS                   ,06-Jan-11,3174409,2499.13,
Care & Support (Adults & Children),Older People & Physical Disability,CFU,THIRD PARTY PAYMENTS          ,Health Funded Services        ,PHOENIX CARE PARTNERS                   ,06-Jan-11,3174411,910.18,
Care & Support (Adults & Children),Older People & Physical Disability,CFU,THIRD PARTY PAYMENTS          ,Health Funded Services        ,SEVA CARE (UK) LIMITED                  ,29-Dec-10,3169288,3545.37,
Care & Support (Adults & Children),Older People & Physical Disability,CFU,THIRD PARTY PAYMENTS          ,Health Funded Services        ,SUPREME HOME CARE                       ,03-Jan-11,3168459,2093.40,
Care & Support (Adults & Children),Older People & Physical Disability,CFU,THIRD PARTY PAYMENTS          ,Health Funded Services        ,SUPREME HOME CARE                       ,03-Jan-11,3169251,1437.79,
Care & Support (Adults & Children),Older People & Physical Disability,CFU,THIRD PARTY PAYMENTS          ,Homecare Expenditure          ,ADVANTAGE HEALTHCARE GROUP              ,31-Dec-10,3175786,504.58,
Care & Support (Adults & Children),Older People & Physical Disability,CFU,THIRD PARTY PAYMENTS          ,Homecare Expenditure          ,ADVANTAGE HEALTHCARE GROUP              ,07-Jan-11,3175787,730.42,
Care & Support (Adults & Children),Older People & Physical Disability,CFU,THIRD PARTY PAYMENTS          ,Homecare Expenditure          ,ADVANTAGE HEALTHCARE GROUP              ,14-Jan-11,3175788,530.52,
Care & Support (Adults & Children),Older People & Physical Disability,CFU,THIRD PARTY PAYMENTS          ,Homecare Expenditure          ,ALLIED HEALTHCARE GROUP LTD             ,29-Dec-10,3171739,685.88,
Care & Support (Adults & Children),Older People & Physical Disability,CFU,THIRD PARTY PAYMENTS          ,Homecare Expenditure          ,ALLIED HEALTHCARE GROUP LTD             ,29-Dec-10,3171741,6362.04,
Care & Support (Adults & Children),Older People & Physical Disability,CFU,THIRD PARTY PAYMENTS          ,Homecare Expenditure          ,ALLIED HEALTHCARE GROUP LTD             ,29-Dec-10,3171775,924.73,
Care & Support (Adults & Children),Older People & Physical Disability,CFU,THIRD PARTY PAYMENTS          ,Homecare Expenditure          ,ALLIED HEALTHCARE GROUP LTD             ,05-Jan-11,3174358,511.18,
Care & Support (Adults & Children),Older People & Physical Disability,CFU,THIRD PARTY PAYMENTS          ,Homecare Expenditure          ,ALLIED HEALTHCARE GROUP LTD             ,05-Jan-11,3174359,575.26,
Care & Support (Adults & Children),Older People & Physical Disability,CFU,THIRD PARTY PAYMENTS          ,Homecare Expenditure          ,ALLIED HEALTHCARE GROUP LTD             ,05-Jan-11,3174361,636.51,
Care & Support (Adults & Children),Older People & Physical Disability,CFU,THIRD PARTY PAYMENTS          ,Homecare Expenditure          ,AMG NURSING & CARE SERVICES             ,02-Jan-11,3176368,3591.57,
Care & Support (Adults & Children),Older People & Physical Disability,CFU,THIRD PARTY PAYMENTS          ,Homecare Expenditure          ,CAVENDISH HOMECARE SERVICES LTD         ,30-Dec-10,3166813,543.38,
Care & Support (Adults & Children),Older People & Physical Disability,CFU,THIRD PARTY PAYMENTS          ,Homecare Expenditure          ,CAVENDISH HOMECARE SERVICES LTD         ,04-Jan-11,3170237,702.70,
Care & Support (Adults & Children),Older People & Physical Disability,CFU,THIRD PARTY PAYMENTS          ,Homecare Expenditure          ,CAVENDISH HOMECARE SERVICES LTD         ,10-Jan-11,3173936,616.18,
Care & Support (Adults & Children),Older People & Physical Disability,CFU,THIRD PARTY PAYMENTS          ,Homecare Expenditure          ,CAVENDISH HOMECARE SERVICES LTD         ,18-Jan-11,3177892,554.52,
Care & Support (Adults & Children),Older People & Physical Disability,CFU,THIRD PARTY PAYMENTS          ,Homecare Expenditure          ,CAVENDISH HOMECARE SERVICES LTD         ,24-Jan-11,3179553,519.72,
Care & Support (Adults & Children),Older People & Physical Disability,CFU,THIRD PARTY PAYMENTS          ,Homecare Expenditure          ,HEADWAY SHROPSHIRE                      ,12-Jan-11,3175510,589.50,
Care & Support (Adults & Children),Older People & Physical Disability,CFU,THIRD PARTY PAYMENTS          ,Homecare Expenditure          ,HEADWAY SHROPSHIRE                      ,12-Jan-11,3175511,891.37,
Care & Support (Adults & Children),Older People & Physical Disability,CFU,THIRD PARTY PAYMENTS          ,Homecare Expenditure          ,HEADWAY SHROPSHIRE                      ,12-Jan-11,3175513,536.50,
Care & Support (Adults & Children),Older People & Physical Disability,CFU,THIRD PARTY PAYMENTS          ,Homecare Expenditure          ,PARADIGM HEALTH & SOCIAL CARE LTD   ,17-Jan-11,3178637,1068.95,
Care & Support (Adults & Children),Older People & Physical Disability,CFU,THIRD PARTY PAYMENTS          ,Homecare Expenditure          ,PEACE OF MIND HOMECARE LIMITED          ,30-Dec-10,3168258,778.30,
Care & Support (Adults & Children),Older People & Physical Disability,CFU,THIRD PARTY PAYMENTS          ,Homecare Expenditure          ,PEACE OF MIND HOMECARE LIMITED          ,30-Dec-10,3168259,678.40,
Care & Support (Adults & Children),Older People & Physical Disability,CFU,THIRD PARTY PAYMENTS          ,Homecare Expenditure          ,PHOENIX CARE PARTNERS                   ,06-Jan-11,3174411,910.18,
Care & Support (Adults & Children),Older People & Physical Disability,CFU,THIRD PARTY PAYMENTS          ,Homecare Expenditure          ,PHOENIX CARE PARTNERS                   ,06-Jan-11,3174412,1194.00,
Care & Support (Adults & Children),Older People & Physical Disability,CFU,THIRD PARTY PAYMENTS          ,Homecare Expenditure          ,PHOENIX CARE PARTNERS                   ,06-Jan-11,3174413,675.42,
Care & Support (Adults & Children),Older People & Physical Disability,CFU,THIRD PARTY PAYMENTS          ,Homecare Expenditure          ,PHOENIX CARE PARTNERS                   ,06-Jan-11,3174415,1074.11,
Care & Support (Adults & Children),Older People & Physical Disability,CFU,THIRD PARTY PAYMENTS          ,Homecare Expenditure          ,PRIORITY CARE                           ,10-Jan-11,3181627,2704.82,
Care & Support (Adults & Children),Older People & Physical Disability,CFU,THIRD PARTY PAYMENTS          ,Homecare Expenditure          ,SEVA CARE (UK) LIMITED                  ,29-Dec-10,3169286,682.14,
Care & Support (Adults & Children),Older People & Physical Disability,CFU,THIRD PARTY PAYMENTS          ,Homecare Expenditure          ,SEVA CARE (UK) LIMITED                  ,29-Dec-10,3169287,626.47,
Care & Support (Adults & Children),Older People & Physical Disability,CFU,THIRD PARTY PAYMENTS          ,Homecare Expenditure          ,SEVA CARE (UK) LIMITED                  ,29-Dec-10,3169291,1416.51,
Care & Support (Adults & Children),Older People & Physical Disability,CFU,THIRD PARTY PAYMENTS          ,Homecare Expenditure          ,STERLINGS HOMECARE SERVICES             ,03-Jan-11,3173928,540.32,
Care & Support (Adults & Children),Older People & Physical Disability,CFU,THIRD PARTY PAYMENTS          ,Homecare Expenditure          ,SUPREME HOME CARE                       ,03-Jan-11,3168451,2309.46,
Care & Support (Adults & Children),Older People & Physical Disability,CFU,THIRD PARTY PAYMENTS          ,Homecare Expenditure          ,SUPREME HOME CARE                       ,03-Jan-11,3168452,523.70,
Care & Support (Adults & Children),Older People & Physical Disability,CFU,THIRD PARTY PAYMENTS          ,Homecare Expenditure          ,SUPREME HOME CARE                       ,03-Jan-11,3168458,945.04,
Care & Support (Adults & Children),Older People & Physical Disability,CFU,THIRD PARTY PAYMENTS          ,Homecare Expenditure          ,SUPREME HOME CARE                       ,03-Jan-11,3169246,693.54,
Care & Support (Adults & Children),Older People & Physical Disability,CFU,THIRD PARTY PAYMENTS          ,Homecare Expenditure          ,SUPREME HOME CARE                       ,03-Jan-11,3169248,676.88,
Care & Support (Adults & Children),Older People & Physical Disability,CFU,THIRD PARTY PAYMENTS          ,Homecare Expenditure          ,SUPREME HOME CARE                       ,03-Jan-11,3169255,1018.14,
Care & Support (Adults & Children),Older People & Physical Disability,CFU,THIRD PARTY PAYMENTS          ,Homecare Expenditure          ,SUPREME HOME CARE                       ,03-Jan-11,3169256,714.21,
Care & Support (Adults & Children),Older People & Physical Disability,CFU,THIRD PARTY PAYMENTS          ,Homecare Expenditure          ,SUPREME HOME CARE                       ,03-Jan-11,3169257,1532.62,
Care & Support (Adults & Children),Older People & Physical Disability,CFU,THIRD PARTY PAYMENTS          ,Homecare Expenditure          ,SUPREME HOME CARE                       ,03-Jan-11,3169258,1028.68,
Care & Support (Adults & Children),Older People & Physical Disability,CFU,THIRD PARTY PAYMENTS          ,Homecare Expenditure          ,SUPREME HOME CARE                       ,03-Jan-11,3169260,1521.72,
Care & Support (Adults & Children),Older People & Physical Disability,CFU,THIRD PARTY PAYMENTS          ,Homecare Expenditure          ,SUPREME HOME CARE                       ,03-Jan-11,3169261,1680.49,
Care & Support (Adults & Children),Older People & Physical Disability,CLI,SUPPLIES & SERVICES           ,Agency staff,MEDICONNECT RECRUITMENT LTD             ,07-Jan-11,3178701,618.45,
Care & Support (Adults & Children),Older People & Physical Disability,CLI,THIRD PARTY PAYMENTS          ,Nursing Expenditure           ,MORRIS CARE                             ,01-Jan-11,3173310,79071.43,
Care & Support (Adults & Children),Older People & Physical Disability,CLL,SUPPLIES & SERVICES           ,Agency staff,MEDICONNECT RECRUITMENT LTD             ,17-Dec-10,3167537,748.13,
Care & Support (Adults & Children),Older People & Physical Disability,CLL,SUPPLIES & SERVICES           ,Agency staff,MEDICONNECT RECRUITMENT LTD             ,17-Dec-10,3167538,603.49,
Care & Support (Adults & Children),Older People & Physical Disability,CLV,THIRD PARTY PAYMENTS          ,Residential Expenditure       ,COVERAGE CARE SERVICES LTD              ,01-Jan-11,3178096,5310.90,
Care & Support (Adults & Children),Older People & Physical Disability,CMD,THIRD PARTY PAYMENTS          ,Residential Expenditure       ,COVERAGE CARE SERVICES LTD              ,01-Jan-11,3178096,5310.90,
Care & Support (Adults & Children),Older People & Physical Disability,CMD,THIRD PARTY PAYMENTS          ,Residential Expenditure       ,MORRIS CARE                             ,01-Jan-11,3174430,13837.50,
Corporate Core,Communications & Marketing,GRF,SUPPLIES & SERVICES           ,Advertising                   ,PENNA BARKERS                           ,31-Dec-10,3170066,3239.73,
Corporate Core,Communications & Marketing,GRF,SUPPLIES & SERVICES           ,Advertising                   ,PENNA BARKERS                           ,31-Dec-10,3170067,5083.75,
Corporate Core,Organisational Improvement,CDS,EMPLOYEES                     ,Adults Workforce Development,CARE WORKFORCE DEV PARTNERSHIP          ,15-Dec-10,3179100,26344.31,
Corporate Core,Organisational Improvement,CIE,EMPLOYEES                     ,Alcohol Abuse Courses,DRUGSCOPE                               ,12-Jan-11,3182222,1800.00,
Corporate Core,Organisational Improvement,CIE,EMPLOYEES                     ,Specialist Drug Training,DRUGS EDUCATION TRAINING                ,19-Oct-10,3181985,780.00,
Corporate Core,Organisational Improvement,CIE,EMPLOYEES                     ,Specialist Substance Misuse Training,PIP MASON CONSULTANCY LTD,22-Nov-10,3169735,6000.00,
Corporate Core,Organisational Improvement,CJT,EMPLOYEES                     ,Skills for Care NVQ's,CAREWATCH (MID SHROPSHIRE)              ,15-Dec-10,3179099,3360.00,
Corporate Core,Organisational Improvement,CJT,EMPLOYEES                     ,Skills for Care NVQ's,CAREWATCH (MID SHROPSHIRE)              ,14-Jan-11,3179560,780.00,
Corporate Core,Organisational Improvement,CJW,EMPLOYEES                     ,Social Worker qualification training,UNIVERSITY OF WOLVERHAMPTON             ,12-Jan-11,3177268,3290.00,
Corporate Core,Organisational Improvement,CJW,EMPLOYEES                     ,Social Worker qualification training,UNIVERSITY OF WOLVERHAMPTON             ,12-Jan-11,3177269,3290.00,
Corporate Core,Organisational Improvement,CJW,EMPLOYEES                     ,Social Worker qualification training,UNIVERSITY OF WOLVERHAMPTON             ,12-Jan-11,3178110,3290.00,
Corporate Core,Organisational Improvement,CKE,EMPLOYEES                     ,Practice teaching assessments,HATTON HOLDINGS LIMITED                 ,26-Jan-11,3182140,3264.00,
Corporate Core,Organisational Improvement,CKE,EMPLOYEES                     ,Safeguarding - Investigation training,WEST MERCIA POLICE AUTHORITY            ,18-Jan-11,3181658,1191.00,
Corporate Core,Organisational Improvement,CKE,EMPLOYEES                     ,Specialist mental health training,MENTAL HEALTH TRAINING GROUP            ,08-Sep-10,3181957,574.00,
Corporate Core,Organisational Improvement,CKG,EMPLOYEES                     ,Childminders training,BLITHFIELD SAFETY TRAINING              ,13-Dec-10,3171562,508.00,
Corporate Core,Organisational Improvement,CKG,EMPLOYEES                     ,Children & Families Training,CFBT EDUCATION TRUST                    ,06-Jan-11,3172205,689.56,
Corporate Core,Organisational Improvement,CKG,EMPLOYEES                     ,Children's safeguarding training,THE LUCY FAITHFULL FOUNDATION               ,31-Dec-10,3180736,908.74,
Corporate Core,Organisational Improvement,CKG,EMPLOYEES                     ,Developing Effective Plans for LAC,IN-TRAC                                 ,30-Nov-10,3171932,892.40,
Corporate Core,Organisational Improvement,CKG,SUPPLIES & SERVICES           ,NVQ assessment fees,DEVELOP-MEANT TRAINING CONSULTANTS      ,26-Jan-11,3182313,607.00,
Corporate Core,Organisational Improvement,CKG,SUPPLIES & SERVICES           ,NVQ's for Workforce,CITY & GUILDS                           ,07-Jan-11,3180170,-515.00,
Corporate Core,Organisational Improvement,CKG,SUPPLIES & SERVICES           ,NVQ's for workforce,OCR                                     ,22-Dec-10,3172216,684.00,
Corporate Core,Organisational Improvement,GOD,SUPPLIES & SERVICES           ,Recruitment & Selection Training,WEST MIDS LEADERS BOARD                 ,13-Dec-10,3171038,1100.00,
Corporate Core,Organisational Improvement,GPT,INCOME                        ,NVQ registration,I R R V                                 ,13-Dec-10,3168608,750.00,
Corporate Core,Organisational Improvement,PHS,SUPPLIES & SERVICES           ,Conference Expenses           ,APSE                                    ,27-Oct-10,3173198,507.00,
"Customer, Leisure & Libraries",Arts & Culture,BGW,EMPLOYEES                     ,Arts Awards Training for Students,TRINITY COLLEGE LONDON                  ,10-Jan-11,3171636,660.00,
"Customer, Leisure & Libraries",Arts & Culture,BVX,SUPPLIES & SERVICES           ,Equipment - Purchase          ,NORMANS MUSICAL INSTRUMENTS             ,14-Jan-11,3175444,819.00,
"Customer, Leisure & Libraries",Arts & Culture,LHA,SUPPLIES & SERVICES           ,Advertising                   ,YELL LIMITED                            ,01-Jan-11,3173988,703.50,
"Customer, Leisure & Libraries",Arts & Culture,LHA,PREMISES                      ,Electricity                   ,WEST MERCIA SUPPLIES                    ,22-Dec-10,3170105,1021.25,
"Customer, Leisure & Libraries",Arts & Culture,LHA,PREMISES                      ,Electricity                   ,WEST MERCIA SUPPLIES                    ,17-Jan-11,3179112,2600.00,
"Customer, Leisure & Libraries",Arts & Culture,LHA,PREMISES                      ,Electricity                   ,WEST MERCIA SUPPLIES                    ,17-Jan-11,3179648,671.98,
"Customer, Leisure & Libraries",Arts & Culture,LHA,SUPPLIES & SERVICES           ,Performing Rights Fees        ,THE PERFORMING RIGHT SOCIETY            ,10-Jan-11,3178103,2093.52,
"Customer, Leisure & Libraries",Arts & Culture,LHA,PREMISES                      ,Water Rates                   ,SEVERN TRENT WATER LTD                  ,22-Dec-10,3175504,1673.95,
"Customer, Leisure & Libraries",Arts & Culture,LHC,SUPPLIES & SERVICES           ,Pantomime production costs,PAUL HOLMAN ASSOCIATES LTD              ,03-Jan-11,3168696,14235.09,
"Customer, Leisure & Libraries",Arts & Culture,LHD,SUPPLIES & SERVICES           ,Payment Of Income Collected   ,RELATE SHROPSHIRE & HEREFORDSHIRE LTD   ,13-Nov-10,3169939,2150.50,
"Customer, Leisure & Libraries",Arts & Culture,WCC,SUPPLIES & SERVICES           ,Wet                           ,MOLSON COORS BREWING COMPANY UK LTD     ,21-Dec-10,3171062,1352.06,
"Customer, Leisure & Libraries",Leisure Facilities & Services,BVY,SUPPLIES & SERVICES           ,Provisions                    ,WOODWARD FOODSERVICE LTD                ,14-Jan-11,3173183,574.27,
"Customer, Leisure & Libraries",Leisure Facilities & Services,BVY,SUPPLIES & SERVICES           ,Provisions                    ,WOODWARD FOODSERVICE LTD                ,11-Jan-11,3173184,897.27,
"Customer, Leisure & Libraries",Leisure Facilities & Services,BVY,SUPPLIES & SERVICES           ,Provisions                    ,WOODWARD FOODSERVICE LTD                ,18-Jan-11,3175422,582.64,
"Customer, Leisure & Libraries",Leisure Facilities & Services,BVY,SUPPLIES & SERVICES           ,Provisions                    ,WOODWARD FOODSERVICE LTD                ,25-Jan-11,3180607,738.18,
"Customer, Leisure & Libraries",Leisure Facilities & Services,BVY,TRANSPORT                     ,Vehicle Parts                 ,FURROWS OF TELFORD                      ,16-Dec-10,3166747,734.70,
"Customer, Leisure & Libraries",Leisure Facilities & Services,GYR,CURRENT LIABILITIES           ,Payments to Contractors       ,ADIEN                                   ,07-Dec-10,3170997,2225.00,
"Customer, Leisure & Libraries",Leisure Facilities & Services,LBH,PREMISES                      ,Hire Of Rooms                 ,TELFORD COLLEGE OF ARTS AND TECHNOLOGY  ,22-Dec-10,3168780,510.00,
"Customer, Leisure & Libraries",Leisure Facilities & Services,LBH,PREMISES                      ,Hire Of Rooms                 ,TELFORD COLLEGE OF ARTS AND TECHNOLOGY  ,22-Dec-10,3170036,540.00,
"Customer, Leisure & Libraries",Leisure Facilities & Services,LCD,PREMISES                      ,Electricity                   ,WEST MERCIA SUPPLIES                    ,15-Dec-10,3175505,5930.73,
"Customer, Leisure & Libraries",Leisure Facilities & Services,LCD,PREMISES                      ,Gas                           ,WEST MERCIA SUPPLIES                    ,22-Dec-10,3175506,3986.97,
"Customer, Leisure & Libraries",Leisure Facilities & Services,LDA,PREMISES                      ,Fuel Oil                      ,MIDLANDS WOOD FUEL SUPPLY LTD           ,30-Nov-10,3167577,2800.73,
"Customer, Leisure & Libraries",Leisure Facilities & Services,LDA,PREMISES                      ,Fuel Oil                      ,MIDLANDS WOOD FUEL SUPPLY LTD           ,30-Dec-10,3167578,6229.38,
"Customer, Leisure & Libraries",Leisure Facilities & Services,LDA,PREMISES                      ,Fuel Oil                      ,OAKLEYS FUELS OILS LTD                  ,31-Dec-10,3170776,1366.76,
"Customer, Leisure & Libraries",Leisure Facilities & Services,LDA,PREMISES                      ,Fuel Oil                      ,WEST MERCIA SUPPLIES                    ,07-Dec-10,3167545,1507.00,
"Customer, Leisure & Libraries",Leisure Facilities & Services,LDA,SUPPLIES & SERVICES           ,Furniture - Purchase          ,LEISURE INNOVATIONS LTD                 ,06-Dec-10,3168532,1680.00,
"Customer, Leisure & Libraries",Leisure Facilities & Services,LDA,PREMISES                      ,Water Rates                   ,SEVERN TRENT WATER LTD                  ,22-Dec-10,3167540,2385.31,
"Customer, Leisure & Libraries",Leisure Facilities & Services,LDD,PREMISES                      ,R&M Fixed Plant Other         ,GRANVILLE CONSTRUCTION & MAINTENANCE LTD,29-Dec-10,3173805,698.00,
"Customer, Leisure & Libraries",Leisure Facilities & Services,LDD,SUPPLIES & SERVICES           ,Sport Equip - Purchase        ,SPORTFIX LTD                        ,20-Jan-11,3182078,589.04,
"Customer, Leisure & Libraries",Leisure Facilities & Services,LJA,SUPPLIES & SERVICES           ,Equipment repairs/replacement,HUCK NETTING INSTALLATIONS LTD          ,30-Nov-10,3180827,3236.00,
"Customer, Leisure & Libraries",Leisure Facilities & Services,LJT,SUPPLIES & SERVICES           ,Promotion Expenses            ,PERFECT CIRCLE                          ,22-Dec-10,3173983,2250.00,
"Customer, Leisure & Libraries",Leisure Facilities & Services,LKF,PREMISES                      ,Electricity                   ,WEST MERCIA SUPPLIES                    ,02-Jun-06,3175735,-616.25,
"Customer, Leisure & Libraries",Leisure Facilities & Services,LKF,PREMISES                      ,Electricity                   ,WEST MERCIA SUPPLIES                    ,02-Jun-06,3175772,582.15,
"Customer, Leisure & Libraries",Leisure Facilities & Services,LKF,SUPPLIES & SERVICES           ,Electricity related services                   ,NPOWER LIMITED                          ,08-Dec-10,3171133,579.66,
"Customer, Leisure & Libraries",Leisure Facilities & Services,LKF,PREMISES                      ,Gas                           ,BRITISH GAS BUSINESS                    ,10-Jan-11,3175750,1856.15,
"Customer, Leisure & Libraries",Leisure Facilities & Services,LKF,SUPPLIES & SERVICES           ,Gas services,BRITISH GAS BUSINESS                    ,06-Jan-11,3171041,1326.27,
"Customer, Leisure & Libraries",Leisure Facilities & Services,LKF,SUPPLIES & SERVICES           ,Other Water related services                ,SEVERN TRENT WATER LTD                  ,10-Jan-11,3175758,606.81,
"Customer, Leisure & Libraries",Leisure Facilities & Services,WLD,SUPPLIES & SERVICES           ,Chemicals                     ,BRENNTAG UK LIMITED                     ,20-Dec-10,3170197,620.86,
"Customer, Leisure & Libraries",Leisure Facilities & Services,WLD,PREMISES                      ,Electricity                   ,WEST MERCIA SUPPLIES                    ,15-Dec-10,3166861,4525.53,
"Customer, Leisure & Libraries",Leisure Facilities & Services,WLD,PREMISES                      ,Electricity                   ,WEST MERCIA SUPPLIES                    ,14-Jan-11,3179113,4975.83,
"Customer, Leisure & Libraries",Leisure Facilities & Services,WLD,PREMISES                      ,Electricity                   ,WEST MERCIA SUPPLIES                    ,14-Jan-11,3179837,681.34,
"Customer, Leisure & Libraries",Leisure Facilities & Services,WLD,PREMISES                      ,Gas                           ,WEST MERCIA SUPPLIES                    ,22-Dec-10,3170104,2901.82,
"Customer, Leisure & Libraries",Leisure Facilities & Services,WLD,PREMISES                      ,Water Rates                   ,SEVERN TRENT WATER LTD                  ,22-Dec-10,3170782,757.15,
"Customer, Leisure & Libraries",Leisure Facilities & Services,WLD,PREMISES                      ,Water Rates                   ,SEVERN TRENT WATER LTD                  ,11-Jan-11,3179109,1142.22,
"Customer, Leisure & Libraries",Leisure Facilities & Services,WLE,PREMISES                      ,Electricity                   ,WEST MERCIA SUPPLIES                    ,15-Dec-10,3166861,676.23,
"Customer, Leisure & Libraries",Leisure Facilities & Services,WLE,PREMISES                      ,Electricity                   ,WEST MERCIA SUPPLIES                    ,14-Jan-11,3179113,743.52,
"Customer, Leisure & Libraries",Leisure Facilities & Services,WLG,PREMISES                      ,Electricity                   ,WEST MERCIA SUPPLIES                    ,17-Dec-10,3171036,545.96,
"Customer, Leisure & Libraries",Leisure Facilities & Services,WLG,PREMISES                      ,Electricity                   ,WEST MERCIA SUPPLIES                    ,17-Jan-11,3181654,1347.19,
"Customer, Leisure & Libraries",Leisure Facilities & Services,WLG,PREMISES                      ,Gas                           ,WEST MERCIA SUPPLIES                    ,30-Nov-10,3171037,543.12,
"Customer, Leisure & Libraries",Leisure Facilities & Services,WLG,PREMISES                      ,Gas                           ,WEST MERCIA SUPPLIES                    ,22-Dec-10,3173215,1565.57,
"Customer, Leisure & Libraries",Leisure Facilities & Services,WLG,PREMISES                      ,R&M - Electrical              ,LEISURE INNOVATIONS LTD                 ,31-Dec-10,3174099,1144.50,
"Customer, Leisure & Libraries",Leisure Facilities & Services,WLJ,PREMISES                      ,Electricity                   ,WEST MERCIA SUPPLIES                    ,14-Jan-11,3178754,8213.53,
"Customer, Leisure & Libraries",Leisure Facilities & Services,WLJ,PREMISES                      ,Electricity                   ,WEST MERCIA SUPPLIES                    ,15-Dec-10,3178928,9054.22,
"Customer, Leisure & Libraries",Leisure Facilities & Services,WLJ,SUPPLIES & SERVICES           ,Equipment - Purchase          ,ICE-TECH LIMITED                        ,14-Jan-11,3180146,1351.66,
"Customer, Leisure & Libraries",Leisure Facilities & Services,WLJ,PREMISES                      ,Gas                           ,WEST MERCIA SUPPLIES                    ,30-Nov-10,3178929,1480.77,
"Customer, Leisure & Libraries",Leisure Facilities & Services,WLJ,PREMISES                      ,Gas                           ,WEST MERCIA SUPPLIES                    ,22-Dec-10,3178930,1963.46,
"Customer, Leisure & Libraries",Leisure Facilities & Services,WLJ,SUPPLIES & SERVICES           ,Supply of skates,NEW ENGLISH SKATES LTD                  ,22-Dec-10,3170914,713.00,
"Customer, Leisure & Libraries",Leisure Facilities & Services,WLM,SUPPLIES & SERVICES           ,Income Share,TELFORD TIGERS SOCIETY LTD              ,06-Jan-11,3167542,1659.46,
"Customer, Leisure & Libraries",Leisure Facilities & Services,WLM,SUPPLIES & SERVICES           ,Income Share,TELFORD TIGERS SOCIETY LTD              ,18-Jan-11,3173906,1192.29,
"Customer, Leisure & Libraries",Leisure Facilities & Services,WLM,SUPPLIES & SERVICES           ,Income Share,TELFORD TIGERS SOCIETY LTD              ,25-Jan-11,3177946,889.29,
"Customer, Leisure & Libraries",Leisure Facilities & Services,WLM,SUPPLIES & SERVICES           ,Income Share,WILD ROSE LTD                           ,31-Dec-10,3172925,2806.17,
"Customer, Leisure & Libraries",Leisure Facilities & Services,WLR,PREMISES                      ,Electricity                   ,WEST MERCIA SUPPLIES                    ,17-Dec-10,3167543,1194.03,
"Customer, Leisure & Libraries",Leisure Facilities & Services,WLR,PREMISES                      ,Electricity                   ,WEST MERCIA SUPPLIES                    ,17-Dec-10,3167544,1064.40,
"Customer, Leisure & Libraries",Leisure Facilities & Services,WLR,PREMISES                      ,Electricity                   ,WEST MERCIA SUPPLIES                    ,17-Jan-11,3180784,1720.96,
"Customer, Leisure & Libraries",Leisure Facilities & Services,WLR,SUPPLIES & SERVICES           ,Equipment - Hire              ,ING LEASE (UK) LTD                      ,20-Dec-10,3166583,695.40,
"Customer, Leisure & Libraries",Library Services,LLB,EMPLOYEES                     ,Professional Subs             ,CHARTERED INST OF LIBRARY/INFO PROFESSLS,18-Jan-11,3178946,1507.00,
"Customer, Leisure & Libraries",Library Services,LLB,SUPPLIES & SERVICES           ,Promotion Expenses            ,4IMPRINT                                ,20-Dec-10,3167571,1928.00,
"Customer, Leisure & Libraries",Library Services,LLB,SUPPLIES & SERVICES           ,Resources Fund - Libraries    ,AUDIOGO LIMITED                         ,06-Jan-11,3178128,627.38,
"Customer, Leisure & Libraries",Library Services,LLB,SUPPLIES & SERVICES           ,Resources Fund - Libraries    ,BERTRAM LIBRARY SERVICES                ,16-Dec-10,3167446,745.22,
"Customer, Leisure & Libraries",Library Services,LLB,SUPPLIES & SERVICES           ,Resources Fund - Libraries    ,BERTRAM LIBRARY SERVICES                ,15-Dec-10,3167450,505.37,
"Customer, Leisure & Libraries",Library Services,LLB,SUPPLIES & SERVICES           ,Resources Fund - Libraries    ,BERTRAM LIBRARY SERVICES                ,22-Dec-10,3170168,521.80,
"Customer, Leisure & Libraries",Library Services,LLB,SUPPLIES & SERVICES           ,Resources Fund - Libraries    ,BERTRAM LIBRARY SERVICES                ,23-Dec-10,3170172,532.59,
"Customer, Leisure & Libraries",Library Services,LLB,SUPPLIES & SERVICES           ,Resources Fund - Libraries    ,BERTRAM LIBRARY SERVICES                ,13-Jan-10,3174452,748.09,
"Customer, Leisure & Libraries",Library Services,LLB,SUPPLIES & SERVICES           ,Resources Fund - Libraries    ,BERTRAM LIBRARY SERVICES                ,21-Dec-10,3174453,513.92,
"Customer, Leisure & Libraries",Library Services,LLB,SUPPLIES & SERVICES           ,Resources Fund - Libraries    ,BERTRAM LIBRARY SERVICES                ,20-Dec-10,3174458,950.93,
"Customer, Leisure & Libraries",Library Services,LLB,SUPPLIES & SERVICES           ,Resources Fund - Libraries    ,BERTRAM LIBRARY SERVICES                ,12-Jan-11,3178148,651.59,
"Customer, Leisure & Libraries",Library Services,LLB,SUPPLIES & SERVICES           ,Resources Fund - Libraries    ,BERTRAM LIBRARY SERVICES                ,12-Jan-11,3178149,509.96,
"Customer, Leisure & Libraries",Library Services,LLB,SUPPLIES & SERVICES           ,Resources Fund - Libraries    ,CENGAGE LEARNING SERVICES               ,06-Jan-11,3174462,3300.00,
"Customer, Leisure & Libraries",Library Services,LLK,PREMISES                      ,Electricity                   ,WEST MERCIA SUPPLIES                    ,17-Jan-11,3177570,604.69,
"Customer, Leisure & Libraries",Library Services,LLP,PREMISES                      ,Electricity                   ,WEST MERCIA SUPPLIES                    ,24-Sep-10,3167499,885.91,
"Customer, Leisure & Libraries",Library Services,LLP,PREMISES                      ,Electricity                   ,WEST MERCIA SUPPLIES                    ,03-Jan-11,3180180,-769.59,
"Customer, Leisure & Libraries",Library Services,LLP,PREMISES                      ,Gas                           ,WEST MERCIA SUPPLIES                    ,22-Dec-10,3174496,638.06,
"Customer, Leisure & Libraries",Library Services,LLP,PREMISES                      ,Water Rates                   ,SEVERN TRENT WATER LTD                  ,30-Dec-10,3174489,591.18,
"Customer, Leisure & Libraries",Library Services,LLQ,PREMISES                      ,Electricity                   ,WEST MERCIA SUPPLIES                    ,17-Jan-11,3178957,1044.11,
"Customer, Leisure & Libraries",Revenues & Benefits,GRB,SUPPLIES & SERVICES           ,Comp Software (Purch / Hire)  ,NORTHGATE INFORMATION SOLUTIONS UK LTD  ,10-Dec-10,3173263,10000.00,
"Customer, Leisure & Libraries",Revenues & Benefits,GRB,SUPPLIES & SERVICES           ,Postages                      ,ROYAL MAIL GROUP PLC                    ,29-Dec-10,3168242,1469.38,
"Customer, Leisure & Libraries",Revenues & Benefits,GRB,SUPPLIES & SERVICES           ,Postages                      ,ROYAL MAIL GROUP PLC                    ,20-Dec-10,3168243,1948.84,
"Customer, Leisure & Libraries",Revenues & Benefits,GRB,SUPPLIES & SERVICES           ,Postages                      ,ROYAL MAIL GROUP PLC                    ,10-Jan-11,3173957,1773.59,
"Customer, Leisure & Libraries",Revenues & Benefits,GRB,SUPPLIES & SERVICES           ,Postages                      ,ROYAL MAIL GROUP PLC                    ,13-Dec-10,3173958,2565.94,
"Customer, Leisure & Libraries",Revenues & Benefits,GRB,SUPPLIES & SERVICES           ,Postages                      ,ROYAL MAIL GROUP PLC                    ,14-Jan-11,3175848,600.00,
"Customer, Leisure & Libraries",Revenues & Benefits,GRB,SUPPLIES & SERVICES           ,Postages                      ,ROYAL MAIL GROUP PLC                    ,24-Jan-11,3181632,2622.66,
"Customer, Leisure & Libraries",Revenues & Benefits,GRB,SUPPLIES & SERVICES           ,Postages                      ,ROYAL MAIL GROUP PLC                    ,17-Jan-11,3181633,1117.51,
"Customer, Leisure & Libraries",Revenues & Benefits,GRB,EMPLOYEES                     ,Staff Training                ,NORTHGATE INFORMATION SOLUTIONS UK LTD  ,10-Dec-10,3173262,750.00,
"Customer, Leisure & Libraries",Superintendent Registrar,PLC,PREMISES                      ,Grounds Maintenance - Cemeteries,P & W MAINTENANCE CONTRACTING LTD       ,31-Dec-10,3179106,1875.34,
"Customer, Leisure & Libraries",Superintendent Registrar,PLC,PREMISES                      ,Grounds Maintenance - Cemeteries,P & W MAINTENANCE CONTRACTING LTD       ,31-Dec-10,3179107,2980.68,
Economy & Skills,Enterprise & Employment,DMT,CURRENT LIABILITIES           ,Architects Fees,REDACTED - PERSONAL INFORMATION,21-Jan-11,3178825,2890.28,
Economy & Skills,Enterprise & Employment,DNG,CURRENT LIABILITIES           ,Payments to Contractor        ,NEWPORT TOWN COUNCIL                    ,26-Jan-11,3180897,19520.00,
Economy & Skills,Enterprise & Employment,DRD,CURRENT LIABILITIES           ,External Professional Fees    ,JACOBS ENGINEERING UK LTD               ,03-Jan-11,3180162,2574.00,
Economy & Skills,Enterprise & Employment,DRD,CURRENT LIABILITIES           ,Payments to Contractors       ,JACOBS ENGINEERING UK LTD               ,26-Nov-10,3166767,4062.00,
Economy & Skills,Enterprise & Employment,DRD,CURRENT LIABILITIES           ,Payments to Contractors       ,SLR CONSULTING LIMITED                  ,26-Nov-10,3169820,3380.00,
Economy & Skills,Enterprise & Employment,DRJ,CURRENT LIABILITIES           ,Site Investigation            ,ALLIANCE ENVIRONMENT & PLANNING LTD     ,31-Dec-10,3176392,1571.75,
Economy & Skills,Enterprise & Employment,NBE,INCOME                        ,Fees & Charges General        ,DEPT WORK & PENSIONS                    ,17-Nov-10,3171564,7900.00,
Economy & Skills,Enterprise & Employment,NTC,SUPPLIES & SERVICES           ,Re-Print of 2010 Visitors Guide,YARRINGTON LIMITED                      ,24-Dec-10,3174880,2399.50,
Economy & Skills,Enterprise & Employment,NTD,INCOME                        ,Club Membership paid from fee income               ,MADELEY COURT HOTEL                 ,06-Dec-10,3175845,669.23,
Economy & Skills,Enterprise & Employment,NTD,INCOME                        ,Club Membership paid from fee income               ,THE SALVATION ARMY KIP PROJECT          ,26-Jan-11,3178751,1203.31,
Economy & Skills,Enterprise & Employment,NTD,SUPPLIES & SERVICES           ,Equipment - Hire              ,WEST MERCIA SUPPLIES                    ,28-Sep-10,3176350,600.65,
Economy & Skills,Enterprise & Employment,NTE,INCOME                        ,Government Grants             ,INSPIRA CONSULTING LTD                  ,31-Dec-10,3175545,5063.00,
Economy & Skills,Enterprise & Employment,NTE,SUPPLIES & SERVICES           ,Marketing & Publicity         ,SHROPSHIRE CONSTRUCTING EXCELLENCE CLUB ,16-Jan-11,3178835,2000.00,
Economy & Skills,Enterprise & Employment,NTE,SUPPLIES & SERVICES           ,Subscriptions                 ,COSTAR G UK LTD                         ,02-Sep-10,3180143,2185.00,
Economy & Skills,Enterprise & Employment,NTG,SUPPLIES & SERVICES           ,Contribution to Voluntary Body,FAIRSHARE CREDIT UNION LTD              ,24-Jan-11,3179101,52639.43,
Economy & Skills,Lifelong Learning,NLA,SUPPLIES & SERVICES           ,ICT system,NEW COLLEGE                             ,23-Dec-10,3168577,13379.46,
Economy & Skills,Lifelong Learning,NLX,EMPLOYEES                     ,Course Fees                   ,TELFORD COLLEGE OF ARTS AND TECHNOLOGY  ,22-Dec-10,3168580,3500.00,
Economy & Skills,Lifelong Learning,NLX,SUPPLIES & SERVICES           ,Training Courses,RELATE SHROPSHIRE & HEREFORDSHIRE LTD   ,24-Nov-10,3171034,2500.00,
Economy & Skills,Strategic Regeneration & Borough Towns Initiative ,DMZ,CURRENT LIABILITIES           ,Grant Expenditure             ,REDACTED - PERSONAL INFORMATION,21-Jan-11,3178830,8342.50,
Economy & Skills,Strategic Regeneration & Borough Towns Initiative ,DMZ,CURRENT LIABILITIES           ,Grant Expenditure             ,WHITEHALL DEVELOPMENTS LTD              ,19-Jan-11,3175818,14187.15,
Environmental Services,EngineerIng Services,DAM,CURRENT LIABILITIES           ,External Professional Fees    ,JACOBS ENGINEERING UK LTD               ,03-Jan-11,3180162,2988.00,
Environmental Services,EngineerIng Services,DAM,CURRENT LIABILITIES           ,Payments to Contractor        ,K & M CONSTRUCTION LTD                  ,13-Dec-10,3173832,4078.11,
Environmental Services,EngineerIng Services,DAM,CURRENT LIABILITIES           ,Payments to Contractor        ,MARTIN BLOOMER ASSOCIATES               ,10-Dec-10,3168236,1375.00,
Environmental Services,EngineerIng Services,DAM,CURRENT LIABILITIES           ,Payments to Contractor        ,MCPHILLIPS (WELLINGTON) LTD             ,03-Jan-11,3180794,33707.33,
Environmental Services,EngineerIng Services,PNJ,SUPPLIES & SERVICES           ,Other Gas related services                ,BIOGAS TECHNOLOGY LIMITED               ,31-Dec-10,3175647,1988.70,
Environmental Services,EngineerIng Services,PTF,PREMISES                      ,R&M WC Planned                ,FSW IT SOLUTIONS LTD                    ,20-Jan-11,3180145,833.00,
Environmental Services,EngineerIng Services,PTF,PREMISES                      ,R&M WC Planned                ,GW MARINE SYSTEMS                       ,12-Jan-11,3177468,1875.00,
Environmental Services,EngineerIng Services,PTF,PREMISES                      ,R&M WC Planned                ,GW MARINE SYSTEMS                       ,12-Jan-11,3177469,1720.00,
Environmental Services,EngineerIng Services,PTF,PREMISES                      ,R&M WC Planned                ,GW MARINE SYSTEMS LTD                   ,27-Jul-10,3175729,580.00,
Environmental Services,EngineerIng Services,PTF,PREMISES                      ,R&M WC Planned                ,JACOBS ENGINEERING UK LTD               ,03-Jan-11,3180162,738.00,
Environmental Services,EngineerIng Services,PTF,PREMISES                      ,R&M WC Planned                ,NETWORK RAIL                            ,17-Jan-11,3178038,10410.10,
Environmental Services,Engineering Services,PWH,SUPPLIES & SERVICES           ,Reinstatement of stock: Donnington Pools,JON WALL FISHERIES LTD                  ,28-Sep-10,3178337,2500.00,
Environmental Services,Environment & Open Space,GYX,CURRENT LIABILITIES           ,Payments to Contractors       ,TELFORD & WREKIN SERVICES LTD           ,07-Dec-10,3181634,5798.45,
Environmental Services,Environment & Open Space,GYX,CURRENT LIABILITIES           ,Payments to Contractors       ,TELFORD & WREKIN SERVICES LTD           ,08-Dec-10,3181635,11164.00,
Environmental Services,Environment & Open Space,PGN,THIRD PARTY PAYMENTS          ,Payments to Contractors,TELFORD & WREKIN SERVICES LTD           ,03-Jan-11,3174813,81316.64,
Environmental Services,Environment & Open Space,PGN,PREMISES                      ,Payments to Contractors,TELFORD & WREKIN SERVICES LTD           ,03-Jan-11,3174813,12083.33,
Environmental Services,Environment & Open Space,PLT,TRANSPORT                     ,Council Vehicles ,WILLIAM A. LEWIS (TELFORD)              ,22-Dec-10,3166772,1056.02,
Environmental Services,Environment & Open Space,PLT,SUPPLIES & SERVICES           ,Electrical Services (parks),PP ELECTRICAL SERVICES                  ,15-Dec-10,3170656,680.00,
Environmental Services,Environment & Open Space,PLT,SUPPLIES & SERVICES           ,Security Services             ,BUSINESS WATCH GUARDING LIMITED         ,31-Dec-10,3177141,929.28,
Environmental Services,Environment & Open Space,PLT,PREMISES                      ,Water Rates                   ,SEVERN TRENT WATER LTD                  ,22-Dec-10,3166860,1831.57,
Environmental Services,Environment & Open Space,PRW,PREMISES                      ,Road Salt Provision,SALT UNION LTD                          ,14-Dec-10,3168428,4047.99,
Environmental Services,Environment & Open Space,PRW,PREMISES                      ,Road Salt Provision,SALT UNION LTD                          ,14-Dec-10,3168429,1011.82,
Environmental Services,Environment & Open Space,PRW,PREMISES                      ,Road Salt Provision,SALT UNION LTD                          ,23-Dec-10,3168430,3071.33,
Environmental Services,Environment & Open Space,PRW,PREMISES                      ,Road Salt Provision,SALT UNION LTD                          ,22-Dec-10,3168431,1016.84,
Environmental Services,Environment & Open Space,PRW,PREMISES                      ,Road Salt Provision,SALT UNION LTD                          ,20-Dec-10,3168432,4021.42,
Environmental Services,Environment & Open Space,PRW,PREMISES                      ,Road Salt Provision,SALT UNION LTD                          ,13-Dec-10,3168433,1037.65,
Environmental Services,Environment & Open Space,PRW,PREMISES                      ,Road Salt Provision,SALT UNION LTD                          ,16-Dec-10,3173822,2043.73,
Environmental Services,Environment & Open Space,PRW,PREMISES                      ,Road Salt Provision,SALT UNION LTD                          ,13-Dec-10,3173823,1042.67,
Environmental Services,Environment & Open Space,PRW,PREMISES                      ,Road Salt Provision,SALT UNION LTD                          ,17-Dec-10,3173824,1045.54,
Environmental Services,Environment & Open Space,PTM,SUPPLIES & SERVICES           ,Transport Contractors         ,ARRIVA MIDLANDS NORTH LIMITED           ,15-Dec-10,3174696,1368.50,
Environmental Services,Highways & Transport,NKA,INCOME                        ,Section 278 Agreements        ,DIAMOND CARS (TELFORD) LTD              ,31-Dec-10,3178631,-1154.40,
Environmental Services,Highways & Transport,PAN,PREMISES                      ,Payments to Contractors,PITNEY BOWES SOFTWARE LTD               ,20-Dec-10,3173373,3565.00,
Environmental Services,Highways & Transport,PCR,CURRENT LIABILITIES           ,External Professional Fees    ,JACOBS ENGINEERING UK LTD               ,03-Jan-11,3180162,19533.00,
Environmental Services,Highways & Transport,PCR,CURRENT LIABILITIES           ,Payments to Contractors       ,J N BENTLEY LTD                         ,02-Jan-11,3177471,39507.77,
Environmental Services,Highways & Transport,PCR,CURRENT LIABILITIES           ,Payments to Contractors       ,JPCS LTD                                ,30-Nov-10,3169808,69127.41,
Environmental Services,Highways & Transport,PCR,CURRENT LIABILITIES           ,Payments to Contractors       ,K & M CONSTRUCTION LTD                  ,12-Jan-11,3182303,904.00,
Environmental Services,Highways & Transport,PCT,CURRENT LIABILITIES           ,External Professional Fees    ,JACOBS ENGINEERING UK LTD               ,03-Jan-11,3180162,4984.00,
Environmental Services,Highways & Transport,PCT,CURRENT LIABILITIES           ,Other Capital Expenditure     ,ACTIVE CHEMICALS LTD                    ,01-Jan-11,3182005,1526.50,
Environmental Services,Highways & Transport,PCT,CURRENT LIABILITIES           ,Other Capital Expenditure     ,MARWOOD ELECTRICAL CO LTD               ,12-Jan-11,3180148,8772.30,
Environmental Services,Highways & Transport,PCT,CURRENT LIABILITIES           ,Other Capital Expenditure     ,MARWOOD ELECTRICAL CO LTD               ,24-Dec-10,3180149,25855.20,
Environmental Services,Highways & Transport,PCT,CURRENT LIABILITIES           ,Payments to Contractors       ,E.ON UK ENERGY SERVICES LTD             ,29-Dec-10,3180792,23890.17,
Environmental Services,Highways & Transport,PCY,CURRENT LIABILITIES           ,External Professional Fees    ,JACOBS ENGINEERING UK LTD               ,03-Jan-11,3180162,3839.00,
Environmental Services,Highways & Transport,PCY,CURRENT LIABILITIES           ,Payments to Contractors       ,JPCS SIGNS LIMITED                      ,13-Dec-10,3169743,16097.61,
Environmental Services,Highways & Transport,PCY,CURRENT LIABILITIES           ,Payments to Contractors       ,K & M CONSTRUCTION LTD                  ,15-Dec-10,3167558,4453.75,
Environmental Services,Highways & Transport,PCY,CURRENT LIABILITIES           ,Payments to Contractors       ,K & M CONSTRUCTION LTD                  ,18-Jan-11,3182304,1413.73,
Environmental Services,Highways & Transport,PFB,PREMISES                      ,Electricity                   ,WEST MERCIA SUPPLIES                    ,14-Jan-11,3180793,31910.77,
Environmental Services,Highways & Transport,PFB,PREMISES                      ,Vandal Damage                 ,CENTRAL NETWORKS                        ,16-Dec-10,3178320,757.53,
Environmental Services,Highways & Transport,PFB,PREMISES                      ,Vandal Damage                 ,CENTRAL NETWORKS                        ,16-Dec-10,3178321,570.77,
Environmental Services,Highways & Transport,PFB,PREMISES                      ,Vandal Damage                 ,PRYSMIAN CABLES & SYSTEMS LTD           ,09-Dec-10,3168524,729.93,
Environmental Services,Highways & Transport,PFC,PREMISES                      ,Electricity                   ,WEST MERCIA SUPPLIES                    ,14-Jan-11,3180793,5825.82,
Environmental Services,Highways & Transport,PFD,PREMISES                      ,Electricity                   ,WEST MERCIA SUPPLIES                    ,14-Jan-11,3180793,5315.45,
Environmental Services,Highways & Transport,PFD,PREMISES                      ,R&M -Building Other           ,PRYSMIAN CABLES & SYSTEMS LTD           ,09-Dec-10,3168524,636.16,
Environmental Services,Highways & Transport,PLE,SUPPLIES & SERVICES           ,Consultancy fees,JACOBS ENGINEERING UK LTD               ,03-Jan-11,3180162,3638.00,
Environmental Services,Highways & Transport,PLH,PREMISES                      ,R&M -Buildings DLO Charge     ,WEST MERCIA POLICE AUTHORITY            ,03-Jan-11,3173830,34036.85,
Environmental Services,Highways & Transport,PMT,SUPPLIES & SERVICES           ,Consultancy fees,JACOBS ENGINEERING UK LTD               ,03-Jan-11,3180162,600.24,
Environmental Services,Highways & Transport,PQK,CURRENT LIABILITIES           ,External Professional Fees    ,JACOBS ENGINEERING UK LTD               ,03-Jan-11,3180162,16436.03,
Environmental Services,Highways & Transport,PQK,CURRENT LIABILITIES           ,Payments to Contractors       ,JACOBS ENGINEERING UK LTD               ,15-Dec-10,3167573,1110.00,
Environmental Services,Highways & Transport,PQK,CURRENT LIABILITIES           ,Payments to Contractors       ,JACOBS ENGINEERING UK LTD               ,15-Dec-10,3167574,1500.00,
Environmental Services,Highways & Transport,PQP,CURRENT LIABILITIES           ,Direct Labour Recharge        ,TELFORD & WREKIN SERVICES LTD           ,14-Dec-10,3167485,3616.45,
Environmental Services,Highways & Transport,PQP,CURRENT LIABILITIES           ,Direct Labour Recharge        ,TELFORD & WREKIN SERVICES LTD           ,14-Dec-10,3167559,21550.37,
Environmental Services,Highways & Transport,PQP,CURRENT LIABILITIES           ,Direct Labour Recharge        ,TELFORD & WREKIN SERVICES LTD           ,21-Dec-10,3173811,29137.91,
Environmental Services,Highways & Transport,PQP,CURRENT LIABILITIES           ,Payments to Contractors       ,ACE ENGINEERS (MORLEY) LIMITED          ,10-Jan-11,3175749,3950.00,
Environmental Services,Highways & Transport,PQP,CURRENT LIABILITIES           ,Payments to Contractors       ,K & M CONSTRUCTION LTD                  ,18-Jan-11,3177466,2078.23,
Environmental Services,Highways & Transport,PQP,CURRENT LIABILITIES           ,Payments to Contractors       ,KRM CONTRACTORS LTD                     ,21-Dec-10,3167927,2054.00,
Environmental Services,Highways & Transport,PQP,CURRENT LIABILITIES           ,Payments to Contractors       ,KRM CONTRACTORS LTD                     ,19-Jan-11,3180900,3762.00,
Environmental Services,Highways & Transport,PQP,CURRENT LIABILITIES           ,Payments to Contractors       ,S J HOPKINS STREETLIGHTING              ,27-Oct-10,3175234,1868.00,
Environmental Services,Highways & Transport,PQP,CURRENT LIABILITIES           ,Payments to Contractors       ,S J HOPKINS STREETLIGHTING              ,27-Oct-10,3175235,1669.80,
Environmental Services,Highways & Transport,PQP,CURRENT LIABILITIES           ,Payments to Contractors       ,SIGNS EXPRESS (TELFORD)                 ,30-Dec-10,3168347,717.00,
Environmental Services,Highways & Transport,PQP,CURRENT LIABILITIES           ,Payments to Contractors       ,TELFORD & WREKIN SERVICES LTD           ,15-Nov-10,3167493,1021.46,
Environmental Services,Highways & Transport,PQP,CURRENT LIABILITIES           ,Payments to Contractors       ,TELFORD & WREKIN SERVICES LTD           ,14-Dec-10,3167560,50000.00,
Environmental Services,Highways & Transport,PQP,CURRENT LIABILITIES           ,Payments to Contractors       ,TRAFFIC AND COMMERCIAL SIGNS LTD        ,21-Dec-10,3166768,10927.30,
Environmental Services,Highways & Transport,PQP,CURRENT LIABILITIES           ,Payments to Contractors       ,TRAFFIC AND COMMERCIAL SIGNS LTD        ,25-Jan-11,3181656,4864.56,
Environmental Services,Highways & Transport,PQS,CURRENT LIABILITIES           ,External Professional Fees    ,JACOBS ENGINEERING UK LTD               ,31-Dec-10,3173806,12988.00,
Environmental Services,Highways & Transport,PQS,CURRENT LIABILITIES           ,Payments to Contractors       ,J N BENTLEY LTD                         ,02-Jan-11,3177471,26199.96,
Environmental Services,Highways & Transport,PQS,CURRENT LIABILITIES           ,Payments to Contractors       ,TELFORD & WREKIN SERVICES LTD           ,08-Dec-10,3178334,3959.76,
Environmental Services,Highways & Transport,PRF,PREMISES                      ,Electricity                   ,WEST MERCIA SUPPLIES                    ,14-Jan-11,3180793,2765.62,
Environmental Services,Highways & Transport,PRF,PREMISES                      ,R&M -Building Other           ,JACOBS ENGINEERING UK LTD               ,03-Jan-11,3180162,6850.00,
Environmental Services,Highways & Transport,PRF,PREMISES                      ,R&M MEB Contract Maintenance  ,PEEK TRAFFIC LTD                        ,16-Dec-10,3173954,717.11,
Environmental Services,Highways & Transport,PRF,PREMISES                      ,R&M MEB Contract Maintenance  ,PEEK TRAFFIC LTD                        ,16-Dec-10,3173956,2851.54,
Environmental Services,Highways & Transport,PTA,SUPPLIES & SERVICES           ,Computer Hardware (Maint)     ,FUJITSU SERVICES                        ,13-Dec-10,3168418,1153.28,
Environmental Services,Highways & Transport,PTA,SUPPLIES & SERVICES           ,Town Scheme Grant             ,COMMUNITY MOBILITY TRANSPORT            ,05-Jan-11,3174895,5822.50,
Environmental Services,Highways & Transport,PTC,PREMISES                      ,Contract Cleaning             ,INSITU CLEANING COMPANY LTD             ,31-Dec-10,3178949,3115.76,
Environmental Services,Highways & Transport,PTC,PREMISES                      ,Electricity                   ,WEST MERCIA SUPPLIES                    ,15-Dec-10,3167319,-600.53,
Environmental Services,Highways & Transport,PTC,PREMISES                      ,Electricity                   ,WEST MERCIA SUPPLIES                    ,15-Dec-10,3168508,589.84,
Environmental Services,Highways & Transport,PTC,INCOME                        ,National Express Ticket Sales ,ARRIVA MIDLANDS NORTH LIMITED           ,20-Dec-10,3168413,3182.50,
Environmental Services,Highways & Transport,PTC,SUPPLIES & SERVICES           ,Payments to Contractors,TELFORD & WREKIN SERVICES LTD           ,14-Dec-10,3170042,1628.71,
Environmental Services,Highways & Transport,PTC,PREMISES                      ,Sewage Charges                ,SEVERN TRENT WATER LTD                  ,30-Dec-10,3178953,1407.51,
Environmental Services,Highways & Transport,PTE,TRANSPORT                     ,Bus Tickets                   ,NATIONAL EXPRESS LTD                    ,31-Dec-10,3166859,4085.28,
Environmental Services,Highways & Transport,PTJ,SUPPLIES & SERVICES           ,Consultants Fees              ,JACOBS ENGINEERING UK LTD               ,10-Jan-11,3177483,42000.00,
Environmental Services,Highways & Transport,PTJ,SUPPLIES & SERVICES           ,Consultants Fees              ,JACOBS ENGINEERING UK LTD               ,03-Jan-11,3180162,-35000.00,
Environmental Services,Highways & Transport,PTL,PREMISES                      ,Grounds Maintenance - L&CS    ,PLANNING REIMBURSEMENTS                 ,21-Jan-11,3178832,970.00,
Environmental Services,Highways & Transport,PTP,TRANSPORT                     ,Commercial Tickets            ,CENTRAL TAXIS LIMITED                   ,30-Nov-10,3169527,1050.00,
Environmental Services,Highways & Transport,PTP,TRANSPORT                     ,Commercial Tickets            ,CENTRAL TAXIS LIMITED                   ,31-Dec-10,3178202,524.16,
Environmental Services,Highways & Transport,PTP,TRANSPORT                     ,Commercial Tickets            ,CENTRAL TAXIS LIMITED                   ,31-Dec-10,3178357,661.44,
Environmental Services,Highways & Transport,PTP,TRANSPORT                     ,Commercial Tickets            ,CENTRAL TAXIS LIMITED                   ,31-Dec-10,3178358,504.00,
Environmental Services,Highways & Transport,PTP,TRANSPORT                     ,Commercial Tickets            ,CENTRAL TAXIS LIMITED                   ,31-Dec-10,3178984,717.50,
Environmental Services,Highways & Transport,PTP,TRANSPORT                     ,Commercial Tickets            ,CENTRAL TAXIS LIMITED                   ,31-Dec-10,3178993,836.00,
Environmental Services,Highways & Transport,PTP,TRANSPORT                     ,Commercial Tickets            ,CENTRAL TAXIS LTD                       ,30-Nov-10,3169885,586.00,
Environmental Services,Highways & Transport,PTP,TRANSPORT                     ,Commercial Tickets            ,COUNTY CARS                             ,01-Dec-10,3169521,702.33,
Environmental Services,Highways & Transport,PTP,TRANSPORT                     ,Commercial Tickets            ,COUNTY CARS                             ,01-Oct-10,3169522,1857.40,
Environmental Services,Highways & Transport,PTP,TRANSPORT                     ,Commercial Tickets            ,COUNTY CARS                             ,01-Dec-10,3176655,798.00,
Environmental Services,Highways & Transport,PTP,TRANSPORT                     ,Commercial Tickets            ,COUNTY CARS                             ,01-Dec-10,3177265,1656.60,
Environmental Services,Highways & Transport,PTP,TRANSPORT                     ,Commercial Tickets            ,COUNTY CARS                             ,01-Dec-10,3177266,980.40,
Environmental Services,Highways & Transport,PTP,TRANSPORT                     ,Commercial Tickets            ,DIAMOND CARS (TELFORD) LTD              ,30-Nov-10,3169530,854.40,
Environmental Services,Highways & Transport,PTP,TRANSPORT                     ,Commercial Tickets            ,DIAMOND CARS (TELFORD) LTD              ,30-Nov-10,3169531,2303.80,
Environmental Services,Highways & Transport,PTP,TRANSPORT                     ,Commercial Tickets            ,DIAMOND CARS (TELFORD) LTD              ,31-Dec-10,3176658,680.00,
Environmental Services,Highways & Transport,PTP,TRANSPORT                     ,Commercial Tickets            ,DIAMOND CARS (TELFORD) LTD              ,31-Dec-10,3178067,770.00,
Environmental Services,Highways & Transport,PTP,TRANSPORT                     ,Commercial Tickets            ,DIAMOND CARS (TELFORD) LTD              ,31-Dec-10,3178073,600.84,
Environmental Services,Highways & Transport,PTP,TRANSPORT                     ,Commercial Tickets            ,DIAMOND CARS (TELFORD) LTD              ,31-Dec-10,3178075,720.00,
Environmental Services,Highways & Transport,PTP,TRANSPORT                     ,Commercial Tickets            ,DIAMOND CARS (TELFORD) LTD              ,31-Dec-10,3178076,572.00,
Environmental Services,Highways & Transport,PTP,TRANSPORT                     ,Commercial Tickets            ,DIAMOND CARS (TELFORD) LTD              ,31-Dec-10,3178078,777.48,
Environmental Services,Highways & Transport,PTP,TRANSPORT                     ,Commercial Tickets            ,DIAMOND CARS (TELFORD) LTD              ,31-Dec-10,3178625,1078.00,
Environmental Services,Highways & Transport,PTP,TRANSPORT                     ,Commercial Tickets            ,DIAMOND CARS (TELFORD) LTD              ,31-Dec-10,3178626,1402.56,
Environmental Services,Highways & Transport,PTP,TRANSPORT                     ,Commercial Tickets            ,DIAMOND CARS (TELFORD) LTD              ,31-Dec-10,3178631,2922.40,
Environmental Services,Highways & Transport,PTP,TRANSPORT                     ,Commercial Tickets            ,DIAMOND CARS (TELFORD) LTD              ,31-Dec-10,3178632,907.20,
Environmental Services,Highways & Transport,PTP,TRANSPORT                     ,Contract Hire - Minibuses     ,DIAMOND CARS (TELFORD) LTD              ,31-Dec-10,3178622,1014.00,
Environmental Services,Highways & Transport,PTP,TRANSPORT                     ,Contract Hire - Minibuses     ,DIAMOND CARS (TELFORD) LTD              ,31-Dec-10,3178623,1118.00,
Environmental Services,Highways & Transport,PTP,TRANSPORT                     ,Contract Hire - Minibuses     ,DIAMOND CARS (TELFORD) LTD              ,31-Dec-10,3178624,1248.00,
Environmental Services,Highways & Transport,PTP,TRANSPORT                     ,Contract Hire - Minibuses     ,DIAMOND CARS (TELFORD) LTD              ,31-Dec-10,3178627,1089.00,
Environmental Services,Highways & Transport,PTP,TRANSPORT                     ,Contract Hire - Minibuses     ,DIAMOND CARS (TELFORD) LTD              ,31-Dec-10,3178628,1144.00,
Environmental Services,Highways & Transport,PTP,TRANSPORT                     ,Contract Hire - Minibuses     ,DIAMOND CARS (TELFORD) LTD              ,31-Dec-10,3178629,1100.00,
Environmental Services,Highways & Transport,PTP,TRANSPORT                     ,Contract Hire - Minibuses     ,DIAMOND CARS (TELFORD) LTD              ,31-Dec-10,3178630,1248.00,
Environmental Services,Highways & Transport,PTP,TRANSPORT                     ,Contract Hire - Minibuses     ,EXPRESS TRAVEL                          ,01-Jan-11,3171565,1430.00,
Environmental Services,Highways & Transport,PTP,TRANSPORT                     ,Contract Hire - Minibuses     ,EXPRESS TRAVEL                          ,01-Jan-11,3171566,1040.00,
Environmental Services,Highways & Transport,PTP,TRANSPORT                     ,Contract Hire - Minibuses     ,KLM TRAVEL                              ,20-Dec-10,3171567,1222.00,
Environmental Services,Highways & Transport,PTP,TRANSPORT                     ,Contract Hire - Minibuses     ,EXPRESS DRIVEN                          ,31-Dec-10,3175755,1235.00,
Environmental Services,Highways & Transport,PTP,TRANSPORT                     ,Contract Hire - Minibuses     ,EXPRESS DRIVEN                          ,31-Dec-10,3175756,2941.90,
Environmental Services,Highways & Transport,PTP,TRANSPORT                     ,Contract Hire - Minibuses     ,EXPRESS DRIVEN                          ,31-Dec-10,3175757,1560.00,
Environmental Services,Highways & Transport,PTP,TRANSPORT                     ,Contract Hire - Minibuses     ,EXPRESS DRIVEN                          ,31-Dec-10,3175842,543.41,
Environmental Services,Highways & Transport,PTP,TRANSPORT                     ,Contract Hire - Minibuses     ,PATIENT FIRST TRANSPORT SERVICES     ,31-Dec-10,3171097,810.00,
Environmental Services,Highways & Transport,PTP,TRANSPORT                     ,Contract Hire - Minibuses     ,RIVERSIDE COACHWAYS                     ,07-Dec-10,3171099,1950.00,
Environmental Services,Highways & Transport,PTP,TRANSPORT                     ,Contract Hire - Minibuses     ,SHAWS TRAVEL LTD                        ,31-Dec-10,3175759,1235.00,
Environmental Services,Highways & Transport,PTP,TRANSPORT                     ,Contract Hire - Minibuses     ,SHAWS TRAVEL LTD                        ,31-Dec-10,3175760,1801.80,
Environmental Services,Highways & Transport,PTP,TRANSPORT                     ,Contract Hire - Minibuses     ,SHAWS TRAVEL LTD                        ,31-Dec-10,3175761,1274.00,
Environmental Services,Highways & Transport,PTP,TRANSPORT                     ,Contract Hire - Minibuses     ,SHAWS TRAVEL LTD                        ,31-Dec-10,3175762,1332.50,
Environmental Services,Highways & Transport,PTP,TRANSPORT                     ,Contract Hire - Minibuses     ,ULTIMATE TAXIS LTD                      ,17-Dec-10,3171112,1002.82,
Environmental Services,Highways & Transport,PTP,TRANSPORT                     ,Games Transport               ,A.T. BROWN (COACHES) LTD                ,07-Jan-11,3171561,506.00,
Environmental Services,Highways & Transport,PTP,TRANSPORT                     ,Season Tickets                ,M H ELCOCK & SON LTD T/A ELCOCK REISEN  ,18-Dec-10,3169864,3760.51,
Environmental Services,Highways & Transport,PTP,TRANSPORT                     ,Subsidised Routes             ,COMMUNITY MOBILITY TRANSPORT            ,30-Nov-10,3169865,6912.85,
Environmental Services,Highways & Transport,PTP,TRANSPORT                     ,Transport Contractors         ,A.T. BROWN (COACHES) LTD                ,17-Dec-10,3169863,2205.45,
Environmental Services,Highways & Transport,PTP,TRANSPORT                     ,Transport Contractors         ,A.T. BROWN (COACHES) LTD                ,07-Jan-11,3171561,3549.79,
Environmental Services,Highways & Transport,PTP,TRANSPORT                     ,Transport Contractors         ,ARRIVA MIDLANDS NORTH LIMITED           ,13-Dec-10,3175745,5478.00,
Environmental Services,Highways & Transport,PTP,TRANSPORT                     ,Transport Contractors         ,ARRIVA MIDLANDS NORTH LIMITED           ,13-Dec-10,3175746,5346.00,
Environmental Services,Highways & Transport,PTP,TRANSPORT                     ,Transport Contractors         ,M & B MINIBUSES LTD                     ,20-Dec-10,3172886,888.10,
Environmental Services,Highways & Transport,PTP,TRANSPORT                     ,Transport Contractors         ,M & B MINIBUSES LTD                     ,15-Jan-11,3175826,888.10,
Environmental Services,Highways & Transport,PTP,TRANSPORT                     ,Transport Contractors         ,M H ELCOCK & SON LTD T/A ELCOCK REISEN  ,18-Dec-10,3172878,659.75,
Environmental Services,Highways & Transport,PTP,TRANSPORT                     ,Transport Contractors         ,M H ELCOCK & SON LTD T/A ELCOCK REISEN  ,11-Dec-10,3172879,2572.96,
Environmental Services,Highways & Transport,PTP,TRANSPORT                     ,Transport Contractors         ,M H ELCOCK & SON LTD T/A ELCOCK REISEN  ,11-Dec-10,3172880,3298.75,
Environmental Services,Highways & Transport,PTP,TRANSPORT                     ,Transport Contractors         ,M H ELCOCK & SON LTD T/A ELCOCK REISEN  ,11-Dec-10,3172881,2968.81,
Environmental Services,Highways & Transport,PTP,TRANSPORT                     ,Transport Contractors         ,ULTIMATE TAXIS LTD                      ,17-Dec-10,3171111,720.00,
Environmental Services,Highways & Transport,PTP,TRANSPORT                     ,Voluntary Car Scheme          ,COMMUNITY MOBILITY TRANSPORT            ,05-Jan-11,3174895,9247.50,
Environmental Services,Highways & Transport,PTQ,SUPPLIES & SERVICES           ,Consultants Fees              ,BASEMAP LTD                             ,31-Dec-10,3172988,550.00,
Environmental Services,Highways & Transport,PTQ,SUPPLIES & SERVICES           ,Consultants Fees              ,JACOBS ENGINEERING UK LTD               ,03-Jan-11,3180162,3008.67,
Environmental Services,Highways & Transport,PTS,SUPPLIES & SERVICES           ,Consultancy fees,JACOBS ENGINEERING UK LTD               ,03-Jan-11,3180162,6500.00,
Environmental Services,Highways & Transport,PTT,SUPPLIES & SERVICES           ,Public Transport Subsidy      ,COMMUNITY MOBILITY TRANSPORT            ,05-Jan-11,3174895,19180.00,
Environmental Services,Highways & Transport,PTT,TRANSPORT                     ,Transport Contractors         ,ARRIVA MIDLANDS NORTH LIMITED           ,13-Dec-10,3169809,3564.40,
Environmental Services,Highways & Transport,PTT,TRANSPORT                     ,Transport Contractors         ,ARRIVA MIDLANDS NORTH LIMITED           ,13-Dec-10,3169857,714.40,
Environmental Services,Highways & Transport,PTT,TRANSPORT                     ,Transport Contractors         ,ARRIVA MIDLANDS NORTH LIMITED           ,13-Dec-10,3169858,3937.08,
Environmental Services,Highways & Transport,PTT,TRANSPORT                     ,Transport Contractors         ,ARRIVA MIDLANDS NORTH LIMITED           ,13-Dec-10,3169859,5975.69,
Environmental Services,Highways & Transport,PTT,TRANSPORT                     ,Transport Contractors         ,ARRIVA MIDLANDS NORTH LIMITED           ,13-Dec-10,3169860,4375.54,
Environmental Services,Highways & Transport,PTT,SUPPLIES & SERVICES           ,Transport Contractors         ,ARRIVA MIDLANDS NORTH LIMITED           ,17-Nov-10,3169861,4164.90,
Environmental Services,Highways & Transport,PTT,TRANSPORT                     ,Transport Contractors         ,M H ELCOCK & SON LTD T/A ELCOCK REISEN  ,18-Dec-10,3169866,3183.55,
Environmental Services,Highways & Transport,PTT,TRANSPORT                     ,Transport Contractors         ,M H ELCOCK & SON LTD T/A ELCOCK REISEN  ,18-Dec-10,3169867,2529.80,
Environmental Services,Highways & Transport,PTT,TRANSPORT                     ,Transport Contractors         ,M H ELCOCK & SON LTD T/A ELCOCK REISEN  ,18-Dec-10,3169868,3239.95,
Environmental Services,Highways & Transport,PTT,TRANSPORT                     ,Voluntary Car Scheme          ,COMMUNITY MOBILITY TRANSPORT            ,30-Nov-10,3174708,509.40,
Environmental Services,Highways & Transport,PTU,PREMISES                      ,Electricity                   ,WEST MERCIA SUPPLIES                    ,14-Jan-11,3180793,77765.98,
Environmental Services,Highways & Transport,PTU,PREMISES                      ,R&M MEB Contract Maintenance  ,MURWELL CONSULTING ENGINEERS LTD        ,18-Dec-10,3170775,1443.75,
Environmental Services,Highways & Transport,PTU,PREMISES                      ,Vandal Damage                 ,PRYSMIAN CABLES & SYSTEMS LTD           ,09-Dec-10,3168524,1396.70,
Environmental Services,Highways & Transport,PTV,TRANSPORT                     ,Additional Charges            ,BETTA BODIES                        ,19-Jan-11,3180914,617.86,
Environmental Services,Highways & Transport,PTV,SUPPLIES & SERVICES           ,Equipment - Purchase          ,BLUEBIRD VEHICLES                       ,05-Jan-11,3181965,539.27,
Environmental Services,Highways & Transport,PTV,TRANSPORT                     ,WRVS Payments                 ,MORGANS NATIONAL WINDSCREENS            ,21-Dec-10,3175677,1200.00,
Environmental Services,Highways & Transport,PTX,TRANSPORT                     ,Outside Hire                  ,ARVAL UK LTD                            ,15-Dec-10,3175763,1131.05,
Environmental Services,Highways & Transport,PTX,TRANSPORT                     ,Outside Hire                  ,ARVAL UK LTD                            ,31-Dec-10,3176391,596.24,
Environmental Services,Highways & Transport,PTX,TRANSPORT                     ,Outside Hire                  ,ARVAL UK LTD                            ,17-Jan-11,3181648,1083.78,
Environmental Services,Highways & Transport,PTX,TRANSPORT                     ,Outside Hire                  ,BURNT TREE GROUP LTD                    ,31-Dec-10,3174029,1368.39,
Environmental Services,Highways & Transport,PTY,SUPPLIES & SERVICES           ,Consultants Fees              ,TELFORD & WREKIN SERVICES LTD           ,14-Dec-10,3167346,765.31,
Environmental Services,Highways & Transport,PTY,SUPPLIES & SERVICES           ,Consultants Fees              ,TELFORD & WREKIN SERVICES LTD           ,14-Dec-10,3167482,1829.80,
Environmental Services,Highways & Transport,PTY,SUPPLIES & SERVICES           ,Consultants Fees              ,TELFORD & WREKIN SERVICES LTD           ,15-Nov-10,3167494,1020.16,
Environmental Services,Highways & Transport,PTY,SUPPLIES & SERVICES           ,Consultants Fees              ,TRAFFIC AND COMMERCIAL SIGNS LTD        ,20-Dec-10,3169367,503.00,
Environmental Services,Highways & Transport,PWS,PREMISES                      ,R&M -Buildings DLO Charge     ,METRIC GROUP LTD                        ,24-Dec-10,3172071,815.00,
Environmental Services,Highways & Transport,PWS,SUPPLIES & SERVICES           ,Security Services             ,VINCI PARK SERVICES UK LTD              ,31-Dec-10,3180034,827.48,
Environmental Services,Highways & Transport,PWS,SUPPLIES & SERVICES           ,Security Services             ,VINCI PARK SERVICES UK LTD              ,31-Dec-10,3180782,6781.10,
Environmental Services,Highways & Transport,PWS,SUPPLIES & SERVICES           ,Security Services                ,SECURITY PLUS LIMITED                   ,01-Jan-11,3172072,989.36,
Environmental Services,Highways & Transport,PWS,SUPPLIES & SERVICES           ,Stationery                    ,BEMROSE BOOTH LIMITED                   ,10-Dec-10,3172065,1076.80,
Environmental Services,Waste & Climate Change,PNC,SUPPLIES & SERVICES           ,Commissions                   ,THE ROYAL MARINES ASSOCIATION           ,26-Jan-11,3182008,567.99,
Environmental Services,Waste & Climate Change,PNC,SUPPLIES & SERVICES           ,Special Initiatives - Waste,GOLDER ASSOCIATES (UK) LTD              ,23-Dec-10,3173979,1500.00,
Environmental Services,Waste & Climate Change,PNE,SUPPLIES & SERVICES           ,Payment to Contractors (waste),SITA UK                                 ,31-Dec-10,3174618,564.28,
Environmental Services,Waste & Climate Change,PNE,SUPPLIES & SERVICES           ,Payment to Contractors (waste),SITA UK                                 ,13-Dec-10,3175246,808.90,
Environmental Services,Waste & Climate Change,PNE,SUPPLIES & SERVICES           ,Payment to Contractors (waste),SITA UK                                 ,31-Dec-10,3177543,2835.21,
Environmental Services,Waste & Climate Change,PNE,THIRD PARTY PAYMENTS          ,Private Contractors           ,SITA UK                                 ,31-Dec-10,3174619,4249.60,
Environmental Services,Waste & Climate Change,PNF,SUPPLIES & SERVICES           ,Landfill Tax                  ,SITA UK                                 ,31-Dec-10,3182328,170673.99,
Environmental Services,Waste & Climate Change,PNF,SUPPLIES & SERVICES           ,Payment to Contractors (waste),SITA UK                                 ,31-Dec-10,3174614,2847.37,
Environmental Services,Waste & Climate Change,PNF,SUPPLIES & SERVICES           ,Payment to Contractors (waste),SITA UK                                 ,31-Dec-10,3174615,770.67,
Environmental Services,Waste & Climate Change,PNF,SUPPLIES & SERVICES           ,Payment to Contractors (waste),SITA UK                                 ,31-Dec-10,3174617,4879.20,
Environmental Services,Waste & Climate Change,PNF,SUPPLIES & SERVICES           ,Payment to Contractors (waste),SITA UK                                 ,31-Dec-10,3182328,46631.90,
Environmental Services,Waste & Climate Change,PNS,SUPPLIES & SERVICES           ,Landfill Tax                  ,LOWER  REULE BIOENERGY LTD              ,31-Dec-10,3173327,909.00,
Environmental Services,Waste & Climate Change,PPC,SUPPLIES & SERVICES           ,Consultants Fees              ,SKM ENVIROS LTD                         ,14-Jan-11,3178099,1000.00,
Family & Community Services,Building Schools for the Future (BSF),BZ6,CURRENT LIABILITIES           ,Plan Environment Services Fees,GRANVILLE CONSTRUCTION & MAINTENANCE LTD,21-Dec-10,3169279,5394.00,
Family & Community Services,Building Schools for the Future (BSF),BZ6,CURRENT LIABILITIES           ,Plan Environment Services Fees,GRANVILLE CONSTRUCTION & MAINTENANCE LTD,23-Nov-10,3169281,592.68,
Family & Community Services,Building Schools for the Future (BSF),BZ6,CURRENT LIABILITIES           ,Plan Environment Services Fees,GRANVILLE CONSTRUCTION & MAINTENANCE LTD,07-Oct-10,3169282,1199.98,
Family & Community Services,Building Schools for the Future (BSF),BZF,CURRENT LIABILITIES           ,Payments to Contractors       ,KIER REGIONAL LTD                       ,07-Jan-11,3177460,762924.53,
Family & Community Services,Building Schools for the Future (BSF),BZG,CURRENT LIABILITIES           ,Computer Hardware             ,AMAZING INTERACTIVES LTD                ,26-Nov-10,3169936,22000.00,
Family & Community Services,Building Schools for the Future (BSF),BZH,CURRENT LIABILITIES           ,Payments to Contractors       ,ALLIANCE ENVIRONMENT & PLANNING LTD     ,31-Dec-10,3180725,3077.00,
Family & Community Services,Building Schools for the Future (BSF),BZH,CURRENT LIABILITIES           ,Payments to Contractors       ,NABARRO                                 ,23-Dec-10,3173261,5305.80,
Family & Community Services,Building Schools for the Future (BSF),BZH,CURRENT LIABILITIES           ,Plan Environment Services Fees,MOTT MACDONALD LIMITED                  ,30-Nov-10,3170240,9098.39,
Family & Community Services,Building Schools for the Future (BSF),BZH,CURRENT LIABILITIES           ,Plan Environment Services Fees,MOTT MACDONALD LIMITED                  ,31-Dec-10,3173257,9732.55,
Family & Community Services,Building Schools for the Future (BSF),BZH,CURRENT LIABILITIES           ,Plan Environment Services Fees,NABARRO                                 ,30-Nov-10,3170239,4732.20,
Family & Community Services,Early Years Childcare,BAD,THIRD PARTY PAYMENTS          ,Preschool Playgroups,ABACUS (DAWLEY) LTD         ,17-Jan-11,3174794,4583.47,
Family & Community Services,Early Years Childcare,BAD,THIRD PARTY PAYMENTS          ,Preschool Playgroups,ABACUS (DAWLEY) LTD         ,17-Jan-11,3174795,1900.44,
Family & Community Services,Early Years Childcare,BAD,THIRD PARTY PAYMENTS          ,Preschool Playgroups,ABACUS DAY NURSERY ,17-Jan-11,3174792,2898.62,
Family & Community Services,Early Years Childcare,BAD,THIRD PARTY PAYMENTS          ,Preschool Playgroups,ABC DAY NURSERY ,17-Jan-11,3174793,6594.03,
Family & Community Services,Early Years Childcare,BAD,THIRD PARTY PAYMENTS          ,Preschool Playgroups,ABC DAY NURSERY HOLLINSWOOD,17-Jan-11,3174797,1818.19,
Family & Community Services,Early Years Childcare,BAD,THIRD PARTY PAYMENTS          ,Preschool Playgroups,ABC DAY NURSERY ,17-Jan-11,3174798,5875.36,
Family & Community Services,Early Years Childcare,BAD,THIRD PARTY PAYMENTS          ,Preschool Playgroups,ALL SAINTS PRESCHOOL ,17-Jan-11,3174791,3607.12,
Family & Community Services,Early Years Childcare,BAD,THIRD PARTY PAYMENTS          ,Preschool Playgroups,APPLE TREES NURSERY ,17-Jan-11,3174796,1290.53,
Family & Community Services,Early Years Childcare,BAD,THIRD PARTY PAYMENTS          ,Preschool Playgroups,BEARS DEN PRE-SCHOOL ,17-Jan-11,3175255,3940.73,
Family & Community Services,Early Years Childcare,BAD,THIRD PARTY PAYMENTS          ,Preschool Playgroups,BRAMBLE HEDGE NURSERY                   ,17-Jan-11,3174800,2803.78,
Family & Community Services,Early Years Childcare,BAD,THIRD PARTY PAYMENTS          ,Preschool Playgroups,BROOKSIDE PRE-SCHOOL & PLAYGROUP,17-Jan-11,3174799,1818.67,
Family & Community Services,Early Years Childcare,BAD,THIRD PARTY PAYMENTS          ,Preschool Playgroups,BUTTERFLIES DAY NURSERY,17-Jan-11,3174801,4515.68,
Family & Community Services,Early Years Childcare,BAD,THIRD PARTY PAYMENTS          ,Preschool Playgroups,CASTLE HOUSE SCHOOL TRUST LTD,17-Jan-11,3174803,4025.24,
Family & Community Services,Early Years Childcare,BAD,THIRD PARTY PAYMENTS          ,Preschool Playgroups,CHILDCARE SOS                           ,17-Jan-11,3174807,2580.00,
Family & Community Services,Early Years Childcare,BAD,THIRD PARTY PAYMENTS          ,Preschool Playgroups,CLUB 0-5 LTD ,17-Jan-11,3174805,5026.11,
Family & Community Services,Early Years Childcare,BAD,THIRD PARTY PAYMENTS          ,Preschool Playgroups,COALBROOKDALE & IRONBRIDGE NURSERY,17-Jan-11,3174806,4827.92,
Family & Community Services,Early Years Childcare,BAD,THIRD PARTY PAYMENTS          ,Preschool Playgroups,VINEYARD DAY NURSERY ,17-Jan-11,3174752,6969.59,
Family & Community Services,Early Years Childcare,BAD,THIRD PARTY PAYMENTS          ,Preschool Playgroups,DAISY CHAIN DAYCARE GROUP                  ,17-Jan-11,3174753,6806.90,
Family & Community Services,Early Years Childcare,BAD,THIRD PARTY PAYMENTS          ,Preschool Playgroups,EARLYWORLD LIMITED ,17-Jan-11,3175256,7090.49,
Family & Community Services,Early Years Childcare,BAD,THIRD PARTY PAYMENTS          ,Preschool Playgroups,EARLYWORLD LIMITED ,17-Jan-11,3175257,4644.46,
Family & Community Services,Early Years Childcare,BAD,THIRD PARTY PAYMENTS          ,Preschool Playgroups,EDGMOND OWLS ,17-Jan-11,3175258,3695.32,
Family & Community Services,Early Years Childcare,BAD,THIRD PARTY PAYMENTS          ,Preschool Playgroups,HADLEY UNDER 5'S ,17-Jan-11,3175261,6017.76,
Family & Community Services,Early Years Childcare,BAD,THIRD PARTY PAYMENTS          ,Preschool Playgroups,HALESFIELD DAY NURSERY CENTRE,17-Jan-11,3175260,3626.48,
Family & Community Services,Early Years Childcare,BAD,THIRD PARTY PAYMENTS          ,Preschool Playgroups,HIGH ERCALL PRE-SCHOOL ,17-Jan-11,3175262,2153.93,
Family & Community Services,Early Years Childcare,BAD,THIRD PARTY PAYMENTS          ,Preschool Playgroups,KIDS 4 US ,17-Jan-11,3175263,2016.20,
Family & Community Services,Early Years Childcare,BAD,THIRD PARTY PAYMENTS          ,Preschool Playgroups,LADYGROVE NURSERY                       ,17-Jan-11,3175271,2331.39,
Family & Community Services,Early Years Childcare,BAD,THIRD PARTY PAYMENTS          ,Preschool Playgroups,LEAPFROG DAY NURSERY ,17-Jan-11,3175265,5582.58,
Family & Community Services,Early Years Childcare,BAD,THIRD PARTY PAYMENTS          ,Preschool Playgroups,LEEGOMERY UNDER 5'S PLAYGROUP           ,17-Jan-11,3175264,2227.47,
Family & Community Services,Early Years Childcare,BAD,THIRD PARTY PAYMENTS          ,Preschool Playgroups,LILLESHALL PRE-SCHOOL PLAYGROUP ,17-Jan-11,3175267,4033.24,
Family & Community Services,Early Years Childcare,BAD,THIRD PARTY PAYMENTS          ,Preschool Playgroups,LITTLE BLOSSOMS PRE-SCHOOL              ,24-Jan-11,3180659,645.18,
Family & Community Services,Early Years Childcare,BAD,THIRD PARTY PAYMENTS          ,Preschool Playgroups,LITTLE BODIES DAY NURSERY               ,17-Jan-11,3175266,1663.48,
Family & Community Services,Early Years Childcare,BAD,THIRD PARTY PAYMENTS          ,Preschool Playgroups,LITTLE CHICKS PRE-SCHOOL                ,20-Jan-11,3175272,7906.38,
Family & Community Services,Early Years Childcare,BAD,THIRD PARTY PAYMENTS          ,Preschool Playgroups,LITTLE DRAGONS PRE-SCHOOL ,17-Jan-11,3175270,2863.99,
Family & Community Services,Early Years Childcare,BAD,THIRD PARTY PAYMENTS          ,Preschool Playgroups,LONGFORD PLAYGROUP ,17-Jan-11,3175268,1689.77,
Family & Community Services,Early Years Childcare,BAD,THIRD PARTY PAYMENTS          ,Preschool Playgroups,ERCALL DAY NURSERY ,17-Jan-11,3175273,10998.68,
Family & Community Services,Early Years Childcare,BAD,THIRD PARTY PAYMENTS          ,Preschool Playgroups,CENTRAL PARK NURSERY,17-Jan-11,3174804,5571.55,
Family & Community Services,Early Years Childcare,BAD,THIRD PARTY PAYMENTS          ,Preschool Playgroups,CHIPMUNKS NURSERY                       ,17-Jan-11,3174802,7324.26,
Family & Community Services,Early Years Childcare,BAD,THIRD PARTY PAYMENTS          ,Preschool Playgroups,TIGGYWINKLES MONTESSORI NURSERY         ,17-Jan-11,3174748,2314.75,
Family & Community Services,Early Years Childcare,BAD,THIRD PARTY PAYMENTS          ,Preschool Playgroups,NOAH'S ARK NURSERY & AFTER SCHOOL CLUB,17-Jan-11,3175274,6484.90,
Family & Community Services,Early Years Childcare,BAD,THIRD PARTY PAYMENTS          ,Preschool Playgroups,OAKENGATES UNITED CHURCH PRE SCHOOL,17-Jan-10,3174736,519.66,
Family & Community Services,Early Years Childcare,BAD,THIRD PARTY PAYMENTS          ,Preschool Playgroups,OUR WORLD NEIGHBOURHOOD NURSERY ,17-Jan-11,3174737,1607.07,
Family & Community Services,Early Years Childcare,BAD,THIRD PARTY PAYMENTS          ,Preschool Playgroups,PLAY-DAYS CORPORTION LTD                ,17-Jan-11,3174740,1869.83,
Family & Community Services,Early Years Childcare,BAD,THIRD PARTY PAYMENTS          ,Preschool Playgroups,PRIORSLEE PRE-SCHOOL                    ,17-Jan-10,3174738,5122.79,
Family & Community Services,Early Years Childcare,BAD,THIRD PARTY PAYMENTS          ,Preschool Playgroups,PUDDLEDUCKS PLAYGROUP,17-Jan-10,3174739,4663.62,
Family & Community Services,Early Years Childcare,BAD,THIRD PARTY PAYMENTS          ,Preschool Playgroups,RANDLAY ROUNDABOUTS ,17-Jan-11,3174741,795.91,
Family & Community Services,Early Years Childcare,BAD,THIRD PARTY PAYMENTS          ,Preschool Playgroups,REDHILL PRE-SCHOOL ,17-Jan-10,3174742,5695.40,
Family & Community Services,Early Years Childcare,BAD,THIRD PARTY PAYMENTS          ,Preschool Playgroups,SMILEY FACES DAY NURSERIES LTD          ,17-Jan-11,3174743,3451.36,
Family & Community Services,Early Years Childcare,BAD,THIRD PARTY PAYMENTS          ,Preschool Playgroups,STEPPING STONES AT CAPTAIN WEBB         ,17-Jan-11,3174744,2014.75,
Family & Community Services,Early Years Childcare,BAD,THIRD PARTY PAYMENTS          ,Preschool Playgroups,STRAWBERRY HILL DAY NURSERY             ,17-Jan-11,3175552,2160.27,
Family & Community Services,Early Years Childcare,BAD,THIRD PARTY PAYMENTS          ,Preschool Playgroups,TEAGUES BRIDGE PRE-SCHOOL ,17-Jan-11,3174750,5569.21,
Family & Community Services,Early Years Childcare,BAD,THIRD PARTY PAYMENTS          ,Preschool Playgroups,THE LEARNING TREE PRE-SCHOOL ,17-Jan-11,3175269,4236.45,
Family & Community Services,Early Years Childcare,BAD,THIRD PARTY PAYMENTS          ,Preschool Playgroups,THOMAS TELFORD SCHOOL,17-Jan-11,3174746,1257.75,
Family & Community Services,Early Years Childcare,BAD,THIRD PARTY PAYMENTS          ,Preschool Playgroups,TIBBERTON PLAYGROUP ,17-Jan-11,3174747,1430.92,
Family & Community Services,Early Years Childcare,BAD,THIRD PARTY PAYMENTS          ,Preschool Playgroups,TORTOISE NURSERY SCHOOL ,17-Jan-11,3174749,3349.13,
Family & Community Services,Early Years Childcare,BAD,THIRD PARTY PAYMENTS          ,Preschool Playgroups,TOTS AND TODDLERS DAYCARE               ,17-Jan-11,3174581,5210.75,
Family & Community Services,Early Years Childcare,BAD,THIRD PARTY PAYMENTS          ,Preschool Playgroups,TRENCH TOTS NEIGHBOURHOOD NURSERY LTD   ,17-Jan-11,3174580,3209.26,
Family & Community Services,Early Years Childcare,BAD,THIRD PARTY PAYMENTS          ,Preschool Playgroups,WELLINGTON METHODIST CHURCH PLAYGROUP,17-Jan-11,3174583,2835.98,
Family & Community Services,Early Years Childcare,BAD,THIRD PARTY PAYMENTS          ,Preschool Playgroups,WOODEN TOPS DAY NURSERY ,17-Jan-11,3174584,4348.38,
Family & Community Services,Early Years Childcare,BAH,PREMISES                      ,Electricity                   ,E.ON                                    ,06-Jan-11,3174902,1555.80,
Family & Community Services,Early Years Childcare,BAH,SUPPLIES & SERVICES           ,Other Office Expenses         ,A J (TELFORD) SELF-STORAGE LTD          ,14-Nov-10,3175747,1860.00,
Family & Community Services,Early Years Childcare,BAI,SUPPLIES & SERVICES           ,Other Office Expenses         ,A J (TELFORD) SELF-STORAGE LTD          ,14-Dec-10,3170132,2100.00,
Family & Community Services,Early Years Childcare,BAI,SUPPLIES & SERVICES           ,Other Office Expenses         ,A J (TELFORD) SELF-STORAGE LTD          ,14-Dec-10,3175748,1920.00,
Family & Community Services,Early Years Childcare,BAV,PREMISES                      ,Hire Of Rooms                 ,INTERSERVE PROJECT SERVICES LTD,12-Jan-11,3180931,756.00,
Family & Community Services,Early Years Childcare,BAY,SUPPLIES & SERVICES           ,Equipment - Purchase          ,ROMPA                                   ,11-Jan-11,3178571,844.20,
Family & Community Services,Early Years Childcare,BAY,PREMISES                      ,R&M -Building Other           ,KABA DOOR SYSTEMS LIMITED               ,17-Jan-11,3178570,527.12,
Family & Community Services,Early Years Childcare,BAY,PREMISES                      ,R&M -Building Other           ,NEWPORT COTTAGE CARE CENTRE             ,04-Jan-11,3178703,538.25,
Family & Community Services,Extended Services,BGB,SUPPLIES & SERVICES           ,Extended Services Funding,TELFORD COLLEGE OF ARTS AND TECHNOLOGY  ,22-Dec-10,3169874,5000.00,
Family & Community Services,Integrated Youth Support Service,BCP,SUPPLIES & SERVICES           ,Fire Proof Notice Boards,WEST MERCIA SUPPLIES                    ,13-Dec-10,3173166,756.84,
Family & Community Services,Integrated Youth Support Service,BCX,SUPPLIES & SERVICES           ,Commissioned work through REIP,BSC SERVICES LTD                        ,30-Nov-10,3175439,4345.20,
Family & Community Services,Integrated Youth Support Service,BCX,SUPPLIES & SERVICES           ,First Aid Training for Volunteers,TELFORD COLLEGE OF ARTS AND TECHNOLOGY  ,21-Jan-11,3180734,1050.00,
Family & Community Services,Integrated Youth Support Service,BCX,PREMISES                      ,General Rents                 ,MARSTON'S PUBS LIMITED                  ,25-Dec-10,3166858,2225.00,
Family & Community Services,Integrated Youth Support Service,BCX,SUPPLIES & SERVICES           ,Software Purchases            ,ENTANET INTERNATIONAL LTD               ,14-Jan-11,3175259,588.33,
Family & Community Services,Integrated Youth Support Service,BCX,SUPPLIES & SERVICES           ,Youth Opportunities Grant,BROOKSIDE XTRA                          ,12-Jan-11,3173078,1050.00,
Family & Community Services,Integrated Youth Support Service,BCX,SUPPLIES & SERVICES           ,Youth Opportunities Grant,CLICK STREET DANCE                      ,26-Jan-11,3181652,2000.00,
Family & Community Services,Integrated Youth Support Service,BCX,SUPPLIES & SERVICES           ,Youth Opportunities Grant,TELFORD CHINWOO                         ,05-Jan-11,3169926,1500.00,
Family & Community Services,Integrated Youth Support Service,BCX,SUPPLIES & SERVICES           ,Youth Opportunities Grant,TELFORD CHINWOO                         ,14-Jan-11,3172223,1587.90,
Family & Community Services,Integrated Youth Support Service,BCX,SUPPLIES & SERVICES           ,Youth Opportunities Grant,TELFORD VOLUNTEER POLICE CADETS         ,05-Jan-11,3169925,4274.00,
Family & Community Services,Integrated Youth Support Service,BFA,PREMISES                      ,General Rents                 ,TELFORD INVESTMENTS LTD                 ,31-Dec-10,3171767,2099.16,
Family & Community Services,Integrated Youth Support Service,BZB,CURRENT LIABILITIES           ,Youth Support Services,TELFORD CHINWOO                         ,05-Jan-11,3169926,3601.91,
Family & Community Services,Integrated Youth Support Service,CBC,SUPPLIES & SERVICES           ,Other Grants (Expenses)       ,YOUTH SUPPORT SERVICES LTD              ,01-Jan-11,3173168,23750.00,
Family & Community Services,Integrated Youth Support Service,CNB,SUPPLIES & SERVICES           ,Computer Hardware (Maint)     ,CACI LTD                                ,04-Jan-11,3170092,6430.00,
Family & Community Services,Integrated Youth Support Service,CND,SUPPLIES & SERVICES           ,Other Youth Services                ,YOUTH SUPPORT SERVICES LTD              ,01-Jan-11,3173167,1697.00,
Family & Community Services,Integrated Youth Support Service,CNH,SUPPLIES & SERVICES           ,Other Grants (Expenses)       ,YOUTH SUPPORT SERVICES LTD              ,31-Dec-10,3171705,10000.00,
Family & Community Services,Integrated Youth Support Service,LKP,SUPPLIES & SERVICES           ,Out of School Activities      ,ALTON TOWERS                            ,21-Jan-11,3177238,1318.08,
Family & Community Services,School Improvement Behaviour & Attendance,BBH,SUPPLIES & SERVICES           ,Hire of the Dome,TELFORD COLLEGE OF ARTS AND TECHNOLOGY  ,08-Nov-10,3173208,630.00,
Family & Community Services,School Improvement Behaviour & Attendance,BCK,EMPLOYEES                     ,Agency Supply Costs           ,CELSIAN FINANCE SUPPORT SERVICES        ,12-Dec-10,3170139,890.00,
Family & Community Services,School Improvement Behaviour & Attendance,BCK,EMPLOYEES                     ,Agency Supply Costs           ,CELSIAN FINANCE SUPPORT SERVICES        ,19-Dec-10,3170141,780.00,
Family & Community Services,School Improvement Behaviour & Attendance,BCK,EMPLOYEES                     ,Agency Supply Costs           ,CELSIAN FINANCE SUPPORT SERVICES        ,09-Jan-11,3174421,780.00,
Family & Community Services,School Improvement Behaviour & Attendance,BCK,EMPLOYEES                     ,Agency Supply Costs           ,CELSIAN FINANCE SUPPORT SERVICES        ,16-Jan-11,3178947,1028.18,
Family & Community Services,School Improvement Behaviour & Attendance,BCK,EMPLOYEES                     ,Agency Supply Costs           ,HAYS SPECIALIST RECRUITMENT             ,16-Dec-10,3174424,650.00,
Family & Community Services,School Improvement Behaviour & Attendance,BCK,EMPLOYEES                     ,Agency Supply Costs           ,HAYS SPECIALIST RECRUITMENT             ,20-Dec-10,3174425,540.00,
Family & Community Services,School Improvement Behaviour & Attendance,BCK,PREMISES                      ,Electricity                   ,WEST MERCIA SUPPLIES                    ,01-Jan-11,3181976,-757.14,
Family & Community Services,School Improvement Behaviour & Attendance,BCK,SUPPLIES & SERVICES           ,Exam Fees                     ,OCR                                     ,30-Nov-10,3178951,1640.00,
Family & Community Services,School Improvement Behaviour & Attendance,BCK,SUPPLIES & SERVICES           ,Staff Training                ,PROACTIVE EDUCATION SERVICES LIMITED    ,14-Jul-10,3178333,600.00,
Finance,Employment Services,GPV,EMPLOYEES                     ,Recruitment Interview         ,CRIMINAL RECORDS BUREAU                 ,31-Dec-10,3169813,7236.00,
Finance,Finance,GCH,SUPPLIES & SERVICES           ,Cash Collection services,ALLPAY.NET LIMITED                      ,31-Dec-10,3168234,997.16,
Finance,Finance,GCH,SUPPLIES & SERVICES           ,Cash Collection services,ALLPAY.NET LIMITED                      ,31-Dec-10,3168235,2183.23,
Finance,Finance,GCP,EMPLOYEES                     ,Agency Supply Costs           ,COMENSURA LTD                           ,30-Dec-10,3168639,25938.36,
Finance,Finance,GCP,EMPLOYEES                     ,Agency Supply Costs           ,COMENSURA LTD                           ,02-Jan-11,3168640,34271.12,
Finance,Finance,GCP,EMPLOYEES                     ,Agency Supply Costs           ,COMENSURA LTD                           ,06-Jan-11,3169399,1522.24,
Finance,Finance,GCP,EMPLOYEES                     ,Agency Supply Costs           ,COMENSURA LTD                           ,05-Jan-11,3169400,17168.97,
Finance,Finance,GCP,EMPLOYEES                     ,Agency Supply Costs           ,COMENSURA LTD                           ,19-Jan-11,3177462,59481.95,
Finance,Finance,GCP,EMPLOYEES                     ,Agency Supply Costs           ,COMENSURA LTD                           ,26-Jan-11,3180901,46490.89,
Finance,Finance,GCP,INCOME                        ,Fees & Charges General        ,COMENSURA LTD                           ,12-Jan-11,3175650,31668.75,
Finance,Finance,GFC,SUPPORT SERVICES              ,Audit Fees                    ,AUDIT COMMISSION                        ,07-Jan-11,3174469,6386.00,
Finance,Finance,GGE,PREMISES                      ,Coroners Court,SHREWSBURY & TELFORD HOSPITAL NHS TRUST ,01-Dec-10,3178040,4213.15,
Finance,Finance,GGE,PREMISES                      ,Coroners Court,SHREWSBURY & TELFORD HOSPITAL NHS TRUST ,06-Jan-11,3178747,4213.15,
Finance,Finance,GZF,CURRENT LIABILITIES           ,Payments                      ,SECURITY PLUS LIMITED                   ,01-Jan-11,3170658,2670.85,
Finance,Finance,MHD,CURRENT LIABILITIES           ,Payments                      ,GMB & ATU WORKERS UNION                 ,07-Jan-11,3167929,1403.91,
Finance,Finance,MHD,CURRENT LIABILITIES           ,Payments                      ,PRUDENTIAL                              ,07-Jan-11,3167936,33841.97,
Finance,Finance,MHD,CURRENT LIABILITIES           ,Payments                      ,PRUDENTIAL                              ,07-Jan-11,3167937,10288.39,
Finance,Finance,MHD,CURRENT LIABILITIES           ,Payments                      ,UNISON                                  ,07-Jan-11,3167941,17216.35,
Finance,Finance,MHV,CURRENT LIABILITIES           ,Receipts                      ,CHILDCARE VOUCHERS LTD                  ,17-Jan-11,3173804,18751.20,
Finance,Finance,MHV,CURRENT LIABILITIES           ,Receipts                      ,CHILDCARE VOUCHERS LTD                  ,19-Jan-11,3175781,729.00,
Finance,Finance,MHV,CURRENT LIABILITIES           ,Receipts                      ,CHILDCARE VOUCHERS LTD                  ,19-Jan-11,3175782,14764.38,
Finance,Finance,MPC,CURRENT LIABILITIES           ,Payments                      ,ZURICH INSURANCE & MUNICIPAL  CO    ,31-Dec-10,3178771,1000.00,
Finance,Finance,MPC,CURRENT LIABILITIES           ,Payments                      ,ZURICH INSURANCE & MUNICIPAL  CO    ,31-Dec-10,3178772,41022.46,
Finance,Finance,PHH,SUPPLIES & SERVICES           ,Environmental Services,TELFORD & WREKIN SERVICES LTD           ,03-Jan-11,3174812,152305.08,
Finance,Finance,PHH,SUPPLIES & SERVICES           ,Environmental Services,TELFORD & WREKIN SERVICES LTD           ,03-Jan-11,3174814,793603.80,
Governance,Democratic Services,GDP,SUPPLIES & SERVICES           ,Member Development,IDEA                                    ,03-Jan-11,3179102,1709.60,
Governance,Democratic Services,GER,SUPPLIES & SERVICES           ,Postages                      ,ROYAL MAIL GROUP PLC                    ,31-Dec-10,3168619,535.36,
Governance,"Health, Safety & Resilience",GEP,EMPLOYEES                     ,Training Expenses             ,COI                                     ,07-Jan-11,3180140,2200.00,
Governance,Legal Services,GLE,SUPPLIES & SERVICES           ,Computer Software (Maint)     ,THE COPYRIGHT LICENSING AGENCY LTD      ,02-Dec-10,3174036,7625.40,
Governance,Legal Services,GLE,SUPPLIES & SERVICES           ,Consultants Fees              ,HBJ GATELEY WAREING LLP                 ,21-Dec-10,3182122,4040.00,
Governance,Legal Services,GLE,SUPPLIES & SERVICES           ,Legal Expenses - Court Fees                ,TELFORD & WREKIN COUNCIL                ,21-Jan-11,3178838,1500.00,
Housing & Planning,Development Management,DMT,CURRENT LIABILITIES           ,Grant Expenditure             ,ASHWELL ESTATES LTD                     ,21-Jan-11,3178742,22992.99,
Housing & Planning,Development Management,PBA,SUPPLIES & SERVICES           ,Promotion Expenses            ,BSI                                     ,10-Nov-10,3168490,739.00,
Housing & Planning,Development Management,PHP,SUPPLIES & SERVICES           ,Computer Hardware (Maint)     ,MIS LOCAL GOVERNMENT SYSTEMS LTD        ,22-Dec-10,3171925,720.00,
Housing & Planning,"Environmental Health, Trading Standards & Licensing",CKD,SUPPLIES & SERVICES           ,Consultants Fees              ,SHROPSHIRE COUNCIL                      ,21-Dec-10,3168620,800.00,
Housing & Planning,"Environmental Health, Trading Standards & Licensing",CKD,SUPPLIES & SERVICES           ,Subscriptions                 ,LEXIS NEXIS                             ,15-Dec-10,3173326,3500.00,
Housing & Planning,"Environmental Health, Trading Standards & Licensing",CKD,SUPPLIES & SERVICES           ,Subscriptions                 ,LEXIS NEXIS                             ,20-Jan-11,3181629,3500.00,
Housing & Planning,"Environmental Health, Trading Standards & Licensing",CKD,SUPPLIES & SERVICES           ,Subscriptions                 ,SITEON LTD                              ,24-Jan-11,3181984,625.00,
Housing & Planning,"Environmental Health, Trading Standards & Licensing",CKK,SUPPLIES & SERVICES           ,Equipment - Purchase          ,BRUEL & KJAER (UK) LIMITED              ,22-Dec-10,3176691,1031.70,
Housing & Planning,"Environmental Health, Trading Standards & Licensing",CKQ,SUPPLIES & SERVICES           ,Analytical costs - private water,SEVERN TRENT LABORATORIES               ,16-Sep-10,3173330,940.00,
Housing & Planning,"Environmental Health, Trading Standards & Licensing",CKQ,SUPPLIES & SERVICES           ,Analytical costs - private water,SEVERN TRENT LABORATORIES               ,09-Dec-10,3173331,1004.00,
Housing & Planning,"Environmental Health, Trading Standards & Licensing",CKQ,SUPPLIES & SERVICES           ,Analytical costs - private water,SEVERN TRENT LABORATORIES               ,31-Dec-10,3178104,1649.00,
Housing & Planning,"Environmental Health, Trading Standards & Licensing",GLL,EMPLOYEES                     ,Continued Professional Development         ,ABV TRAINING LTD                        ,29-Dec-10,3166841,1618.50,
Housing & Planning,"Environmental Health, Trading Standards & Licensing",GLL,SUPPLIES & SERVICES           ,Taxi Marshalls,PRP LEISURE LTD                         ,20-Dec-10,3167342,672.00,
Housing & Planning,"Environmental Health, Trading Standards & Licensing",GLL,SUPPLIES & SERVICES           ,Taxi Marshalls,PRP LEISURE LTD                         ,29-Dec-10,3175815,640.00,
Housing & Planning,"Environmental Health, Trading Standards & Licensing",GLL,SUPPLIES & SERVICES           ,Taxi Marshalls,PRP LEISURE LTD                         ,03-Jan-11,3175816,1188.00,
Housing & Planning,"Environmental Health, Trading Standards & Licensing",GLL,SUPPLIES & SERVICES           ,Taxi Marshalls,PRP LEISURE LTD                         ,17-Jan-11,3178727,648.00,
Housing & Planning,Housing,HAD,TRANSPORT                     ,Outside Hire                  ,GLYN UPTON REMOVALS                     ,31-Dec-10,3174555,1456.58,
Housing & Planning,Housing,HAE,SUPPLIES & SERVICES           ,Other Financial Services                ,EXPERIAN LTD                            ,30-Nov-10,3178917,1662.00,
Housing & Planning,Housing,HHD,PREMISES                      ,Leasehold Rents               ,REDACTED - PERSONAL INFORMATION,12-Jan-11,3169697,-1174.11,
Housing & Planning,Housing,HHD,PREMISES                      ,Leasehold Rents               ,REDACTED - PERSONAL INFORMATION,12-Jan-11,3169696,-1096.86,
Housing & Planning,Housing,HHD,PREMISES                      ,R&M -Buildings DLO Charge     ,TAYLORS MECHANICAL H&P SERVICES LTD     ,11-Jan-11,3178109,1230.00,
Housing & Planning,Housing,HHD,PREMISES                      ,Refurbishment,REDACTED - PERSONAL INFORMATION,18-Jan-11,3173801,20000.00,
Housing & Planning,Housing,HHE,SUPPLIES & SERVICES           ,Prevention Work,MEDIATION WORKS                         ,31-Dec-10,3178251,617.50,
Housing & Planning,Housing,HIA,PREMISES                      ,R&M -Buildings DLO Charge     ,KOHLER MIRA LIMITED                     ,11-Nov-10,3178918,1106.95,
Housing & Planning,Housing,HIE,PREMISES                      ,Electricity                   ,WEST MERCIA SUPPLIES                    ,15-Dec-10,3178729,665.94,
Housing & Planning,Housing,HIE,SUPPLIES & SERVICES           ,Security Services             ,RMP GUARDING (UK) LIMITED               ,31-Dec-10,3178748,3075.63,
Housing & Planning,Housing,HIF,PREMISES                      ,R&M -Buildings DLO Charge     ,PRYCE (BUILDERS) LTD                    ,30-Nov-10,3173810,26825.00,
Housing & Planning,Housing,HIF,PREMISES                      ,R&M -Buildings DLO Charge     ,TAYLORS MECHANICAL H&P SERVICES LTD     ,10-Dec-10,3175446,570.00,
Housing & Planning,Housing,HKH,SUPPLIES & SERVICES           ,Other Grants (Expenses)       ,GINGER PLUMBER                          ,21-Jan-11,3178821,699.80,
Housing & Planning,Housing,HKH,SUPPLIES & SERVICES           ,Other Grants (Expenses)       ,HOMECRAFT                               ,25-Jan-11,3180657,2042.36,
Housing & Planning,Housing,HKH,SUPPLIES & SERVICES           ,Other Grants (Expenses)       ,THERMOWALL                              ,13-Jan-11,3170651,3827.85,
Housing & Planning,Housing,HXB,CURRENT ASSETS                ,Advances                      ,HOMECRAFT                               ,25-Jan-11,3180657,680.78,
Housing & Planning,Housing,HXB,CURRENT ASSETS                ,Advances                      ,THERMOWALL                              ,13-Jan-11,3170651,1275.95,
Housing & Planning,Housing,HXB,CURRENT ASSETS                ,Payments to Contractor,GINGER PLUMBER                          ,21-Jan-11,3178821,1632.25,
Housing & Planning,Housing,HXB,CURRENT ASSETS                ,Property Grants,REDACTED - PERSONAL INFORMATION,12-Jan-11,3173265,1458.66,
Housing & Planning,Housing,HXB,CURRENT ASSETS                ,Property Grants,REDACTED - PERSONAL INFORMATION,12-Jan-11,3173266,1301.87,
Housing & Planning,Housing,HYG,CURRENT LIABILITIES           ,Payments                      ,AE PROPERTY MAINTENACE                  ,21-Jan-11,3178740,2680.00,
Housing & Planning,Housing,HYG,CURRENT LIABILITIES           ,Payments to Contractor,GINGER PLUMBER                          ,11-Jan-11,3171699,2819.25,
Housing & Planning,Housing,HYG,CURRENT LIABILITIES           ,Payments to Contractors,STREET UK                               ,24-Jan-11,3180664,8177.42,
Housing & Planning,Housing,HZG,CURRENT LIABILITIES           ,Other Capital Expenditure     ,GM HEATING & PLUMBING LTD               ,13-Jan-11,3170206,2847.90,
Housing & Planning,Housing,HZG,CURRENT LIABILITIES           ,Other Capital Expenditure     ,GM HEATING & PLUMBING LTD               ,20-Jan-11,3176675,2223.00,
Housing & Planning,Housing,HZG,CURRENT LIABILITIES           ,Other Capital Expenditure     ,GM HEATING & PLUMBING LTD               ,20-Jan-11,3176676,2249.00,
Housing & Planning,Housing,HZG,CURRENT LIABILITIES           ,Other Capital Expenditure     ,GM HEATING & PLUMBING LTD               ,26-Jan-11,3182224,2098.90,
Housing & Planning,Housing,HZG,CURRENT LIABILITIES           ,Other Capital Expenditure     ,GM HEATING & PLUMBING LTD               ,27-Jan-11,3182225,1884.00,
Housing & Planning,Housing,HZG,CURRENT LIABILITIES           ,Other Capital Expenditure     ,GM HEATING & PLUMBING LTD               ,27-Jan-11,3182226,2283.50,
Housing & Planning,Housing,HZG,CURRENT LIABILITIES           ,Other Capital Expenditure     ,HOMECRAFT                               ,20-Jan-11,3176678,1674.75,
Housing & Planning,Housing,HZG,CURRENT LIABILITIES           ,Other Capital Expenditure     ,HOMECRAFT                               ,21-Jan-11,3178746,1874.25,
Housing & Planning,Housing,HZG,CURRENT LIABILITIES           ,Other Capital Expenditure     ,HOMECRAFT                               ,27-Jan-11,3182227,2084.25,
Housing & Planning,Housing,HZG,CURRENT LIABILITIES           ,Other Capital Expenditure     ,LANDLORD SAFETY GRANTS                  ,17-Jan-11,3177145,2234.00,
Housing & Planning,Housing,HZG,CURRENT LIABILITIES           ,Other Capital Expenditure     ,LANDLORD SAFETY GRANTS                  ,11-Jan-11,3177147,1468.75,
Housing & Planning,Housing,HZG,CURRENT LIABILITIES           ,Other Capital Expenditure     ,LANDLORD SAFETY GRANTS                  ,24-Jan-11,3179814,1150.00,
Housing & Planning,Housing,HZG,CURRENT LIABILITIES           ,Other Capital Expenditure     ,REDACTED - PERSONAL INFORMATION,12-Jan-11,3173264,2734.23,
Housing & Planning,Housing,HZG,CURRENT LIABILITIES           ,Other Capital Expenditure     ,REDACTED - PERSONAL INFORMATION,12-Jan-11,3173265,5488.94,
Housing & Planning,Housing,HZG,CURRENT LIABILITIES           ,Other Capital Expenditure     ,REDACTED - PERSONAL INFORMATION,12-Jan-11,3173266,3488.43,
Housing & Planning,Housing,HZG,CURRENT LIABILITIES           ,Other Capital Expenditure     ,REDACTED - PERSONAL INFORMATION,20-Jan-11,3176681,6226.79,
Housing & Planning,Housing,HZG,CURRENT LIABILITIES           ,Other Capital Expenditure     ,REDACTED - PERSONAL INFORMATION,20-Jan-11,3176682,4189.00,
Housing & Planning,Housing,HZG,CURRENT LIABILITIES           ,Other Capital Expenditure     ,REDACTED - PERSONAL INFORMATION,27-Jan-11,3182229,11761.62,
Housing & Planning,Housing,HZG,CURRENT LIABILITIES           ,Other Capital Expenditure     ,MARTIN EVANS CONSTRUCTION LTD           ,22-Dec-10,3170210,3503.28,
Housing & Planning,Housing,HZG,CURRENT LIABILITIES           ,Other Capital Expenditure     ,MARTIN EVANS CONSTRUCTION LTD           ,12-Jan-11,3173258,4139.43,
Housing & Planning,Housing,HZG,CURRENT LIABILITIES           ,Other Capital Expenditure     ,MARTIN EVANS CONSTRUCTION LTD           ,12-Jan-11,3173259,4676.71,
Housing & Planning,Housing,HZG,CURRENT LIABILITIES           ,Other Capital Expenditure     ,MASTERDECK LIMITED                      ,20-Jan-11,3176680,1700.00,
Housing & Planning,Housing,HZG,CURRENT LIABILITIES           ,Other Capital Expenditure     ,REDACTED - PERSONAL INFORMATION,12-Jan-11,3173260,12097.00,
Housing & Planning,Housing,HZG,CURRENT LIABILITIES           ,Other Capital Expenditure     ,PILOT HEAT                              ,20-Jan-11,3176683,2552.52,
Housing & Planning,Housing,HZG,CURRENT LIABILITIES           ,Other Capital Expenditure     ,POLLOCK LIFTS                           ,12-Jan-11,3173267,7810.00,
Housing & Planning,Housing,HZG,CURRENT LIABILITIES           ,Other Capital Expenditure     ,R E BROWN BUILDING CONTRACTS            ,20-Jan-11,3176673,1167.72,
Housing & Planning,Housing,HZG,CURRENT LIABILITIES           ,Other Capital Expenditure     ,R E BROWN BUILDING CONTRACTS            ,20-Jan-11,3176674,5134.49,
Housing & Planning,Housing,HZG,CURRENT LIABILITIES           ,Other Capital Expenditure     ,ROSEMONT BUILDING CONTRACTORS           ,05-Dec-10,3168255,3968.33,
Housing & Planning,Housing,HZG,CURRENT LIABILITIES           ,Other Capital Expenditure     ,SEAN BYRNE HEATING & PLUMBING                             ,22-Dec-10,3170195,3600.00,
Housing & Planning,Housing,HZG,CURRENT LIABILITIES           ,Other Capital Expenditure     ,SEAN BYRNE HEATING & PLUMBING                             ,21-Jan-11,3178743,1950.00,
Housing & Planning,Housing,HZG,CURRENT LIABILITIES           ,Other Capital Expenditure     ,STANNAH STAIRLIFTS LTD                  ,10-Jan-11,3170778,5924.00,
Housing & Planning,Housing,HZG,CURRENT LIABILITIES           ,Other Capital Expenditure     ,STANNAH STAIRLIFTS LTD                  ,10-Jan-11,3170779,1849.00,
Housing & Planning,Housing,HZG,CURRENT LIABILITIES           ,Other Capital Expenditure     ,STANNAH STAIRLIFTS LTD                  ,10-Jan-11,3170780,1868.00,
Housing & Planning,Housing,HZG,CURRENT LIABILITIES           ,Other Capital Expenditure     ,STANNAH STAIRLIFTS LTD                  ,10-Jan-11,3170781,1714.00,
Housing & Planning,Housing,HZG,CURRENT LIABILITIES           ,Other Capital Expenditure     ,STANNAH STAIRLIFTS LTD                  ,12-Jan-11,3172920,2504.00,
Housing & Planning,Housing,HZG,CURRENT LIABILITIES           ,Other Capital Expenditure     ,STANNAH STAIRLIFTS LTD                  ,12-Jan-11,3172921,2345.00,
Housing & Planning,Housing,HZG,CURRENT LIABILITIES           ,Other Capital Expenditure     ,STANNAH STAIRLIFTS LTD                  ,13-Jan-11,3172922,2233.00,
Housing & Planning,Housing,HZG,CURRENT LIABILITIES           ,Other Capital Expenditure     ,STANNAH STAIRLIFTS LTD                  ,20-Jan-11,3176685,1649.00,
Housing & Planning,Housing,HZG,CURRENT LIABILITIES           ,Other Capital Expenditure     ,STANNAH STAIRLIFTS LTD                  ,20-Jan-11,3176686,4829.00,
Housing & Planning,Housing,HZG,CURRENT LIABILITIES           ,Other Capital Expenditure     ,STANNAH STAIRLIFTS LTD                  ,20-Jan-11,3176687,1649.00,
Housing & Planning,Housing,HZG,CURRENT LIABILITIES           ,Other Capital Expenditure     ,STANNAH STAIRLIFTS LTD                  ,21-Jan-11,3178750,1980.00,
Housing & Planning,Housing,HZG,CURRENT LIABILITIES           ,Other Capital Expenditure     ,STANNAH STAIRLIFTS LTD                  ,27-Jan-11,3182231,1868.00,
Housing & Planning,Housing,HZG,CURRENT LIABILITIES           ,Other Capital Expenditure     ,STANNAH STAIRLIFTS LTD                  ,26-Jan-11,3182232,2014.00,
Housing & Planning,Housing,HZG,CURRENT LIABILITIES           ,Other Capital Expenditure     ,THREE PINES BUILDING CO LTD             ,12-Jan-11,3172923,2843.00,
Housing & Planning,Housing,HZG,CURRENT LIABILITIES           ,Other Capital Expenditure     ,WILCOX PLUMBING & HEATING               ,20-Jan-11,3176688,3610.35,
Housing & Planning,Housing,HZN,CURRENT LIABILITIES           ,Payments to Contractors       ,GRAPH ELECTRICAL SERVICES               ,21-Dec-10,3167931,4080.00,
Housing & Planning,Housing,HZN,CURRENT LIABILITIES           ,Payments to Contractors       ,GRAPH ELECTRICAL SERVICES               ,21-Dec-10,3167933,1440.00,
Housing & Planning,Housing,HZN,CURRENT LIABILITIES           ,Payments to Contractors       ,SW CONTRACTORS                          ,10-Jan-11,3170786,1995.00,
Housing & Planning,Housing,HZN,CURRENT LIABILITIES           ,Payments to Contractors       ,SW CONTRACTORS                          ,17-Jan-11,3174878,1995.00,
Housing & Planning,Housing,PLD,PREMISES                      ,Electricity                   ,WEST MERCIA SUPPLIES                    ,15-Dec-10,3169373,1256.39,
Housing & Planning,Housing,PLD,PREMISES                      ,Electricity                   ,WEST MERCIA SUPPLIES                    ,17-Dec-10,3174067,1075.31,
Housing & Planning,Housing,PLD,PREMISES                      ,Electricity                   ,WEST MERCIA SUPPLIES                    ,17-Dec-10,3174068,932.02,
Housing & Planning,Housing,PLD,PREMISES                      ,Electricity                   ,WEST MERCIA SUPPLIES                    ,16-Nov-10,3174069,1046.79,
Housing & Planning,Housing,PLD,PREMISES                      ,Electricity                   ,WEST MERCIA SUPPLIES                    ,16-Nov-10,3174070,648.00,
Housing & Planning,Housing,PLD,PREMISES                      ,Electricity                   ,WEST MERCIA SUPPLIES                    ,16-Nov-10,3174590,-675.53,
Housing & Planning,Housing,PLD,PREMISES                      ,Electricity                   ,WEST MERCIA SUPPLIES                    ,17-Dec-10,3174591,-648.00,
Housing & Planning,Housing,PLD,PREMISES                      ,Electricity                   ,WEST MERCIA SUPPLIES                    ,17-Jan-11,3180783,1298.26,
Housing & Planning,Housing,PLD,PREMISES                      ,Sewage Charges                ,SEVERN TRENT WATER LTD                  ,22-Dec-10,3169819,1689.61,
Housing & Planning,Housing,PLD,PREMISES                      ,Sewage Charges                ,SEVERN TRENT WATER LTD                  ,07-Jan-11,3174874,1143.55,
Housing & Planning,Housing,PPA,SUPPLIES & SERVICES           ,Software Purchases            ,LIMEHOUSE SOFTWARE  LTD                 ,13-Jan-11,3174680,8304.00,
Housing & Planning,Stategic Housing,DBN,CURRENT LIABILITIES           ,Legal Fees                    ,MILLS & REEVE                           ,17-Dec-10,3177539,11116.20,
Housing & Planning,Stategic Housing,DBN,CURRENT LIABILITIES           ,Legal Fees                    ,MILLS & REEVE                           ,24-Nov-10,3178326,8024.30,
Housing & Planning,Stategic Housing,DBP,CURRENT LIABILITIES           ,Statutory Home Loss Compensation                  ,A.S.T. FLOORCOVERINGS                   ,16-Dec-10,3166765,1787.62,
Housing & Planning,Stategic Housing,DBP,CURRENT LIABILITIES           ,Statutory Home Loss Compensation                  ,AE PROPERTY MAINTENACE                  ,06-Jan-11,3173894,570.00,
Housing & Planning,Stategic Housing,DBP,CURRENT LIABILITIES           ,Payments to Contractor        ,MCPHILLIPS (WELLINGTON) LTD             ,03-Jan-11,3179118,69141.65,
Housing & Planning,Stategic Housing,DBP,CURRENT LIABILITIES           ,Technical Analysis            ,JACOBS ENGINEERING UK LTD               ,03-Jan-11,3180162,2322.00,
Housing & Planning,Stategic Housing,DKL,CURRENT LIABILITIES           ,External Professional Fees    ,JACOBS ENGINEERING UK LTD               ,22-Dec-10,3167572,1789.49,
Housing & Planning,Stategic Housing,DKM,CURRENT LIABILITIES           ,Statutory Home Loss Compensation                  ,A.S.T. FLOORCOVERINGS                   ,20-Dec-10,3166764,2001.98,
Housing & Planning,Stategic Housing,DKM,CURRENT LIABILITIES           ,Statutory Home Loss Compensation                  ,AE PROPERTY MAINTENACE                  ,06-Jan-11,3171914,640.00,
Housing & Planning,Stategic Housing,DKM,CURRENT LIABILITIES           ,Statutory Home Loss Compensation                  ,AE PROPERTY MAINTENACE                  ,06-Jan-11,3173894,570.00,
Housing & Planning,Stategic Housing,DKM,CURRENT LIABILITIES           ,Legal Fees                    ,TELFORD & WREKIN COUNCIL                ,21-Jan-11,3178838,3695.00,
Housing & Planning,Stategic Housing,DKM,CURRENT LIABILITIES           ,Payments to Contractor        ,BRITISH TELECOMMUNICATIONS PLC          ,24-Jan-11,3177176,2117.54,
Housing & Planning,Stategic Housing,DKM,CURRENT LIABILITIES           ,Payments to Contractor        ,NATIONAL GRID PLC                       ,20-Jan-11,3175412,12776.40,
Housing & Planning,Stategic Housing,DKM,CURRENT LIABILITIES           ,Payments to Contractor        ,VIRGIN MEDIA LTD                        ,24-Jan-11,3177177,1493.76,
Housing & Planning,Stategic Housing,DKM,CURRENT LIABILITIES           ,Technical Analysis            ,JACOBS ENGINEERING UK LTD               ,03-Jan-11,3180162,6498.00,
Housing & Planning,Stategic Housing,DKM,CURRENT LIABILITIES           ,Technical Analysis            ,JACOBS ENGINEERING UK LTD               ,03-Jan-11,3180172,-7299.00,
Housing & Planning,Stategic Housing,DKM,CURRENT LIABILITIES           ,Technical Analysis            ,UNDERGROUND SURVEYS (UK) LTD        ,20-Dec-10,3169927,2200.00,
Learning & Achievement,School Improvement - Secondary,BBF,SUPPLIES & SERVICES           ,Conference Expenses           ,EXHIBITION SHOWROOM LTD                 ,15-Dec-10,3170142,4000.00,
Learning & Achievement,School Improvement - Secondary,BBF,SUPPLIES & SERVICES           ,Conference Expenses           ,EXHIBITION SHOWROOM LTD                 ,15-Dec-10,3170143,4000.00,
Learning & Achievement,School Improvement - Secondary,BBF,SUPPLIES & SERVICES           ,Conference Expenses           ,EXHIBITION SHOWROOM LTD                 ,15-Dec-10,3170144,4000.00,
Learning & Achievement,School Improvement - Secondary,BBF,SUPPLIES & SERVICES           ,Conference Expenses           ,EXHIBITION SHOWROOM LTD                 ,15-Dec-10,3170145,4000.00,
Learning & Achievement,School Improvement - Secondary,BBF,SUPPLIES & SERVICES           ,Conference Expenses           ,EXHIBITION SHOWROOM LTD                 ,15-Dec-10,3170146,4000.00,
Learning & Achievement,School Improvement - Secondary,BBF,SUPPLIES & SERVICES           ,Conference Expenses           ,EXHIBITION SHOWROOM LTD                 ,15-Dec-10,3170147,4000.00,
Learning & Achievement,School Improvement - Secondary,BBF,SUPPLIES & SERVICES           ,Conference Expenses           ,EXHIBITION SHOWROOM LTD                 ,15-Dec-10,3170148,3710.00,
Learning & Achievement,School Improvement - Secondary,BBF,SUPPLIES & SERVICES           ,Conference Expenses           ,TELFORD INTERNATIONAL CENTRE            ,26-Dec-10,3169903,523.40,
Learning & Achievement,School Improvement - Secondary,BBF,SUPPLIES & SERVICES           ,Conference Expenses           ,TELFORD INTERNATIONAL CENTRE            ,12-Jan-11,3178955,3202.08,
Learning & Achievement,School Improvement - Secondary,BBF,SUPPLIES & SERVICES           ,Printing - Other              ,GRAPHICS & PRINT LTD                    ,17-Jan-11,3178948,1464.00,
Learning & Achievement,School Improvement - Secondary,BBF,THIRD PARTY PAYMENTS          ,Private Contractors           ,YOUNG ENTERPRISE WEST MIDLANDS          ,22-Dec-10,3170073,753.11,
Learning & Achievement,School Improvement - Secondary,BBF,THIRD PARTY PAYMENTS          ,Private Contractors           ,YOUNG ENTERPRISE WEST MIDLANDS          ,06-Jan-11,3174439,753.11,
Property & ICT,Architecture Landscape & Buildings,PDA,INCOME                        ,Other Sales                   ,GRANVILLE CONSTRUCTION & MAINTENANCE LTD,16-Dec-10,3169277,-600.00,
Property & ICT,Architecture Landscape & Buildings,PDA,INCOME                        ,Other Sales                   ,GRANVILLE CONSTRUCTION & MAINTENANCE LTD,07-Dec-10,3173809,-1048.55,
Property & ICT,Architecture Landscape & Buildings,PDA,INCOME                        ,Other Sales                   ,KNOWLES                                 ,30-Nov-10,3169938,765.00,
Property & ICT,Architecture Landscape & Buildings,PHD,SUPPLIES & SERVICES           ,External Professional Fees    ,ABBEY BP LTD                            ,04-Jan-11,3168758,1008.00,
Property & ICT,Architecture Landscape & Buildings,PHD,SUPPLIES & SERVICES           ,External Professional Fees    ,ABBEY BP LTD                            ,13-Jan-11,3171817,980.00,
Property & ICT,Architecture Landscape & Buildings,PHD,SUPPLIES & SERVICES           ,External Professional Fees    ,JOHNSON FELLOWS                         ,12-Nov-10,3171031,3000.00,
Property & ICT,Architecture Landscape & Buildings,PHD,SUPPLIES & SERVICES           ,External Professional Fees    ,JOHNSON FELLOWS                         ,15-Dec-10,3171032,3000.00,
Property & ICT,Architecture Landscape & Buildings,PHD,SUPPLIES & SERVICES           ,External Professional Fees    ,JORDAN LEWIS ASSOCIATES LTD             ,04-Jan-11,3178920,1440.00,
Property & ICT,Architecture Landscape & Buildings,PHD,SUPPLIES & SERVICES           ,External Professional Fees    ,JORDAN LEWIS ASSOCIATES LTD             ,04-Jan-11,3178921,780.00,
Property & ICT,Architecture Landscape & Buildings,PHD,SUPPLIES & SERVICES           ,Equipment - Hire              ,STANFORD MARSH FINANCE LTD              ,06-Jan-11,3167541,1325.00,
Property & ICT,Architecture Landscape & Buildings,PHD,SUPPLIES & SERVICES           ,Equipment - Purchase          ,BACK CARE SOLUTIONS LTD                 ,24-Dec-10,3178322,737.00,
Property & ICT,Architecture Landscape & Buildings,PHD,SUPPLIES & SERVICES           ,Subscriptions                 ,BCIS LTD                                ,14-Oct-10,3171029,1160.00,
